Workbook

Sheet notice

Sheet formulaire de saisie
A1: RAPPORT JOURNALIER
A3: DATE | D3: RESP PROD | E3: Denis MARESCOT | G3: Site | H3: Osselle | J3: météo
H5: heures de prod prévues
A6: SELECTION NOM DE LA FEUILLE | C6: 26
A7: PERSONNEL
P8: TOTAL & CONTRÔLE
E9: AFFECTATION | P9: TOTAL | Q9: CONT
C10: H/j | F10: Nbr/H | I10: Nbr/H | L10: Nbr/H
A11: NOM | B11: CRETIN Brigitte | P11: =F11+I11+L11-C11 -> 0 | Q11: =IF(F11+I11+L11=C11,"OK","FAUX") -> OK
A13: NOM | B13: DORKELD Didier | P13: =F13+I13+L13-C13 -> 0 | Q13: =IF(F13+I13+L13=C13,"OK","FAUX") -> OK
A15: NOM | P15: =F15+I15+L15-C15 -> 0 | Q15: =IF(F15+I15+L15=C15,"OK","FAUX") -> OK
A17: NOM | P17: =F17+I17+L17-C17 -> 0 | Q17: =IF(F17+I17+L17=C17,"OK","FAUX") -> OK
A19: NOM | P19: =F19+I19+L19-C19 -> 0 | Q19: =IF(F19+I19+L19=C19,"OK","FAUX") -> OK
A21: NOM | P21: =F21+I21+L21-C21 -> 0 | Q21: =IF(F21+I21+L21=C21,"OK","FAUX") -> OK
A23: NOM | P23: =F23+I23+L23-C23 -> 0 | Q23: =IF(F23+I23+L23=C23,"OK","FAUX") -> OK
A25: NOM | P25: =F25+I25+L25-C25 -> 0 | Q25: =IF(F25+I25+L25=C25,"OK","FAUX") -> OK
A27: NOM | P27: =F27+I27+L27-C27 -> 0 | Q27: =IF(F27+I27+L27=C27,"OK","FAUX") -> OK
A29: NOM | P29: =F29+I29+L29-C29 -> 0 | Q29: =IF(F29+I29+L29=C29,"OK","FAUX") -> OK
A31: NOM | P31: =F31+I31+L31-C31 -> 0 | Q31: =IF(F31+I31+L31=C31,"OK","FAUX") -> OK
A33: NOM | P33: =F33+I33+L33-C33 -> 0 | Q33: =IF(F33+I33+L33=C33,"OK","FAUX") -> OK
A36: MATERIEL
E38: AFFECTATION | N38: GNR
C39: compteur matin | D39: compteur soir
A40: ENGIN | B40: Chargeur L566 - D3101014 | D40: 16764 | P40: =IF(D40=0,0,IF(D40-C40>24,1,D40-C40)) -> 1 | Q40: =IF(F40+I40+L40=P40,"OK","FAUX") -> FAUX
A42: ENGIN | B42: Chargeur 966G - D3102742 | D42: 2427 | P42: =IF(D42=0,0,IF(D42-C42>24,1,D42-C42)) -> 1 | Q42: =IF(F42+I42+L42=P42,"OK","FAUX") -> FAUX
A44: ENGIN | B44: CAMION MERCEDES OSSELLE-P2100552 | P44: =IF(D44=0,0,IF(D44-C44>24,1,D44-C44)) -> 0 | Q44: OK
A46: ENGIN | P46: =IF(D46=0,0,IF(D46-C46>24,1,D46-C46)) -> 0 | Q46: OK
A48: ENGIN | P48: =IF(D48=0,0,IF(D48-C48>24,1,D48-C48)) -> 0 | Q48: =IF(F48+I48+L48=P48,"OK","FAUX") -> OK
A50: ENGIN | P50: =IF(D50=0,0,IF(D50-C50>24,1,D50-C50)) -> 0 | Q50: =IF(F50+I50+L50=P50,"OK","FAUX") -> OK
A52: VHL LIAISON | B52: Minipelle SV17 - oss - D1002929 | D52: 2291 | F52: GNR
A54: VHL LIAISON | B54: Manitou M30 - C8100689 | D54: 7146 | F54: GNR
A56: VHL LIAISON | F56: GNR
A58: PRODUCTION
B61: HEURES DE PRODUCTION | G61: PRODUCTION - FABRICATION
C63: COMPTEUR HORAIRE | E63: HEURE DE FONCTIONNEMENT | G63: PRIMAIRE | K63: SECONDAIRE | O63: TERTIAIRE
A64: PRIMAIRE (Production Plaine)
A65: SECONDAIRE (Production Bascule Tunnel) | G65: ALIM PLAINE | K65: FABRICATION | L65: 0/4SCL | O65: CONCASSES | P65: 0/2C
A66: TERTIAIRE (frabrication concassée) | G66: ALIM BASCULE TUNNEL | K66: FABRICATION | L66: M0/16 | O66: CONCASSES | P66: 2/4C
A67: Compteur d'eau | K67: FABRICATION | L67: M0/8 | O67: CONCASSES | P67: 4/6C
O68: CONCASSES | P68: 4/10C
K69: BIG BAG | O69: CONCASSES | P69: 6/10C
O70: CONCASSES | P70: 22/80
O71: CONCASSES | P71: 0/4C CHEM
B73: ACHATS
B75: PRODUIT | C75: TONNAGE | E75: PRODUIT | F75: TONNAGE | H75: PRODUIT | I75: TONNAGE
B78: ARRETS
B79: Horamètre | C79: CIRCUIT | D79: MACHINE | E79: CAUSE | F79: DUREE (en mn) | I79: COMMENTAIRES
F80: Panne | G80: Entretien | H80: AUTRE
B88: OBSERVATION : Garder une trace d'un fait précis

Sheet 1
A1: RAPPORT JOURNALIER
A3: DATE : | B3: 2020-10-01
A4: EXPLOITATION DE: | B4: Osselle | D4: RESPONSABLE | F4: METEO
D5: Denis MARESCOT | F5: Pluie
D7: H DE PRODUCTIONS PREVUES | E7: 8
A8: POINTAGE PERSONNEL
A10: NOM PRENOM | B10: AFFECTATION | C10: Nombre d'heure | D10: AFFECTATION | E10: Nombre d'heure | F10: AFFECTATION | G10: Nombre d'heure | H10: TOTAL HORAIRE JOUR
A11: CRETIN Brigitte | B11: Bascule 200200 | C11: 8 | H11: =C11+E11+G11 -> 8
A12: DORKELD Didier | B12: Sur Engin Chargement client | C12: 5 | D12: 210258 Travaux divers sans engins | E12: 3 | H12: =C12+E12+G12 -> 8
A13: HOLTZ Mathieu | B13: Sur Engin Destockage | C13: 7 | D13: 210258 Travaux divers sans engins | E13: 1 | H13: =C13+E13+G13 -> 8
H14: 0
H15: 0
H16: 0
H17: =C17+E17+G17 -> 0
H18: =C18+E18+G18 -> 0
H19: =C19+E19+G19 -> 0
H20: 0
H21: 0
H22: 0
A24: POINTAGE MATERIEL
A26: ENGINS DE PRODUCTION
A27: TYPE | B27: AFFECTATION HORAIRE | H27: TOTAL HORAIRE JOUR | I27: GNR | J27: HORAMETRE MATIN | K27: HORAMETRE SOIR | L27: CONTRÔLE
A28: Chargeur L566 - D3101014 | B28: CHARGEMENT CLIENT /200200 | C28: 5 | H28: =C28+E28+G28 -> 5 | J28: 16743 | K28: 16748 | L28: =IF(K28-J28=H28,"OK","FAUX") -> OK
A29: Chargeur 966G - D3102742 | B29: DESTOCKAGE/200308 | C29: 7 | H29: =C29+E29+G29 -> 7 | I29: 193 | J29: 2386 | K29: 2393 | L29: =IF(K29-J29=H29,"OK","FAUX") -> OK
A30: CAMION MERCEDES OSSELLE-P2100552 | H30: 0 | L30: OK
H31: 0 | L31: OK
H32: 0 | L32: OK
H33: 0 | L33: OK
A35: VEHICULES DE LIAISON | B35: HORAMETRE MATIN | C35: SOIR | D35: GNR | E35: HEURE FONTIONNEMENT
A36: Minipelle SV17 - oss - D1002929 | B36: 2291 | C36: 2291 | E36: =C36-B36 -> 0
A37: Manitou M30 - C8100689 | B37: 7139 | C37: 7139 | E37: =C37-B37 -> 0
E38: 0
A41: RAPPORT DE PRODUCTION
B43: COMPTEUR HORAIRE | C43: H/FONCT
A44: PRIMAIRE (Production Plaine)
A45: SECONDAIRE (Production Bascule Tunnel) | B45: 11934 | C45: 6
A46: TERTIAIRE (frabrication concassée)
A47: BIG BAG
A48: Compteur d'eau
E51: BIG BAG
A52: PRIMAIRE | D52: SECONDAIRE | G52: TERTIAIRE
A53: ALIMENTATION | B53: Tout venant Brut | C53: 509 | D53: FABRICATION | E53: 0/4SCL | G53: CONCASSES | H53: 0/2C
A54: Plaine | B54: Tout venant Brut | D54: FABRICATION | E54: M0/16 | G54: CONCASSES | H54: 2/4C
A55: T120 | B55: Tout venant écreté | C55: =C54*0.95 -> 0 | D55: FABRICATION | E55: M0/8 | G55: CONCASSES | H55: 4/6C
A56: Débit mesuré en T/h | B56: GRANULOMETRIE | C56: TONNAGES | E56: GRANULOMETRIE | F56: TONNAGES | G56: CONCASSES | H56: 4/10C
A57: 50 | B57: 04 NATUREL | C57: =C53*D57 -> 111.98 | D57: 0.22 | E57: SABLE 0/4R | F57: =C57-(F53*'GNR ET ELEMENTS DE PROD'!L10)-('1'!F54*'GNR ET ELEMENTS DE PROD'!L7) -> 111.98 | G57: CONCASSES | H57: 6/10C
A58: 36 | B58: 4/8R | C58: =C53*D58 -> 81.44 | D58: 0.16 | E58: 4/8R | F58: =C58 -> 81.44 | G58: CONCASSES
A59: 42 | B59: 8/16R | C59: =C53*D59 -> 91.62 | D59: 0.18 | E59: 8/16R | F59: =C59-F54*'GNR ET ELEMENTS DE PROD'!N7 -> 91.62 | G59: CONCASSES
A60: 32 | B60: 11/22R | C60: =C53*D60 -> 71.26 | D60: 0.14 | E60: 11/22R | F60: =C60 -> 71.26 | G60: CONCASSES | H60: 0/4C | I60: =-F54*'GNR ET ELEMENTS DE PROD'!K7-F53*'GNR ET ELEMENTS DE PROD'!K10 -> 0
A61: 68 | B61: 22/80 | C61: =C53*D61 -> 152.7 | D61: 0.3 | E61: 22/80 | F61: =C63-I55-I5-ABS(I57) -> 0 | G61: CONCASSES | H61: 6,3/10 | I61: =+-'GNR ET ELEMENTS DE PROD'!M7*F54 -> 0
A62: =SUM(A57:B61) -> 228 | C62: =SUM(C57:C61) -> 509 | F62: =SUM(F57:F61) -> 356.3 | I62: =SUM(I53:I61) -> 0
A64: ACHATS
A68: ARRETS
A69: Horamètre | B69: CIRCUIT | C69: MACHINE | D69: CAUSE | E69: DUREE (en mn) | H69: COMMENTAIRES
E70: Panne | F70: Entretien | G70: AUTRE
A78: Observations (pour garder une trace d'un fait particulier)

Sheet 2
A1: RAPPORT JOURNALIER
A3: DATE : | B3: 2020-10-02
A4: EXPLOITATION DE: | B4: Osselle | D4: RESPONSABLE | F4: METEO
D5: Denis MARESCOT | F5: Pluie
D7: H DE PRODUCTIONS PREVUES | E7: 7
A8: POINTAGE PERSONNEL
A10: NOM PRENOM | B10: AFFECTATION | C10: Nombre d'heure | D10: AFFECTATION | E10: Nombre d'heure | F10: AFFECTATION | G10: Nombre d'heure | H10: TOTAL HORAIRE JOUR
A11: CRETIN Brigitte | B11: Bascule 200200 | C11: 7 | H11: =C11+E11+G11 -> 7
A12: DORKELD Didier | B12: Sur Engin Chargement client | C12: 3 | D12: 210258 Travaux divers sans engins | E12: 4 | H12: =C12+E12+G12 -> 7
H13: =C13+E13+G13 -> 0
H14: 0
H15: 0
H16: 0
H17: =C17+E17+G17 -> 0
H18: =C18+E18+G18 -> 0
H19: =C19+E19+G19 -> 0
H20: 0
H21: 0
H22: 0
A24: POINTAGE MATERIEL
A26: ENGINS DE PRODUCTION
A27: TYPE | B27: AFFECTATION HORAIRE | H27: TOTAL HORAIRE JOUR | I27: GNR | J27: HORAMETRE MATIN | K27: HORAMETRE SOIR | L27: CONTRÔLE
A28: Chargeur L566 - D3101014 | H28: =C28+E28+G28 -> 0 | J28: 16748 | K28: 16748 | L28: =IF(K28-J28=H28,"OK","FAUX") -> OK
A29: Chargeur 966G - D3102742 | B29: CHARGEMENT CLIENT /200200 | C29: 3 | H29: =C29+E29+G29 -> 3 | J29: 2393 | K29: 2396 | L29: =IF(K29-J29=H29,"OK","FAUX") -> OK
A30: CAMION MERCEDES OSSELLE-P2100552 | H30: 0 | L30: OK
H31: 0 | L31: OK
H32: 0 | L32: OK
H33: 0 | L33: OK
A35: VEHICULES DE LIAISON | B35: HORAMETRE MATIN | C35: SOIR | D35: GNR | E35: HEURE FONTIONNEMENT
A36: Minipelle SV17 - oss - D1002929 | B36: 2291 | C36: 2291 | E36: =C36-B36 -> 0
A37: Manitou M30 - C8100689 | B37: 7139 | C37: 7139 | E37: =C37-B37 -> 0
E38: 0
A41: RAPPORT DE PRODUCTION
B43: COMPTEUR HORAIRE | C43: H/FONCT
A44: PRIMAIRE (Production Plaine)
A45: SECONDAIRE (Production Bascule Tunnel)
A46: TERTIAIRE (frabrication concassée)
A47: BIG BAG
A48: Compteur d'eau
E51: BIG BAG
A52: PRIMAIRE | D52: SECONDAIRE | G52: TERTIAIRE
A53: ALIMENTATION | B53: Tout venant Brut | D53: FABRICATION | E53: 0/4SCL | G53: CONCASSES | H53: 0/2C
A54: Plaine | B54: Tout venant Brut | D54: FABRICATION | E54: M0/16 | G54: CONCASSES | H54: 2/4C
A55: T120 | B55: Tout venant écreté | C55: =C54*0.95 -> 0 | D55: FABRICATION | E55: M0/8 | G55: CONCASSES | H55: 4/6C
A56: Débit mesuré en T/h | B56: GRANULOMETRIE | C56: TONNAGES | E56: GRANULOMETRIE | F56: TONNAGES | G56: CONCASSES | H56: 4/10C
A57: 50 | B57: 04 NATUREL | C57: =C53*D57 -> 0 | D57: 0.22 | E57: SABLE 0/4R | F57: =C57-(F53*'GNR ET ELEMENTS DE PROD'!L10)-('2'!F54*'GNR ET ELEMENTS DE PROD'!L7) -> 0 | G57: CONCASSES | H57: 6/10C
A58: 36 | B58: 4/8R | C58: =C53*D58 -> 0 | D58: 0.16 | E58: 4/8R | F58: =C58 -> 0 | G58: CONCASSES
A59: 42 | B59: 8/16R | C59: =C53*D59 -> 0 | D59: 0.18 | E59: 8/16R | F59: =C59-F54*'GNR ET ELEMENTS DE PROD'!N7 -> 0 | G59: CONCASSES
A60: 32 | B60: 11/22R | C60: =C53*D60 -> 0 | D60: 0.14 | E60: 11/22R | F60: =C60 -> 0 | G60: CONCASSES | H60: 0/4C | I60: =-F54*'GNR ET ELEMENTS DE PROD'!K7-F53*'GNR ET ELEMENTS DE PROD'!K10 -> 0
A61: 68 | B61: 22/80 | C61: =C53*D61 -> 0 | D61: 0.3 | E61: 22/80 | F61: =C63-I55-I5-ABS(I57) -> 0 | G61: CONCASSES | H61: 6,3/10 | I61: =+-'GNR ET ELEMENTS DE PROD'!M7*F54 -> 0
A62: =SUM(A57:B61) -> 228 | C62: =SUM(C57:C61) -> 0 | F62: =SUM(F57:F61) -> 0 | I62: =SUM(I53:I61) -> 0
A64: ACHATS
A68: ARRETS
A69: Horamètre | B69: CIRCUIT | C69: MACHINE | D69: CAUSE | E69: DUREE (en mn) | H69: COMMENTAIRES
E70: Panne | F70: Entretien | G70: AUTRE
A78: Observations (pour garder une trace d'un fait particulier)

Sheet 3
A1: RAPPORT JOURNALIER
A3: DATE : | B3: 2020-10-03
A4: EXPLOITATION DE: | B4: Osselle | D4: RESPONSABLE | F4: METEO
D5: Denis MARESCOT | F5: Pluie
D7: H DE PRODUCTIONS PREVUES | E7: 7
A8: POINTAGE PERSONNEL
A10: NOM PRENOM | B10: AFFECTATION | C10: Nombre d'heure | D10: AFFECTATION | E10: Nombre d'heure | F10: AFFECTATION | G10: Nombre d'heure | H10: TOTAL HORAIRE JOUR
A11: CRETIN Brigitte | B11: Bascule 200200 | C11: 7 | H11: =C11+E11+G11 -> 7
A12: DORKELD Didier | B12: Sur Engin Chargement client | C12: 3 | D12: 210258 Travaux divers sans engins | E12: 4 | H12: =C12+E12+G12 -> 7
H13: =C13+E13+G13 -> 0
H14: 0
H15: 0
H16: 0
H17: =C17+E17+G17 -> 0
H18: =C18+E18+G18 -> 0
H19: =C19+E19+G19 -> 0
H20: 0
H21: 0
H22: 0
A24: POINTAGE MATERIEL
A26: ENGINS DE PRODUCTION
A27: TYPE | B27: AFFECTATION HORAIRE | H27: TOTAL HORAIRE JOUR | I27: GNR | J27: HORAMETRE MATIN | K27: HORAMETRE SOIR | L27: CONTRÔLE
A28: Chargeur L566 - D3101014 | H28: =C28+E28+G28 -> 0 | J28: 16748 | K28: 16748 | L28: =IF(K28-J28=H28,"OK","FAUX") -> OK
A29: Chargeur 966G - D3102742 | B29: CHARGEMENT CLIENT /200200 | C29: 3 | H29: =C29+E29+G29 -> 3 | J29: 2393 | K29: 2396 | L29: =IF(K29-J29=H29,"OK","FAUX") -> OK
A30: CAMION MERCEDES OSSELLE-P2100552 | H30: 0 | L30: OK
H31: 0 | L31: OK
H32: 0 | L32: OK
H33: 0 | L33: OK
A35: VEHICULES DE LIAISON | B35: HORAMETRE MATIN | C35: SOIR | D35: GNR | E35: HEURE FONTIONNEMENT
A36: Minipelle SV17 - oss - D1002929 | B36: 2291 | C36: 2291 | E36: =C36-B36 -> 0
A37: Manitou M30 - C8100689 | B37: 7139 | C37: 7139 | E37: =C37-B37 -> 0
E38: 0
A41: RAPPORT DE PRODUCTION
B43: COMPTEUR HORAIRE | C43: H/FONCT
A44: PRIMAIRE (Production Plaine)
A45: SECONDAIRE (Production Bascule Tunnel)
A46: TERTIAIRE (frabrication concassée)
A47: BIG BAG
A48: Compteur d'eau
E51: BIG BAG
A52: PRIMAIRE | D52: SECONDAIRE | G52: TERTIAIRE
A53: ALIMENTATION | B53: Tout venant Brut | D53: FABRICATION | E53: 0/4SCL | G53: CONCASSES | H53: 0/2C
A54: Plaine | B54: Tout venant Brut | D54: FABRICATION | E54: M0/16 | G54: CONCASSES | H54: 2/4C
A55: T120 | B55: Tout venant écreté | C55: =C54*0.95 -> 0 | D55: FABRICATION | E55: M0/8 | G55: CONCASSES | H55: 4/6C
A56: Débit mesuré en T/h | B56: GRANULOMETRIE | C56: TONNAGES | E56: GRANULOMETRIE | F56: TONNAGES | G56: CONCASSES | H56: 4/10C
A57: 50 | B57: 04 NATUREL | C57: =C53*D57 -> 0 | D57: 0.22 | E57: SABLE 0/4R | F57: =C57-(F53*'GNR ET ELEMENTS DE PROD'!L10)-('3'!F54*'GNR ET ELEMENTS DE PROD'!L7) -> 0 | G57: CONCASSES | H57: 6/10C
A58: 36 | B58: 4/8R | C58: =C53*D58 -> 0 | D58: 0.16 | E58: 4/8R | F58: =C58 -> 0 | G58: CONCASSES
A59: 42 | B59: 8/16R | C59: =C53*D59 -> 0 | D59: 0.18 | E59: 8/16R | F59: =C59-F54*'GNR ET ELEMENTS DE PROD'!N7 -> 0 | G59: CONCASSES
A60: 32 | B60: 11/22R | C60: =C53*D60 -> 0 | D60: 0.14 | E60: 11/22R | F60: =C60 -> 0 | G60: CONCASSES | H60: 0/4C | I60: =-F54*'GNR ET ELEMENTS DE PROD'!K7-F53*'GNR ET ELEMENTS DE PROD'!K10 -> 0
A61: 68 | B61: 22/80 | C61: =C53*D61 -> 0 | D61: 0.3 | E61: 22/80 | F61: =C63-I55-I5-ABS(I57) -> 0 | G61: CONCASSES | H61: 6,3/10 | I61: =+-'GNR ET ELEMENTS DE PROD'!M7*F54 -> 0
A62: =SUM(A57:B61) -> 228 | C62: =SUM(C57:C61) -> 0 | F62: =SUM(F57:F61) -> 0 | I62: =SUM(I53:I61) -> 0
A64: ACHATS
A68: ARRETS
A69: Horamètre | B69: CIRCUIT | C69: MACHINE | D69: CAUSE | E69: DUREE (en mn) | H69: COMMENTAIRES
E70: Panne | F70: Entretien | G70: AUTRE
A78: Observations (pour garder une trace d'un fait particulier)

Sheet 4
A1: RAPPORT JOURNALIER
A3: DATE : | B3: 2020-10-04
A4: EXPLOITATION DE: | B4: Osselle | D4: RESPONSABLE | F4: METEO
D5: Denis MARESCOT | F5: Pluie
D7: H DE PRODUCTIONS PREVUES | E7: 7
A8: POINTAGE PERSONNEL
A10: NOM PRENOM | B10: AFFECTATION | C10: Nombre d'heure | D10: AFFECTATION | E10: Nombre d'heure | F10: AFFECTATION | G10: Nombre d'heure | H10: TOTAL HORAIRE JOUR
A11: CRETIN Brigitte | B11: Bascule 200200 | C11: 7 | H11: =C11+E11+G11 -> 7
A12: DORKELD Didier | B12: Sur Engin Chargement client | C12: 3 | D12: 210258 Travaux divers sans engins | E12: 4 | H12: =C12+E12+G12 -> 7
H13: =C13+E13+G13 -> 0
H14: 0
H15: 0
H16: 0
H17: =C17+E17+G17 -> 0
H18: =C18+E18+G18 -> 0
H19: =C19+E19+G19 -> 0
H20: 0
H21: 0
H22: 0
A24: POINTAGE MATERIEL
A26: ENGINS DE PRODUCTION
A27: TYPE | B27: AFFECTATION HORAIRE | H27: TOTAL HORAIRE JOUR | I27: GNR | J27: HORAMETRE MATIN | K27: HORAMETRE SOIR | L27: CONTRÔLE
A28: Chargeur L566 - D3101014 | H28: =C28+E28+G28 -> 0 | J28: 16748 | K28: 16748 | L28: =IF(K28-J28=H28,"OK","FAUX") -> OK
A29: Chargeur 966G - D3102742 | B29: CHARGEMENT CLIENT /200200 | C29: 3 | H29: =C29+E29+G29 -> 3 | J29: 2393 | K29: 2396 | L29: =IF(K29-J29=H29,"OK","FAUX") -> OK
A30: CAMION MERCEDES OSSELLE-P2100552 | H30: 0 | L30: OK
H31: 0 | L31: OK
H32: 0 | L32: OK
H33: 0 | L33: OK
A35: VEHICULES DE LIAISON | B35: HORAMETRE MATIN | C35: SOIR | D35: GNR | E35: HEURE FONTIONNEMENT
A36: Minipelle SV17 - oss - D1002929 | B36: 2291 | C36: 2291 | E36: =C36-B36 -> 0
A37: Manitou M30 - C8100689 | B37: 7139 | C37: 7139 | E37: =C37-B37 -> 0
E38: 0
A41: RAPPORT DE PRODUCTION
B43: COMPTEUR HORAIRE | C43: H/FONCT
A44: PRIMAIRE (Production Plaine)
A45: SECONDAIRE (Production Bascule Tunnel)
A46: TERTIAIRE (frabrication concassée)
A47: BIG BAG
A48: Compteur d'eau
E51: BIG BAG
A52: PRIMAIRE | D52: SECONDAIRE | G52: TERTIAIRE
A53: ALIMENTATION | B53: Tout venant Brut | D53: FABRICATION | E53: 0/4SCL | G53: CONCASSES | H53: 0/2C
A54: Plaine | B54: Tout venant Brut | D54: FABRICATION | E54: M0/16 | G54: CONCASSES | H54: 2/4C
A55: T120 | B55: Tout venant écreté | C55: =C54*0.95 -> 0 | D55: FABRICATION | E55: M0/8 | G55: CONCASSES | H55: 4/6C
A56: Débit mesuré en T/h | B56: GRANULOMETRIE | C56: TONNAGES | E56: GRANULOMETRIE | F56: TONNAGES | G56: CONCASSES | H56: 4/10C
A57: 50 | B57: 04 NATUREL | C57: =C53*D57 -> 0 | D57: 0.22 | E57: SABLE 0/4R | F57: =C57-(F53*'GNR ET ELEMENTS DE PROD'!L10)-('4'!F54*'GNR ET ELEMENTS DE PROD'!L7) -> 0 | G57: CONCASSES | H57: 6/10C
A58: 36 | B58: 4/8R | C58: =C53*D58 -> 0 | D58: 0.16 | E58: 4/8R | F58: =C58 -> 0 | G58: CONCASSES
A59: 42 | B59: 8/16R | C59: =C53*D59 -> 0 | D59: 0.18 | E59: 8/16R | F59: =C59-F54*'GNR ET ELEMENTS DE PROD'!N7 -> 0 | G59: CONCASSES
A60: 32 | B60: 11/22R | C60: =C53*D60 -> 0 | D60: 0.14 | E60: 11/22R | F60: =C60 -> 0 | G60: CONCASSES | H60: 0/4C | I60: =-F54*'GNR ET ELEMENTS DE PROD'!K7-F53*'GNR ET ELEMENTS DE PROD'!K10 -> 0
A61: 68 | B61: 22/80 | C61: =C53*D61 -> 0 | D61: 0.3 | E61: 22/80 | F61: =C63-I55-I5-ABS(I57) -> 0 | G61: CONCASSES | H61: 6,3/10 | I61: =+-'GNR ET ELEMENTS DE PROD'!M7*F54 -> 0
A62: =SUM(A57:B61) -> 228 | C62: =SUM(C57:C61) -> 0 | F62: =SUM(F57:F61) -> 0 | I62: =SUM(I53:I61) -> 0
A64: ACHATS
A68: ARRETS
A69: Horamètre | B69: CIRCUIT | C69: MACHINE | D69: CAUSE | E69: DUREE (en mn) | H69: COMMENTAIRES
E70: Panne | F70: Entretien | G70: AUTRE
A78: Observations (pour garder une trace d'un fait particulier)

Sheet 5
A1: RAPPORT JOURNALIER
A3: DATE : | B3: 2020-10-05
A4: EXPLOITATION DE: | B4: Osselle | D4: RESPONSABLE | F4: METEO
D5: Denis MARESCOT | F5: Pluie
D7: H DE PRODUCTIONS PREVUES | E7: 8
A8: POINTAGE PERSONNEL
A10: NOM PRENOM | B10: AFFECTATION | C10: Nombre d'heure | D10: AFFECTATION | E10: Nombre d'heure | F10: AFFECTATION | G10: Nombre d'heure | H10: TOTAL HORAIRE JOUR
H11: =C11+E11+G11 -> 0
A12: DORKELD Didier | B12: Sur Engin Chargement client | C12: 2 | D12: 210258 Travaux divers sans engins | E12: 6 | H12: =C12+E12+G12 -> 8
A13: HOLTZ Mathieu | B13: Install secondaire 210256 | C13: 1.5 | D13: Sur Engin Destockage | E13: 4 | H13: =C13+E13+G13 -> 5.5
A14: LEBRUN Martial | B14: Bascule 200200 | C14: 8 | H14: 8
H15: 0
H16: 0
H17: =C17+E17+G17 -> 0
H18: =C18+E18+G18 -> 0
H19: =C19+E19+G19 -> 0
H20: 0
H21: 0
H22: 0
A24: POINTAGE MATERIEL
A26: ENGINS DE PRODUCTION
A27: TYPE | B27: AFFECTATION HORAIRE | H27: TOTAL HORAIRE JOUR | I27: GNR | J27: HORAMETRE MATIN | K27: HORAMETRE SOIR | L27: CONTRÔLE
A28: Chargeur L566 - D3101014 | B28: CHARGEMENT CLIENT /200200 | C28: 2 | H28: =C28+E28+G28 -> 2 | I28: 150 | J28: 16748 | K28: 16750 | L28: =IF(K28-J28=H28,"OK","FAUX") -> OK
A29: Chargeur 966G - D3102742 | B29: DESTOCKAGE/200308 | C29: 4 | H29: =C29+E29+G29 -> 4 | J29: 2396 | K29: 2400 | L29: =IF(K29-J29=H29,"OK","FAUX") -> OK
A30: CAMION MERCEDES OSSELLE-P2100552 | H30: 0 | L30: OK
H31: 0 | L31: OK
H32: 0 | L32: OK
H33: 0 | L33: OK
A35: VEHICULES DE LIAISON | B35: HORAMETRE MATIN | C35: SOIR | D35: GNR | E35: HEURE FONTIONNEMENT
A36: Minipelle SV17 - oss - D1002929 | B36: 2291 | C36: 2291 | E36: =C36-B36 -> 0
A37: Manitou M30 - C8100689 | B37: 7139 | C37: 7139 | E37: =C37-B37 -> 0
E38: 0
A41: RAPPORT DE PRODUCTION
B43: COMPTEUR HORAIRE | C43: H/FONCT
A44: PRIMAIRE (Production Plaine)
A45: SECONDAIRE (Production Bascule Tunnel) | B45: 11939 | C45: 4
A46: TERTIAIRE (frabrication concassée)
A47: BIG BAG
A48: Compteur d'eau
E51: BIG BAG
A52: PRIMAIRE | D52: SECONDAIRE | G52: TERTIAIRE
A53: ALIMENTATION | B53: Tout venant Brut | C53: 283 | D53: FABRICATION | E53: 0/4SCL | G53: CONCASSES | H53: 0/2C
A54: Plaine | B54: Tout venant Brut | D54: FABRICATION | E54: M0/16 | G54: CONCASSES | H54: 2/4C
A55: T120 | B55: Tout venant écreté | C55: =C54*0.95 -> 0 | D55: FABRICATION | E55: M0/8 | G55: CONCASSES | H55: 4/6C
A56: Débit mesuré en T/h | B56: GRANULOMETRIE | C56: TONNAGES | E56: GRANULOMETRIE | F56: TONNAGES | G56: CONCASSES | H56: 4/10C
A57: 50 | B57: 04 NATUREL | C57: =C53*D57 -> 62.26 | D57: 0.22 | E57: SABLE 0/4R | F57: =C57-(F53*'GNR ET ELEMENTS DE PROD'!L10)-('5'!F54*'GNR ET ELEMENTS DE PROD'!L7) -> 62.26 | G57: CONCASSES | H57: 6/10C
A58: 36 | B58: 4/8R | C58: =C53*D58 -> 45.28 | D58: 0.16 | E58: 4/8R | F58: =C58 -> 45.28 | G58: CONCASSES
A59: 42 | B59: 8/16R | C59: =C53*D59 -> 50.94 | D59: 0.18 | E59: 8/16R | F59: =C59-F54*'GNR ET ELEMENTS DE PROD'!N7 -> 50.94 | G59: CONCASSES
A60: 32 | B60: 11/22R | C60: =C53*D60 -> 39.62 | D60: 0.14 | E60: 11/22R | F60: =C60 -> 39.62 | G60: CONCASSES | H60: 0/4C | I60: =-F54*'GNR ET ELEMENTS DE PROD'!K7-F53*'GNR ET ELEMENTS DE PROD'!K10 -> 0
A61: 68 | B61: 22/80 | C61: =C53*D61 -> 84.9 | D61: 0.3 | E61: 22/80 | F61: =C63-I55-I5-ABS(I57) -> 0 | G61: CONCASSES | H61: 6,3/10 | I61: =+-'GNR ET ELEMENTS DE PROD'!M7*F54 -> 0
A62: =SUM(A57:B61) -> 228 | C62: =SUM(C57:C61) -> 283 | F62: =SUM(F57:F61) -> 198.1 | I62: =SUM(I53:I61) -> 0
A64: ACHATS
A68: ARRETS
A69: Horamètre | B69: CIRCUIT | C69: MACHINE | D69: CAUSE | E69: DUREE (en mn) | H69: COMMENTAIRES
E70: Panne | F70: Entretien | G70: AUTRE
A78: Observations (pour garder une trace d'un fait particulier)

Sheet 6
A1: RAPPORT JOURNALIER
A3: DATE : | B3: 2020-10-06
A4: EXPLOITATION DE: | B4: Osselle | D4: RESPONSABLE | F4: METEO
D5: Denis MARESCOT | F5: Humide
D7: H DE PRODUCTIONS PREVUES | E7: 8
A8: POINTAGE PERSONNEL
A10: NOM PRENOM | B10: AFFECTATION | C10: Nombre d'heure | D10: AFFECTATION | E10: Nombre d'heure | F10: AFFECTATION | G10: Nombre d'heure | H10: TOTAL HORAIRE JOUR
H11: =C11+E11+G11 -> 0
A12: DORKELD Didier | B12: Sur Engin Chargement client | C12: 2 | D12: 210258 Travaux divers sans engins | E12: 6 | H12: =C12+E12+G12 -> 8
A13: HOLTZ Mathieu | B13: Sur Engin Destockage | C13: 4 | D13: Install secondaire 210256 | E13: 4 | H13: =C13+E13+G13 -> 8
A14: LEBRUN Martial | B14: Bascule 200200 | C14: 8 | H14: 8
H15: 0
H16: 0
H17: =C17+E17+G17 -> 0
H18: =C18+E18+G18 -> 0
H19: =C19+E19+G19 -> 0
H20: 0
H21: 0
H22: 0
A24: POINTAGE MATERIEL
A26: ENGINS DE PRODUCTION
A27: TYPE | B27: AFFECTATION HORAIRE | H27: TOTAL HORAIRE JOUR | I27: GNR | J27: HORAMETRE MATIN | K27: HORAMETRE SOIR | L27: CONTRÔLE
A28: Chargeur L566 - D3101014 | B28: CHARGEMENT CLIENT /200200 | C28: 2 | H28: =C28+E28+G28 -> 2 | J28: 16750 | K28: 16752 | L28: =IF(K28-J28=H28,"OK","FAUX") -> OK
A29: Chargeur 966G - D3102742 | B29: DESTOCKAGE/200308 | C29: 4 | H29: =C29+E29+G29 -> 4 | J29: 2400 | K29: 2404 | L29: =IF(K29-J29=H29,"OK","FAUX") -> OK
A30: CAMION MERCEDES OSSELLE-P2100552 | H30: 0 | L30: OK
H31: 0 | L31: OK
H32: 0 | L32: OK
H33: 0 | L33: OK
A35: VEHICULES DE LIAISON | B35: HORAMETRE MATIN | C35: SOIR | D35: GNR | E35: HEURE FONTIONNEMENT
A36: Minipelle SV17 - oss - D1002929 | B36: 2291 | C36: 2291 | E36: =C36-B36 -> 0
A37: Manitou M30 - C8100689 | B37: 7139 | C37: 7139 | E37: =C37-B37 -> 0
E38: 0
A41: RAPPORT DE PRODUCTION
B43: COMPTEUR HORAIRE | C43: H/FONCT
A44: PRIMAIRE (Production Plaine)
A45: SECONDAIRE (Production Bascule Tunnel) | B45: 11941 | C45: 2
A46: TERTIAIRE (frabrication concassée)
A47: BIG BAG
A48: Compteur d'eau
E51: BIG BAG
A52: PRIMAIRE | D52: SECONDAIRE | G52: TERTIAIRE
A53: ALIMENTATION | B53: Tout venant Brut | C53: 135 | D53: FABRICATION | E53: 0/4SCL | G53: CONCASSES | H53: 0/2C
A54: Plaine | B54: Tout venant Brut | D54: FABRICATION | E54: M0/16 | G54: CONCASSES | H54: 2/4C
A55: T120 | B55: Tout venant écreté | C55: =C54*0.95 -> 0 | D55: FABRICATION | E55: M0/8 | G55: CONCASSES | H55: 4/6C
A56: Débit mesuré en T/h | B56: GRANULOMETRIE | C56: TONNAGES | E56: GRANULOMETRIE | F56: TONNAGES | G56: CONCASSES | H56: 4/10C
A57: 50 | B57: 04 NATUREL | C57: =C53*D57 -> 29.7 | D57: 0.22 | E57: SABLE 0/4R | F57: =C57-(F53*'GNR ET ELEMENTS DE PROD'!L10)-('6'!F54*'GNR ET ELEMENTS DE PROD'!L7) -> 29.7 | G57: CONCASSES | H57: 6/10C
A58: 36 | B58: 4/8R | C58: =C53*D58 -> 21.6 | D58: 0.16 | E58: 4/8R | F58: =C58 -> 21.6 | G58: CONCASSES
A59: 42 | B59: 8/16R | C59: =C53*D59 -> 24.3 | D59: 0.18 | E59: 8/16R | F59: =C59-F54*'GNR ET ELEMENTS DE PROD'!N7 -> 24.3 | G59: CONCASSES
A60: 32 | B60: 11/22R | C60: =C53*D60 -> 18.9 | D60: 0.14 | E60: 11/22R | F60: =C60 -> 18.9 | G60: CONCASSES | H60: 0/4C | I60: =-F54*'GNR ET ELEMENTS DE PROD'!K7-F53*'GNR ET ELEMENTS DE PROD'!K10 -> 0
A61: 68 | B61: 22/80 | C61: =C53*D61 -> 40.5 | D61: 0.3 | E61: 22/80 | F61: =C63-I55-I5-ABS(I57) -> 0 | G61: CONCASSES | H61: 6,3/10 | I61: =+-'GNR ET ELEMENTS DE PROD'!M7*F54 -> 0
A62: =SUM(A57:B61) -> 228 | C62: =SUM(C57:C61) -> 135 | F62: =SUM(F57:F61) -> 94.5 | I62: =SUM(I53:I61) -> 0
A64: ACHATS
A68: ARRETS
A69: Horamètre | B69: CIRCUIT | C69: MACHINE | D69: CAUSE | E69: DUREE (en mn) | H69: COMMENTAIRES
E70: Panne | F70: Entretien | G70: AUTRE
A78: Observations (pour garder une trace d'un fait particulier)

Sheet 7
A1: RAPPORT JOURNALIER
A3: DATE : | B3: 2020-10-07
A4: EXPLOITATION DE: | B4: Osselle | D4: RESPONSABLE | F4: METEO
D5: Denis MARESCOT | F5: Humide
D7: H DE PRODUCTIONS PREVUES | E7: 8
A8: POINTAGE PERSONNEL
A10: NOM PRENOM | B10: AFFECTATION | C10: Nombre d'heure | D10: AFFECTATION | E10: Nombre d'heure | F10: AFFECTATION | G10: Nombre d'heure | H10: TOTAL HORAIRE JOUR
H11: =C11+E11+G11 -> 0
A12: DORKELD Didier | B12: Sur Engin Chargement client | C12: 2 | D12: 210258 Travaux divers sans engins | E12: 6 | H12: =C12+E12+G12 -> 8
A13: HOLTZ Mathieu | B13: Sur Engin Travaux divers site | C13: 2 | D13: 210258 Travaux divers sans engins | E13: 6 | H13: =C13+E13+G13 -> 8
A14: LEBRUN Martial | B14: Bascule 200200 | C14: 8 | H14: 8
H15: 0
H16: 0
H17: =C17+E17+G17 -> 0
H18: =C18+E18+G18 -> 0
H19: =C19+E19+G19 -> 0
H20: 0
H21: 0
H22: 0
A24: POINTAGE MATERIEL
A26: ENGINS DE PRODUCTION
A27: TYPE | B27: AFFECTATION HORAIRE | H27: TOTAL HORAIRE JOUR | I27: GNR | J27: HORAMETRE MATIN | K27: HORAMETRE SOIR | L27: CONTRÔLE
A28: Chargeur L566 - D3101014 | B28: TRAVAUX DIVERS SUR PISTE 200950 | C28: 2 | H28: =C28+E28+G28 -> 2 | I28: 100 | J28: 16752 | K28: 16754 | L28: =IF(K28-J28=H28,"OK","FAUX") -> OK
A29: Chargeur 966G - D3102742 | B29: TRAVAUX DECH/210402 | C29: 2 | H29: =C29+E29+G29 -> 2 | I29: 150 | J29: 2404 | K29: 2406 | L29: =IF(K29-J29=H29,"OK","FAUX") -> OK
A30: CAMION MERCEDES OSSELLE-P2100552 | H30: 0 | L30: OK
H31: 0 | L31: OK
H32: 0 | L32: OK
H33: 0 | L33: OK
A35: VEHICULES DE LIAISON | B35: HORAMETRE MATIN | C35: SOIR | D35: GNR | E35: HEURE FONTIONNEMENT
A36: Minipelle SV17 - oss - D1002929 | B36: 2291 | C36: 2291 | E36: =C36-B36 -> 0
A37: Manitou M30 - C8100689 | B37: 7139 | C37: 7141 | E37: =C37-B37 -> 2
E38: 0
A41: RAPPORT DE PRODUCTION
B43: COMPTEUR HORAIRE | C43: H/FONCT
A44: PRIMAIRE (Production Plaine)
A45: SECONDAIRE (Production Bascule Tunnel)
A46: TERTIAIRE (frabrication concassée)
A47: BIG BAG
A48: Compteur d'eau
E51: BIG BAG
A52: PRIMAIRE | D52: SECONDAIRE | G52: TERTIAIRE
A53: ALIMENTATION | B53: Tout venant Brut | D53: FABRICATION | E53: 0/4SCL | G53: CONCASSES | H53: 0/2C
A54: Plaine | B54: Tout venant Brut | D54: FABRICATION | E54: M0/16 | G54: CONCASSES | H54: 2/4C
A55: T120 | B55: Tout venant écreté | C55: =C54*0.95 -> 0 | D55: FABRICATION | E55: M0/8 | G55: CONCASSES | H55: 4/6C
A56: Débit mesuré en T/h | B56: GRANULOMETRIE | C56: TONNAGES | E56: GRANULOMETRIE | F56: TONNAGES | G56: CONCASSES | H56: 4/10C
A57: 50 | B57: 04 NATUREL | C57: =C53*D57 -> 0 | D57: 0.22 | E57: SABLE 0/4R | F57: =C57-(F53*'GNR ET ELEMENTS DE PROD'!L10)-('7'!F54*'GNR ET ELEMENTS DE PROD'!L7) -> 0 | G57: CONCASSES | H57: 6/10C
A58: 36 | B58: 4/8R | C58: =C53*D58 -> 0 | D58: 0.16 | E58: 4/8R | F58: =C58 -> 0 | G58: CONCASSES | H58: 22/80 | I58: 57.62
A59: 42 | B59: 8/16R | C59: =C53*D59 -> 0 | D59: 0.18 | E59: 8/16R | F59: =C59-F54*'GNR ET ELEMENTS DE PROD'!N7 -> 0 | G59: CONCASSES | H59: 0/4C | I59: 29.82
A60: 32 | B60: 11/22R | C60: =C53*D60 -> 0 | D60: 0.14 | E60: 11/22R | F60: =C60 -> 0 | G60: CONCASSES | H60: 0/4C | I60: =-F54*'GNR ET ELEMENTS DE PROD'!K7-F53*'GNR ET ELEMENTS DE PROD'!K10 -> 0
A61: 68 | B61: 22/80 | C61: =C53*D61 -> 0 | D61: 0.3 | E61: 22/80 | F61: =C63-I55-I5-ABS(I57) -> 0 | G61: CONCASSES | H61: 6,3/10 | I61: =+-'GNR ET ELEMENTS DE PROD'!M7*F54 -> 0
A62: =SUM(A57:B61) -> 228 | C62: =SUM(C57:C61) -> 0 | F62: =SUM(F57:F61) -> 0 | I62: =SUM(I53:I61) -> 87.44
A64: ACHATS
A68: ARRETS
A69: Horamètre | B69: CIRCUIT | C69: MACHINE | D69: CAUSE | E69: DUREE (en mn) | H69: COMMENTAIRES
E70: Panne | F70: Entretien | G70: AUTRE
A78: Observations (pour garder une trace d'un fait particulier)

Sheet 8
A1: RAPPORT JOURNALIER
A3: DATE : | B3: 2020-10-08
A4: EXPLOITATION DE: | B4: Osselle | D4: RESPONSABLE | F4: METEO
D5: Denis MARESCOT | F5: Humide
D7: H DE PRODUCTIONS PREVUES | E7: 8
A8: POINTAGE PERSONNEL
A10: NOM PRENOM | B10: AFFECTATION | C10: Nombre d'heure | D10: AFFECTATION | E10: Nombre d'heure | F10: AFFECTATION | G10: Nombre d'heure | H10: TOTAL HORAIRE JOUR
A11: CRETIN Brigitte | H11: =C11+E11+G11 -> 0
A12: DORKELD Didier | B12: Sur Engin Chargement client | C12: 2 | D12: 210258 Travaux divers sans engins | E12: 6 | H12: =C12+E12+G12 -> 8
A13: HOLTZ Mathieu | B13: Sur Engin Destockage | C13: 5 | D13: Install secondaire 210256 | E13: 3 | H13: =C13+E13+G13 -> 8
A14: LEBRUN Martial | B14: Bascule 200200 | C14: 8 | H14: 8
H15: 0
H16: 0
H17: =C17+E17+G17 -> 0
H18: =C18+E18+G18 -> 0
H19: =C19+E19+G19 -> 0
H20: 0
H21: 0
H22: 0
A24: POINTAGE MATERIEL
A26: ENGINS DE PRODUCTION
A27: TYPE | B27: AFFECTATION HORAIRE | H27: TOTAL HORAIRE JOUR | I27: GNR | J27: HORAMETRE MATIN | K27: HORAMETRE SOIR | L27: CONTRÔLE
A28: Chargeur L566 - D3101014 | B28: CHARGEMENT CLIENT /200200 | C28: 2 | H28: =C28+E28+G28 -> 2 | J28: 16754 | K28: 16756 | L28: =IF(K28-J28=H28,"OK","FAUX") -> OK
A29: Chargeur 966G - D3102742 | B29: DESTOCKAGE/200308 | C29: 5 | H29: =C29+E29+G29 -> 5 | J29: 2406 | K29: 2411 | L29: =IF(K29-J29=H29,"OK","FAUX") -> OK
A30: CAMION MERCEDES OSSELLE-P2100552 | H30: 0 | L30: OK
H31: 0 | L31: OK
H32: 0 | L32: OK
H33: 0 | L33: OK
A35: VEHICULES DE LIAISON | B35: HORAMETRE MATIN | C35: SOIR | D35: GNR | E35: HEURE FONTIONNEMENT
A36: Minipelle SV17 - oss - D1002929 | B36: 2291 | C36: 2291 | E36: =C36-B36 -> 0
A37: Manitou M30 - C8100689 | B37: 7141 | C37: 7141 | E37: =C37-B37 -> 0
E38: 0
A41: RAPPORT DE PRODUCTION
B43: COMPTEUR HORAIRE | C43: H/FONCT
A44: PRIMAIRE (Production Plaine)
A45: SECONDAIRE (Production Bascule Tunnel)
A46: TERTIAIRE (frabrication concassée)
A47: BIG BAG
A48: Compteur d'eau
E51: BIG BAG
A52: PRIMAIRE | D52: SECONDAIRE | G52: TERTIAIRE
A53: ALIMENTATION | B53: Tout venant Brut | D53: FABRICATION | E53: 0/4SCL | G53: CONCASSES | H53: 0/2C
A54: Plaine | B54: Tout venant Brut | D54: FABRICATION | E54: M0/16 | G54: CONCASSES | H54: 2/4C
A55: T120 | B55: Tout venant écreté | C55: =C54*0.95 -> 0 | D55: FABRICATION | E55: M0/8 | G55: CONCASSES | H55: 4/6C
A56: Débit mesuré en T/h | B56: GRANULOMETRIE | C56: TONNAGES | E56: GRANULOMETRIE | F56: TONNAGES | G56: CONCASSES | H56: 4/10C | I56: 266.24
A57: 50 | B57: 04 NATUREL | C57: =C53*D57 -> 0 | D57: 0.22 | E57: SABLE 0/4R | F57: =C57-(F53*'GNR ET ELEMENTS DE PROD'!L10)-('8'!F54*'GNR ET ELEMENTS DE PROD'!L7) -> 0 | G57: CONCASSES | H57: 6/10C
A58: 36 | B58: 4/8R | C58: =C53*D58 -> 0 | D58: 0.16 | E58: 4/8R | F58: =C58 -> 0 | G58: CONCASSES | I58: 428.28
A59: 42 | B59: 8/16R | C59: =C53*D59 -> 0 | D59: 0.18 | E59: 8/16R | F59: =C59-F54*'GNR ET ELEMENTS DE PROD'!N7 -> 0 | G59: CONCASSES | I59: 109.38
A60: 32 | B60: 11/22R | C60: =C53*D60 -> 0 | D60: 0.14 | E60: 11/22R | F60: =C60 -> 0 | G60: CONCASSES | H60: 0/4C | I60: =-F54*'GNR ET ELEMENTS DE PROD'!K7-F53*'GNR ET ELEMENTS DE PROD'!K10 -> 0
A61: 68 | B61: 22/80 | C61: =C53*D61 -> 0 | D61: 0.3 | E61: 22/80 | F61: =C63-I55-I5-ABS(I57) -> 0 | G61: CONCASSES | H61: 6,3/10 | I61: =+-'GNR ET ELEMENTS DE PROD'!M7*F54 -> 0
A62: =SUM(A57:B61) -> 228 | C62: =SUM(C57:C61) -> 0 | F62: =SUM(F57:F61) -> 0 | I62: =SUM(I53:I61) -> 803.9
A64: ACHATS
A68: ARRETS
A69: Horamètre | B69: CIRCUIT | C69: MACHINE | D69: CAUSE | E69: DUREE (en mn) | H69: COMMENTAIRES
E70: Panne | F70: Entretien | G70: AUTRE
A78: Observations (pour garder une trace d'un fait particulier)

Sheet 9
A1: RAPPORT JOURNALIER
A3: DATE : | B3: 2020-10-09
A4: EXPLOITATION DE: | B4: Osselle | D4: RESPONSABLE | F4: METEO
D5: Denis MARESCOT
D7: H DE PRODUCTIONS PREVUES | E7: 7
A8: POINTAGE PERSONNEL
A10: NOM PRENOM | B10: AFFECTATION | C10: Nombre d'heure | D10: AFFECTATION | E10: Nombre d'heure | F10: AFFECTATION | G10: Nombre d'heure | H10: TOTAL HORAIRE JOUR
A11: CRETIN Brigitte | H11: =C11+E11+G11 -> 0
A12: DORKELD Didier | B12: 210258 Travaux divers sans engins | C12: 3 | D12: Sur Engin Chargement client | E12: 3 | F12: Sur Engin Travaux divers site | G12: 1 | H12: =C12+E12+G12 -> 7
A13: HOLTZ Mathieu | B13: Install secondaire 210256 | C13: 3.5 | D13: Sur Engin Destockage | E13: 3.5 | H13: =C13+E13+G13 -> 7
A14: LEBRUN Martial | B14: Bascule 200200 | C14: 7 | H14: 7
H15: 0
H16: 0
H17: =C17+E17+G17 -> 0
H18: =C18+E18+G18 -> 0
H19: =C19+E19+G19 -> 0
H20: 0
H21: 0
H22: 0
A24: POINTAGE MATERIEL
A26: ENGINS DE PRODUCTION
A27: TYPE | B27: AFFECTATION HORAIRE | H27: TOTAL HORAIRE JOUR | I27: GNR | J27: HORAMETRE MATIN | K27: HORAMETRE SOIR | L27: CONTRÔLE
A28: Chargeur L566 - D3101014 | B28: TRAVAUX DIVERS SUR PISTE 200950 | C28: 1 | D28: CHARGEMENT CLIENT /200200 | E28: 3 | H28: =C28+E28+G28 -> 4 | J28: 16756 | K28: 16760 | L28: =IF(K28-J28=H28,"OK","FAUX") -> OK
A29: Chargeur 966G - D3102742 | B29: TRAVAUX DIVERS SUR PISTE 200950 | C29: 1 | D29: DESTOCKAGE/200308 | E29: 4 | H29: =C29+E29+G29 -> 5 | I29: 150 | J29: 2411 | K29: 2416 | L29: =IF(K29-J29=H29,"OK","FAUX") -> OK
A30: CAMION MERCEDES OSSELLE-P2100552 | H30: 0 | L30: OK
H31: 0 | L31: OK
H32: 0 | L32: OK
H33: 0 | L33: OK
A35: VEHICULES DE LIAISON | B35: HORAMETRE MATIN | C35: SOIR | D35: GNR | E35: HEURE FONTIONNEMENT
A36: Minipelle SV17 - oss - D1002929 | B36: 2291 | C36: 2291 | E36: =C36-B36 -> 0
A37: Manitou M30 - C8100689 | B37: 7141 | C37: 7141 | E37: =C37-B37 -> 0
E38: 0
A41: RAPPORT DE PRODUCTION
B43: COMPTEUR HORAIRE | C43: H/FONCT
A44: PRIMAIRE (Production Plaine)
A45: SECONDAIRE (Production Bascule Tunnel) | B45: 11846 | C45: 7
A46: TERTIAIRE (frabrication concassée)
A47: BIG BAG
A48: Compteur d'eau
E51: BIG BAG
A52: PRIMAIRE | D52: SECONDAIRE | G52: TERTIAIRE
A53: ALIMENTATION | B53: Tout venant Brut | C53: 381 | D53: FABRICATION | E53: 0/4SCL | G53: CONCASSES | H53: 0/2C
A54: Plaine | B54: Tout venant Brut | D54: FABRICATION | E54: M0/16 | G54: CONCASSES | H54: 2/4C
A55: T120 | B55: Tout venant écreté | C55: =C54*0.95 -> 0 | D55: FABRICATION | E55: M0/8 | G55: CONCASSES | H55: 4/6C
A56: Débit mesuré en T/h | B56: GRANULOMETRIE | C56: TONNAGES | E56: GRANULOMETRIE | F56: TONNAGES | G56: CONCASSES | H56: 4/10C | I56: 181.86
A57: 50 | B57: 04 NATUREL | C57: =C53*D57 -> 83.82 | D57: 0.22 | E57: SABLE 0/4R | F57: =C57-(F53*'GNR ET ELEMENTS DE PROD'!L10)-('9'!F54*'GNR ET ELEMENTS DE PROD'!L7) -> 83.82 | G57: CONCASSES | H57: 6/10C
A58: 36 | B58: 4/8R | C58: =C53*D58 -> 60.96 | D58: 0.16 | E58: 4/8R | F58: =C58 -> 60.96 | G58: CONCASSES | H58: 22/80 | I58: 381.54
A59: 42 | B59: 8/16R | C59: =C53*D59 -> 68.58 | D59: 0.18 | E59: 8/16R | F59: =C59-F54*'GNR ET ELEMENTS DE PROD'!N7 -> 68.58 | G59: CONCASSES | H59: 0/4C | I59: 234.84
A60: 32 | B60: 11/22R | C60: =C53*D60 -> 53.34 | D60: 0.14 | E60: 11/22R | F60: =C60 -> 53.34 | G60: CONCASSES | H60: 0/4C | I60: =-F54*'GNR ET ELEMENTS DE PROD'!K7-F53*'GNR ET ELEMENTS DE PROD'!K10 -> 0
A61: 68 | B61: 22/80 | C61: =C53*D61 -> 114.3 | D61: 0.3 | E61: 22/80 | F61: =C63-I55-I5-ABS(I57) -> 0 | G61: CONCASSES | H61: 6,3/10 | I61: =+-'GNR ET ELEMENTS DE PROD'!M7*F54 -> 0
A62: =SUM(A57:B61) -> 228 | C62: =SUM(C57:C61) -> 381 | F62: =SUM(F57:F61) -> 266.7 | I62: =SUM(I53:I61) -> 798.24
A64: ACHATS
A68: ARRETS
A69: Horamètre | B69: CIRCUIT | C69: MACHINE | D69: CAUSE | E69: DUREE (en mn) | H69: COMMENTAIRES
E70: Panne | F70: Entretien | G70: AUTRE
A78: Observations (pour garder une trace d'un fait particulier)

Sheet 10
A1: RAPPORT JOURNALIER
A3: DATE :
A4: EXPLOITATION DE: | D4: RESPONSABLE | F4: METEO
D7: H DE PRODUCTIONS PREVUES
A8: POINTAGE PERSONNEL
A10: NOM PRENOM | B10: AFFECTATION | C10: Nombre d'heure | D10: AFFECTATION | E10: Nombre d'heure | F10: AFFECTATION | G10: Nombre d'heure | H10: TOTAL HORAIRE JOUR
H11: =C11+E11+G11 -> 0
H12: =C12+E12+G12 -> 0
H13: =C13+E13+G13 -> 0
H14: 0
H15: 0
H16: 0
H17: =C17+E17+G17 -> 0
H18: =C18+E18+G18 -> 0
H19: =C19+E19+G19 -> 0
H20: 0
H21: 0
H22: 0
A24: POINTAGE MATERIEL
A26: ENGINS DE PRODUCTION
A27: TYPE | B27: AFFECTATION HORAIRE | H27: TOTAL HORAIRE JOUR | I27: GNR | J27: HORAMETRE MATIN | K27: HORAMETRE SOIR | L27: CONTRÔLE
H28: =C28+E28+G28 -> 0 | L28: =IF(K28-J28=H28,"OK","FAUX") -> OK
H29: =C29+E29+G29 -> 0 | L29: =IF(K29-J29=H29,"OK","FAUX") -> OK
H30: 0 | L30: OK
H31: 0 | L31: OK
H32: 0 | L32: OK
H33: 0 | L33: OK
A35: VEHICULES DE LIAISON | B35: HORAMETRE MATIN | C35: SOIR | D35: GNR | E35: HEURE FONTIONNEMENT
E36: =C36-B36 -> 0
E37: =C37-B37 -> 0
E38: 0
A41: RAPPORT DE PRODUCTION
B43: COMPTEUR HORAIRE | C43: H/FONCT
A44: PRIMAIRE (Production Plaine)
A45: SECONDAIRE (Production Bascule Tunnel)
A46: TERTIAIRE (frabrication concassée)
A47: BIG BAG
A48: Compteur d'eau
E51: BIG BAG
A52: PRIMAIRE | D52: SECONDAIRE | G52: TERTIAIRE
A53: ALIMENTATION | B53: Tout venant Brut | D53: FABRICATION | E53: 0/4SCL | G53: CONCASSES | H53: 0/2C
A54: Plaine | B54: Tout venant Brut | D54: FABRICATION | E54: M0/16 | G54: CONCASSES | H54: 2/4C
A55: T120 | B55: Tout venant écreté | C55: =C54*0.95 -> 0 | D55: FABRICATION | E55: M0/8 | G55: CONCASSES | H55: 4/6C
A56: Débit mesuré en T/h | B56: GRANULOMETRIE | C56: TONNAGES | E56: GRANULOMETRIE | F56: TONNAGES | G56: CONCASSES | H56: 4/10C
A57: 50 | B57: 04 NATUREL | C57: =C53*D57 -> 0 | D57: 0.22 | E57: SABLE 0/4R | F57: =C57-(F53*'GNR ET ELEMENTS DE PROD'!L10)-('10'!F54*'GNR ET ELEMENTS DE PROD'!L7) -> 0 | G57: CONCASSES | H57: 6/10C
A58: 36 | B58: 4/8R | C58: =C53*D58 -> 0 | D58: 0.16 | E58: 4/8R | F58: =C58 -> 0 | G58: CONCASSES
A59: 42 | B59: 8/16R | C59: =C53*D59 -> 0 | D59: 0.18 | E59: 8/16R | F59: =C59-F54*'GNR ET ELEMENTS DE PROD'!N7 -> 0 | G59: CONCASSES
A60: 32 | B60: 11/22R | C60: =C53*D60 -> 0 | D60: 0.14 | E60: 11/22R | F60: =C60 -> 0 | G60: CONCASSES | H60: 0/4C | I60: =-F54*'GNR ET ELEMENTS DE PROD'!K7-F53*'GNR ET ELEMENTS DE PROD'!K10 -> 0
A61: 68 | B61: 22/80 | C61: =C53*D61 -> 0 | D61: 0.3 | E61: 22/80 | F61: =C63-I55-I5-ABS(I57) -> 0 | G61: CONCASSES | H61: 6,3/10 | I61: =+-'GNR ET ELEMENTS DE PROD'!M7*F54 -> 0
A62: =SUM(A57:B61) -> 228 | C62: =SUM(C57:C61) -> 0 | F62: =SUM(F57:F61) -> 0 | I62: =SUM(I53:I61) -> 0
A64: ACHATS
A68: ARRETS
A69: Horamètre | B69: CIRCUIT | C69: MACHINE | D69: CAUSE | E69: DUREE (en mn) | H69: COMMENTAIRES
E70: Panne | F70: Entretien | G70: AUTRE
A78: Observations (pour garder une trace d'un fait particulier)

Sheet 11
A1: RAPPORT JOURNALIER
A3: DATE :
A4: EXPLOITATION DE: | D4: RESPONSABLE | F4: METEO
D7: H DE PRODUCTIONS PREVUES
A8: POINTAGE PERSONNEL
A10: NOM PRENOM | B10: AFFECTATION | C10: Nombre d'heure | D10: AFFECTATION | E10: Nombre d'heure | F10: AFFECTATION | G10: Nombre d'heure | H10: TOTAL HORAIRE JOUR
H11: =C11+E11+G11 -> 0
H12: =C12+E12+G12 -> 0
H13: =C13+E13+G13 -> 0
H14: 0
H15: 0
H16: 0
H17: =C17+E17+G17 -> 0
H18: =C18+E18+G18 -> 0
H19: =C19+E19+G19 -> 0
H20: 0
H21: 0
H22: 0
A24: POINTAGE MATERIEL
A26: ENGINS DE PRODUCTION
A27: TYPE | B27: AFFECTATION HORAIRE | H27: TOTAL HORAIRE JOUR | I27: GNR | J27: HORAMETRE MATIN | K27: HORAMETRE SOIR | L27: CONTRÔLE
H28: =C28+E28+G28 -> 0 | L28: =IF(K28-J28=H28,"OK","FAUX") -> OK
H29: =C29+E29+G29 -> 0 | L29: =IF(K29-J29=H29,"OK","FAUX") -> OK
H30: 0 | L30: OK
H31: 0 | L31: OK
H32: 0 | L32: OK
H33: 0 | L33: OK
A35: VEHICULES DE LIAISON | B35: HORAMETRE MATIN | C35: SOIR | D35: GNR | E35: HEURE FONTIONNEMENT
E36: =C36-B36 -> 0
E37: =C37-B37 -> 0
E38: 0
A41: RAPPORT DE PRODUCTION
B43: COMPTEUR HORAIRE | C43: H/FONCT
A44: PRIMAIRE (Production Plaine)
A45: SECONDAIRE (Production Bascule Tunnel)
A46: TERTIAIRE (frabrication concassée)
A47: BIG BAG
A48: Compteur d'eau
E51: BIG BAG
A52: PRIMAIRE | D52: SECONDAIRE | G52: TERTIAIRE
A53: ALIMENTATION | B53: Tout venant Brut | D53: FABRICATION | E53: 0/4SCL | G53: CONCASSES | H53: 0/2C
A54: Plaine | B54: Tout venant Brut | D54: FABRICATION | E54: M0/16 | G54: CONCASSES | H54: 2/4C
A55: T120 | B55: Tout venant écreté | C55: =C54*0.95 -> 0 | D55: FABRICATION | E55: M0/8 | G55: CONCASSES | H55: 4/6C
A56: Débit mesuré en T/h | B56: GRANULOMETRIE | C56: TONNAGES | E56: GRANULOMETRIE | F56: TONNAGES | G56: CONCASSES | H56: 4/10C
A57: 50 | B57: 04 NATUREL | C57: =C53*D57 -> 0 | D57: 0.22 | E57: SABLE 0/4R | F57: =C57-(F53*'GNR ET ELEMENTS DE PROD'!L10)-('11'!F54*'GNR ET ELEMENTS DE PROD'!L7) -> 0 | G57: CONCASSES | H57: 6/10C
A58: 36 | B58: 4/8R | C58: =C53*D58 -> 0 | D58: 0.16 | E58: 4/8R | F58: =C58 -> 0 | G58: CONCASSES
A59: 42 | B59: 8/16R | C59: =C53*D59 -> 0 | D59: 0.18 | E59: 8/16R | F59: =C59-F54*'GNR ET ELEMENTS DE PROD'!N7 -> 0 | G59: CONCASSES
A60: 32 | B60: 11/22R | C60: =C53*D60 -> 0 | D60: 0.14 | E60: 11/22R | F60: =C60 -> 0 | G60: CONCASSES | H60: 0/4C | I60: =-F54*'GNR ET ELEMENTS DE PROD'!K7-F53*'GNR ET ELEMENTS DE PROD'!K10 -> 0
A61: 68 | B61: 22/80 | C61: =C53*D61 -> 0 | D61: 0.3 | E61: 22/80 | F61: =C63-I55-I5-ABS(I57) -> 0 | G61: CONCASSES | H61: 6,3/10 | I61: =+-'GNR ET ELEMENTS DE PROD'!M7*F54 -> 0
A62: =SUM(A57:B61) -> 228 | C62: =SUM(C57:C61) -> 0 | F62: =SUM(F57:F61) -> 0 | I62: =SUM(I53:I61) -> 0
A64: ACHATS
A68: ARRETS
A69: Horamètre | B69: CIRCUIT | C69: MACHINE | D69: CAUSE | E69: DUREE (en mn) | H69: COMMENTAIRES
E70: Panne | F70: Entretien | G70: AUTRE
A78: Observations (pour garder une trace d'un fait particulier)

Sheet 12
A1: RAPPORT JOURNALIER
A3: DATE : | B3: 2020-10-12
A4: EXPLOITATION DE: | B4: Osselle | D4: RESPONSABLE | F4: METEO
D5: Denis MARESCOT
D7: H DE PRODUCTIONS PREVUES | E7: 8
A8: POINTAGE PERSONNEL
A10: NOM PRENOM | B10: AFFECTATION | C10: Nombre d'heure | D10: AFFECTATION | E10: Nombre d'heure | F10: AFFECTATION | G10: Nombre d'heure | H10: TOTAL HORAIRE JOUR
A11: CRETIN Brigitte | B11: Bascule 200200 | C11: 8 | H11: =C11+E11+G11 -> 8
A12: DORKELD Didier | B12: 210258 Travaux divers sans engins | C12: 3 | D12: Sur Engin Chargement client | E12: 5 | H12: =C12+E12+G12 -> 8
H13: =C13+E13+G13 -> 0
H14: 0
H15: 0
H16: 0
H17: =C17+E17+G17 -> 0
H18: =C18+E18+G18 -> 0
H19: =C19+E19+G19 -> 0
H20: 0
H21: 0
H22: 0
A24: POINTAGE MATERIEL
A26: ENGINS DE PRODUCTION
A27: TYPE | B27: AFFECTATION HORAIRE | H27: TOTAL HORAIRE JOUR | I27: GNR | J27: HORAMETRE MATIN | K27: HORAMETRE SOIR | L27: CONTRÔLE
A28: Chargeur L566 - D3101014 | B28: TRAVAUX DIVERS SUR PISTE 200950 | C28: 3 | H28: =C28+E28+G28 -> 3 | I28: 305 | J28: 16760 | K28: 16763 | L28: =IF(K28-J28=H28,"OK","FAUX") -> OK
A29: Chargeur 966G - D3102742 | B29: CHARGEMENT CLIENT /200200 | C29: 3 | H29: =C29+E29+G29 -> 3 | J29: 2416 | K29: 2419 | L29: =IF(K29-J29=H29,"OK","FAUX") -> OK
A30: CAMION MERCEDES OSSELLE-P2100552 | H30: 0 | L30: OK
H31: 0 | L31: OK
H32: 0 | L32: OK
H33: 0 | L33: OK
A35: VEHICULES DE LIAISON | B35: HORAMETRE MATIN | C35: SOIR | D35: GNR | E35: HEURE FONTIONNEMENT
A36: Minipelle SV17 - oss - D1002929 | B36: 2291 | C36: 2291 | E36: =C36-B36 -> 0
A37: Manitou M30 - C8100689 | B37: 7141 | C37: 7141 | E37: =C37-B37 -> 0
E38: 0
A41: RAPPORT DE PRODUCTION
B43: COMPTEUR HORAIRE | C43: H/FONCT
A44: PRIMAIRE (Production Plaine)
A45: SECONDAIRE (Production Bascule Tunnel)
A46: TERTIAIRE (frabrication concassée)
A47: BIG BAG
A48: Compteur d'eau
E51: BIG BAG
A52: PRIMAIRE | D52: SECONDAIRE | G52: TERTIAIRE
A53: ALIMENTATION | B53: Tout venant Brut | D53: FABRICATION | E53: 0/4SCL | G53: CONCASSES | H53: 0/2C
A54: Plaine | B54: Tout venant Brut | D54: FABRICATION | E54: M0/16 | G54: CONCASSES | H54: 2/4C
A55: T120 | B55: Tout venant écreté | C55: =C54*0.95 -> 0 | D55: FABRICATION | E55: M0/8 | G55: CONCASSES | H55: 4/6C
A56: Débit mesuré en T/h | B56: GRANULOMETRIE | C56: TONNAGES | E56: GRANULOMETRIE | F56: TONNAGES | G56: CONCASSES | H56: 4/10C
A57: 50 | B57: 04 NATUREL | C57: =C53*D57 -> 0 | D57: 0.22 | E57: SABLE 0/4R | F57: =C57-(F53*'GNR ET ELEMENTS DE PROD'!L10)-('12'!F54*'GNR ET ELEMENTS DE PROD'!L7) -> 0 | G57: CONCASSES | H57: 6/10C
A58: 36 | B58: 4/8R | C58: =C53*D58 -> 0 | D58: 0.16 | E58: 4/8R | F58: =C58 -> 0 | G58: CONCASSES | H58: 22/80 | I58: 237.08
A59: 42 | B59: 8/16R | C59: =C53*D59 -> 0 | D59: 0.18 | E59: 8/16R | F59: =C59-F54*'GNR ET ELEMENTS DE PROD'!N7 -> 0 | G59: CONCASSES | H59: 0/4C CHEM | I59: 206.48
A60: 32 | B60: 11/22R | C60: =C53*D60 -> 0 | D60: 0.14 | E60: 11/22R | F60: =C60 -> 0 | G60: CONCASSES | H60: 0/4C | I60: =-F54*'GNR ET ELEMENTS DE PROD'!K7-F53*'GNR ET ELEMENTS DE PROD'!K10 -> 0
A61: 68 | B61: 22/80 | C61: =C53*D61 -> 0 | D61: 0.3 | E61: 22/80 | F61: =C63-I55-I5-ABS(I57) -> 0 | G61: CONCASSES | H61: 6,3/10 | I61: =+-'GNR ET ELEMENTS DE PROD'!M7*F54 -> 0
A62: =SUM(A57:B61) -> 228 | C62: =SUM(C57:C61) -> 0 | F62: =SUM(F57:F61) -> 0 | I62: =SUM(I53:I61) -> 443.56
A64: ACHATS
A68: ARRETS
A69: Horamètre | B69: CIRCUIT | C69: MACHINE | D69: CAUSE | E69: DUREE (en mn) | H69: COMMENTAIRES
E70: Panne | F70: Entretien | G70: AUTRE
A78: Observations (pour garder une trace d'un fait particulier)

Sheet 13
A1: RAPPORT JOURNALIER
A3: DATE : | B3: 2020-10-13
A4: EXPLOITATION DE: | B4: Osselle | D4: RESPONSABLE | F4: METEO
D5: Denis MARESCOT
D7: H DE PRODUCTIONS PREVUES | E7: 8
A8: POINTAGE PERSONNEL
A10: NOM PRENOM | B10: AFFECTATION | C10: Nombre d'heure | D10: AFFECTATION | E10: Nombre d'heure | F10: AFFECTATION | G10: Nombre d'heure | H10: TOTAL HORAIRE JOUR
A11: CRETIN Brigitte | B11: Bascule 200200 | C11: 8 | H11: =C11+E11+G11 -> 8
A12: DORKELD Didier | B12: 210258 Travaux divers sans engins | C12: 2 | D12: Sur Engin Chargement client | E12: 6 | H12: =C12+E12+G12 -> 8
H13: =C13+E13+G13 -> 0
H14: 0
H15: 0
H16: 0
H17: =C17+E17+G17 -> 0
H18: =C18+E18+G18 -> 0
H19: =C19+E19+G19 -> 0
H20: 0
H21: 0
H22: 0
A24: POINTAGE MATERIEL
A26: ENGINS DE PRODUCTION
A27: TYPE | B27: AFFECTATION HORAIRE | H27: TOTAL HORAIRE JOUR | I27: GNR | J27: HORAMETRE MATIN | K27: HORAMETRE SOIR | L27: CONTRÔLE
A28: Chargeur L566 - D3101014 | H28: =C28+E28+G28 -> 0 | J28: 16763 | K28: 16763 | L28: =IF(K28-J28=H28,"OK","FAUX") -> OK
A29: Chargeur 966G - D3102742 | B29: CHARGEMENT CLIENT /200200 | C29: 3 | H29: =C29+E29+G29 -> 3 | J29: 2419 | K29: 2422 | L29: =IF(K29-J29=H29,"OK","FAUX") -> OK
A30: CAMION MERCEDES OSSELLE-P2100552 | H30: 0 | L30: OK
H31: 0 | L31: OK
H32: 0 | L32: OK
H33: 0 | L33: OK
A35: VEHICULES DE LIAISON | B35: HORAMETRE MATIN | C35: SOIR | D35: GNR | E35: HEURE FONTIONNEMENT
A36: Minipelle SV17 - oss - D1002929 | B36: 2291 | C36: 2291 | E36: =C36-B36 -> 0
A37: Manitou M30 - C8100689 | B37: 7141 | C37: 7146 | E37: =C37-B37 -> 5
E38: 0
A41: RAPPORT DE PRODUCTION
B43: COMPTEUR HORAIRE | C43: H/FONCT
A44: PRIMAIRE (Production Plaine)
A45: SECONDAIRE (Production Bascule Tunnel)
A46: TERTIAIRE (frabrication concassée)
A47: BIG BAG
A48: Compteur d'eau
E51: BIG BAG
A52: PRIMAIRE | D52: SECONDAIRE | G52: TERTIAIRE
A53: ALIMENTATION | B53: Tout venant Brut | D53: FABRICATION | E53: 0/4SCL | G53: CONCASSES | H53: 0/2C
A54: Plaine | B54: Tout venant Brut | D54: FABRICATION | E54: M0/16 | G54: CONCASSES | H54: 2/4C
A55: T120 | B55: Tout venant écreté | C55: =C54*0.95 -> 0 | D55: FABRICATION | E55: M0/8 | G55: CONCASSES | H55: 4/6C
A56: Débit mesuré en T/h | B56: GRANULOMETRIE | C56: TONNAGES | E56: GRANULOMETRIE | F56: TONNAGES | G56: CONCASSES | H56: 4/10C
A57: 50 | B57: 04 NATUREL | C57: =C53*D57 -> 0 | D57: 0.22 | E57: SABLE 0/4R | F57: =C57-(F53*'GNR ET ELEMENTS DE PROD'!L10)-('13'!F54*'GNR ET ELEMENTS DE PROD'!L7) -> 0 | G57: CONCASSES | H57: 6/10C
A58: 36 | B58: 4/8R | C58: =C53*D58 -> 0 | D58: 0.16 | E58: 4/8R | F58: =C58 -> 0 | G58: CONCASSES | I58: 177.76
A59: 42 | B59: 8/16R | C59: =C53*D59 -> 0 | D59: 0.18 | E59: 8/16R | F59: =C59-F54*'GNR ET ELEMENTS DE PROD'!N7 -> 0 | G59: CONCASSES | I59: 61.32
A60: 32 | B60: 11/22R | C60: =C53*D60 -> 0 | D60: 0.14 | E60: 11/22R | F60: =C60 -> 0 | G60: CONCASSES | H60: 0/4C | I60: =-F54*'GNR ET ELEMENTS DE PROD'!K7-F53*'GNR ET ELEMENTS DE PROD'!K10 -> 0
A61: 68 | B61: 22/80 | C61: =C53*D61 -> 0 | D61: 0.3 | E61: 22/80 | F61: =C63-I55-I5-ABS(I57) -> 0 | G61: CONCASSES | H61: 6,3/10 | I61: =+-'GNR ET ELEMENTS DE PROD'!M7*F54 -> 0
A62: =SUM(A57:B61) -> 228 | C62: =SUM(C57:C61) -> 0 | F62: =SUM(F57:F61) -> 0 | I62: =SUM(I53:I61) -> 239.08
A64: ACHATS
A68: ARRETS
A69: Horamètre | B69: CIRCUIT | C69: MACHINE | D69: CAUSE | E69: DUREE (en mn) | H69: COMMENTAIRES
E70: Panne | F70: Entretien | G70: AUTRE
A78: Observations (pour garder une trace d'un fait particulier)

Sheet 14
A1: RAPPORT JOURNALIER
A3: DATE : | B3: 2020-10-14
A4: EXPLOITATION DE: | B4: Osselle | D4: RESPONSABLE | F4: METEO
D5: Denis MARESCOT
D7: H DE PRODUCTIONS PREVUES | E7: 8
A8: POINTAGE PERSONNEL
A10: NOM PRENOM | B10: AFFECTATION | C10: Nombre d'heure | D10: AFFECTATION | E10: Nombre d'heure | F10: AFFECTATION | G10: Nombre d'heure | H10: TOTAL HORAIRE JOUR
A11: CRETIN Brigitte | B11: Bascule 200200 | C11: 8 | H11: =C11+E11+G11 -> 8
A12: DORKELD Didier | B12: 210258 Travaux divers sans engins | C12: 6 | D12: Sur Engin Chargement client | E12: 2 | H12: =C12+E12+G12 -> 8
H13: =C13+E13+G13 -> 0
H14: 0
H15: 0
H16: 0
H17: =C17+E17+G17 -> 0
H18: =C18+E18+G18 -> 0
H19: =C19+E19+G19 -> 0
H20: 0
H21: 0
H22: 0
A24: POINTAGE MATERIEL
A26: ENGINS DE PRODUCTION
A27: TYPE | B27: AFFECTATION HORAIRE | H27: TOTAL HORAIRE JOUR | I27: GNR | J27: HORAMETRE MATIN | K27: HORAMETRE SOIR | L27: CONTRÔLE
A28: Chargeur L566 - D3101014 | H28: =C28+E28+G28 -> 0 | J28: 16763 | K28: 16763 | L28: =IF(K28-J28=H28,"OK","FAUX") -> OK
A29: Chargeur 966G - D3102742 | B29: CHARGEMENT CLIENT /200200 | C29: 2 | H29: =C29+E29+G29 -> 2 | J29: 2422 | K29: 2424 | L29: =IF(K29-J29=H29,"OK","FAUX") -> OK
A30: CAMION MERCEDES OSSELLE-P2100552 | H30: 0 | L30: OK
H31: 0 | L31: OK
H32: 0 | L32: OK
H33: 0 | L33: OK
A35: VEHICULES DE LIAISON | B35: HORAMETRE MATIN | C35: SOIR | D35: GNR | E35: HEURE FONTIONNEMENT
A36: Minipelle SV17 - oss - D1002929 | B36: 2291 | C36: 2291 | E36: =C36-B36 -> 0
A37: Manitou M30 - C8100689 | B37: 7141 | C37: 7146 | E37: =C37-B37 -> 5
E38: 0
A41: RAPPORT DE PRODUCTION
B43: COMPTEUR HORAIRE | C43: H/FONCT
A44: PRIMAIRE (Production Plaine)
A45: SECONDAIRE (Production Bascule Tunnel)
A46: TERTIAIRE (frabrication concassée)
A47: BIG BAG
A48: Compteur d'eau
E51: BIG BAG
A52: PRIMAIRE | D52: SECONDAIRE | G52: TERTIAIRE
A53: ALIMENTATION | B53: Tout venant Brut | D53: FABRICATION | E53: 0/4SCL | G53: CONCASSES | H53: 0/2C
A54: Plaine | B54: Tout venant Brut | D54: FABRICATION | E54: M0/16 | G54: CONCASSES | H54: 2/4C
A55: T120 | B55: Tout venant écreté | C55: =C54*0.95 -> 0 | D55: FABRICATION | E55: M0/8 | G55: CONCASSES | H55: 4/6C
A56: Débit mesuré en T/h | B56: GRANULOMETRIE | C56: TONNAGES | E56: GRANULOMETRIE | F56: TONNAGES | G56: CONCASSES | H56: 4/10C
A57: 50 | B57: 04 NATUREL | C57: =C53*D57 -> 0 | D57: 0.22 | E57: SABLE 0/4R | F57: =C57-(F53*'GNR ET ELEMENTS DE PROD'!L10)-('14'!F54*'GNR ET ELEMENTS DE PROD'!L7) -> 0 | G57: CONCASSES | H57: 6/10C
A58: 36 | B58: 4/8R | C58: =C53*D58 -> 0 | D58: 0.16 | E58: 4/8R | F58: =C58 -> 0 | G58: CONCASSES
A59: 42 | B59: 8/16R | C59: =C53*D59 -> 0 | D59: 0.18 | E59: 8/16R | F59: =C59-F54*'GNR ET ELEMENTS DE PROD'!N7 -> 0 | G59: CONCASSES
A60: 32 | B60: 11/22R | C60: =C53*D60 -> 0 | D60: 0.14 | E60: 11/22R | F60: =C60 -> 0 | G60: CONCASSES | H60: 0/4C | I60: =-F54*'GNR ET ELEMENTS DE PROD'!K7-F53*'GNR ET ELEMENTS DE PROD'!K10 -> 0
A61: 68 | B61: 22/80 | C61: =C53*D61 -> 0 | D61: 0.3 | E61: 22/80 | F61: =C63-I55-I5-ABS(I57) -> 0 | G61: CONCASSES | H61: 6,3/10 | I61: =+-'GNR ET ELEMENTS DE PROD'!M7*F54 -> 0
A62: =SUM(A57:B61) -> 228 | C62: =SUM(C57:C61) -> 0 | F62: =SUM(F57:F61) -> 0 | I62: =SUM(I53:I61) -> 0
A64: ACHATS
A68: ARRETS
A69: Horamètre | B69: CIRCUIT | C69: MACHINE | D69: CAUSE | E69: DUREE (en mn) | H69: COMMENTAIRES
E70: Panne | F70: Entretien | G70: AUTRE
A78: Observations (pour garder une trace d'un fait particulier)

Sheet 15
A1: RAPPORT JOURNALIER
A3: DATE : | B3: 2020-10-15
A4: EXPLOITATION DE: | B4: Osselle | D4: RESPONSABLE | F4: METEO
D5: Denis MARESCOT
D7: H DE PRODUCTIONS PREVUES | E7: 8
A8: POINTAGE PERSONNEL
A10: NOM PRENOM | B10: AFFECTATION | C10: Nombre d'heure | D10: AFFECTATION | E10: Nombre d'heure | F10: AFFECTATION | G10: Nombre d'heure | H10: TOTAL HORAIRE JOUR
A11: CRETIN Brigitte | B11: Bascule 200200 | C11: 8 | H11: =C11+E11+G11 -> 8
A12: DORKELD Didier | B12: 210258 Travaux divers sans engins | C12: 6 | D12: Sur Engin Chargement client | E12: 2 | H12: =C12+E12+G12 -> 8
H13: =C13+E13+G13 -> 0
H14: 0
H15: 0
H16: 0
H17: =C17+E17+G17 -> 0
H18: =C18+E18+G18 -> 0
H19: =C19+E19+G19 -> 0
H20: 0
H21: 0
H22: 0
A24: POINTAGE MATERIEL
A26: ENGINS DE PRODUCTION
A27: TYPE | B27: AFFECTATION HORAIRE | H27: TOTAL HORAIRE JOUR | I27: GNR | J27: HORAMETRE MATIN | K27: HORAMETRE SOIR | L27: CONTRÔLE
A28: Chargeur L566 - D3101014 | B28: TRAVAUX DIVERS SUR PISTE 200950 | C28: 1 | H28: =C28+E28+G28 -> 1 | J28: 16763 | K28: 16764 | L28: =IF(K28-J28=H28,"OK","FAUX") -> OK
A29: Chargeur 966G - D3102742 | B29: CHARGEMENT CLIENT /200200 | C29: 1 | H29: =C29+E29+G29 -> 1 | I29: 100 | J29: 2424 | K29: 2425 | L29: =IF(K29-J29=H29,"OK","FAUX") -> OK
A30: CAMION MERCEDES OSSELLE-P2100552 | H30: 0 | L30: OK
H31: 0 | L31: OK
H32: 0 | L32: OK
H33: 0 | L33: OK
A35: VEHICULES DE LIAISON | B35: HORAMETRE MATIN | C35: SOIR | D35: GNR | E35: HEURE FONTIONNEMENT
A36: Minipelle SV17 - oss - D1002929 | B36: 2291 | C36: 2291 | E36: =C36-B36 -> 0
A37: Manitou M30 - C8100689 | B37: 7141 | C37: 7146 | E37: =C37-B37 -> 5
E38: 0
A41: RAPPORT DE PRODUCTION
B43: COMPTEUR HORAIRE | C43: H/FONCT
A44: PRIMAIRE (Production Plaine)
A45: SECONDAIRE (Production Bascule Tunnel)
A46: TERTIAIRE (frabrication concassée)
A47: BIG BAG
A48: Compteur d'eau
E51: BIG BAG
A52: PRIMAIRE | D52: SECONDAIRE | G52: TERTIAIRE
A53: ALIMENTATION | B53: Tout venant Brut | D53: FABRICATION | E53: 0/4SCL | G53: CONCASSES | H53: 0/2C
A54: Plaine | B54: Tout venant Brut | D54: FABRICATION | E54: M0/16 | G54: CONCASSES | H54: 2/4C
A55: T120 | B55: Tout venant écreté | C55: =C54*0.95 -> 0 | D55: FABRICATION | E55: M0/8 | G55: CONCASSES | H55: 4/6C
A56: Débit mesuré en T/h | B56: GRANULOMETRIE | C56: TONNAGES | E56: GRANULOMETRIE | F56: TONNAGES | G56: CONCASSES | H56: 4/10C
A57: 50 | B57: 04 NATUREL | C57: =C53*D57 -> 0 | D57: 0.22 | E57: SABLE 0/4R | F57: =C57-(F53*'GNR ET ELEMENTS DE PROD'!L10)-('15'!F54*'GNR ET ELEMENTS DE PROD'!L7) -> 0 | G57: CONCASSES | H57: 6/10C
A58: 36 | B58: 4/8R | C58: =C53*D58 -> 0 | D58: 0.16 | E58: 4/8R | F58: =C58 -> 0 | G58: CONCASSES
A59: 42 | B59: 8/16R | C59: =C53*D59 -> 0 | D59: 0.18 | E59: 8/16R | F59: =C59-F54*'GNR ET ELEMENTS DE PROD'!N7 -> 0 | G59: CONCASSES
A60: 32 | B60: 11/22R | C60: =C53*D60 -> 0 | D60: 0.14 | E60: 11/22R | F60: =C60 -> 0 | G60: CONCASSES | H60: 0/4C | I60: =-F54*'GNR ET ELEMENTS DE PROD'!K7-F53*'GNR ET ELEMENTS DE PROD'!K10 -> 0
A61: 68 | B61: 22/80 | C61: =C53*D61 -> 0 | D61: 0.3 | E61: 22/80 | F61: =C63-I55-I5-ABS(I57) -> 0 | G61: CONCASSES | H61: 6,3/10 | I61: =+-'GNR ET ELEMENTS DE PROD'!M7*F54 -> 0
A62: =SUM(A57:B61) -> 228 | C62: =SUM(C57:C61) -> 0 | F62: =SUM(F57:F61) -> 0 | I62: =SUM(I53:I61) -> 0
A64: ACHATS
A68: ARRETS
A69: Horamètre | B69: CIRCUIT | C69: MACHINE | D69: CAUSE | E69: DUREE (en mn) | H69: COMMENTAIRES
E70: Panne | F70: Entretien | G70: AUTRE
A78: Observations (pour garder une trace d'un fait particulier)

Sheet 16
A1: RAPPORT JOURNALIER
A3: DATE : | B3: 2020-10-16
A4: EXPLOITATION DE: | B4: Osselle | D4: RESPONSABLE | F4: METEO
D5: Denis MARESCOT
D7: H DE PRODUCTIONS PREVUES | E7: 7
A8: POINTAGE PERSONNEL
A10: NOM PRENOM | B10: AFFECTATION | C10: Nombre d'heure | D10: AFFECTATION | E10: Nombre d'heure | F10: AFFECTATION | G10: Nombre d'heure | H10: TOTAL HORAIRE JOUR
A11: CRETIN Brigitte | B11: Bascule 200200 | C11: 7 | H11: =C11+E11+G11 -> 7
A12: DORKELD Didier | B12: 210258 Travaux divers sans engins | C12: 5 | D12: Sur Engin Chargement client | E12: 2 | H12: =C12+E12+G12 -> 7
H13: =C13+E13+G13 -> 0
H14: 0
H15: 0
H16: 0
H17: =C17+E17+G17 -> 0
H18: =C18+E18+G18 -> 0
H19: =C19+E19+G19 -> 0
H20: 0
H21: 0
H22: 0
A24: POINTAGE MATERIEL
A26: ENGINS DE PRODUCTION
A27: TYPE | B27: AFFECTATION HORAIRE | H27: TOTAL HORAIRE JOUR | I27: GNR | J27: HORAMETRE MATIN | K27: HORAMETRE SOIR | L27: CONTRÔLE
A28: Chargeur L566 - D3101014 | H28: =C28+E28+G28 -> 0 | J28: 16764 | K28: 16764 | L28: =IF(K28-J28=H28,"OK","FAUX") -> OK
A29: Chargeur 966G - D3102742 | B29: CHARGEMENT CLIENT /200200 | C29: 2 | H29: =C29+E29+G29 -> 2 | J29: 2425 | K29: 2427 | L29: =IF(K29-J29=H29,"OK","FAUX") -> OK
A30: CAMION MERCEDES OSSELLE-P2100552 | H30: 0 | L30: OK
H31: 0 | L31: OK
H32: 0 | L32: OK
H33: 0 | L33: OK
A35: VEHICULES DE LIAISON | B35: HORAMETRE MATIN | C35: SOIR | D35: GNR | E35: HEURE FONTIONNEMENT
A36: Minipelle SV17 - oss - D1002929 | B36: 2291 | C36: 2291 | E36: =C36-B36 -> 0
A37: Manitou M30 - C8100689 | B37: 7141 | C37: 7146 | E37: =C37-B37 -> 5
A38: PELLE TP JOLY | D38: 100 | E38: 0
A41: RAPPORT DE PRODUCTION
B43: COMPTEUR HORAIRE | C43: H/FONCT
A44: PRIMAIRE (Production Plaine)
A45: SECONDAIRE (Production Bascule Tunnel)
A46: TERTIAIRE (frabrication concassée)
A47: BIG BAG
A48: Compteur d'eau
E51: BIG BAG
A52: PRIMAIRE | D52: SECONDAIRE | G52: TERTIAIRE
A53: ALIMENTATION | B53: Tout venant Brut | D53: FABRICATION | E53: 0/4SCL | G53: CONCASSES | H53: 0/2C
A54: Plaine | B54: Tout venant Brut | D54: FABRICATION | E54: M0/16 | G54: CONCASSES | H54: 2/4C
A55: T120 | B55: Tout venant écreté | C55: =C54*0.95 -> 0 | D55: FABRICATION | E55: M0/8 | G55: CONCASSES | H55: 4/6C
A56: Débit mesuré en T/h | B56: GRANULOMETRIE | C56: TONNAGES | E56: GRANULOMETRIE | F56: TONNAGES | G56: CONCASSES | H56: 4/10C
A57: 50 | B57: 04 NATUREL | C57: =C53*D57 -> 0 | D57: 0.22 | E57: SABLE 0/4R | F57: =C57-(F53*'GNR ET ELEMENTS DE PROD'!L10)-('16'!F54*'GNR ET ELEMENTS DE PROD'!L7) -> 0 | G57: CONCASSES | H57: 6/10C
A58: 36 | B58: 4/8R | C58: =C53*D58 -> 0 | D58: 0.16 | E58: 4/8R | F58: =C58 -> 0 | G58: CONCASSES
A59: 42 | B59: 8/16R | C59: =C53*D59 -> 0 | D59: 0.18 | E59: 8/16R | F59: =C59-F54*'GNR ET ELEMENTS DE PROD'!N7 -> 0 | G59: CONCASSES
A60: 32 | B60: 11/22R | C60: =C53*D60 -> 0 | D60: 0.14 | E60: 11/22R | F60: =C60 -> 0 | G60: CONCASSES | H60: 0/4C | I60: =-F54*'GNR ET ELEMENTS DE PROD'!K7-F53*'GNR ET ELEMENTS DE PROD'!K10 -> 0
A61: 68 | B61: 22/80 | C61: =C53*D61 -> 0 | D61: 0.3 | E61: 22/80 | F61: =C63-I55-I5-ABS(I57) -> 0 | G61: CONCASSES | H61: 6,3/10 | I61: =+-'GNR ET ELEMENTS DE PROD'!M7*F54 -> 0
A62: =SUM(A57:B61) -> 228 | C62: =SUM(C57:C61) -> 0 | F62: =SUM(F57:F61) -> 0 | I62: =SUM(I53:I61) -> 0
A64: ACHATS
A68: ARRETS
A69: Horamètre | B69: CIRCUIT | C69: MACHINE | D69: CAUSE | E69: DUREE (en mn) | H69: COMMENTAIRES
E70: Panne | F70: Entretien | G70: AUTRE
A78: Observations (pour garder une trace d'un fait particulier)

Sheet 17
A1: RAPPORT JOURNALIER
A3: DATE :
A4: EXPLOITATION DE: | D4: RESPONSABLE | F4: METEO
D7: H DE PRODUCTIONS PREVUES
A8: POINTAGE PERSONNEL
A10: NOM PRENOM | B10: AFFECTATION | C10: Nombre d'heure | D10: AFFECTATION | E10: Nombre d'heure | F10: AFFECTATION | G10: Nombre d'heure | H10: TOTAL HORAIRE JOUR
H11: =C11+E11+G11 -> 0
H12: =C12+E12+G12 -> 0
H13: =C13+E13+G13 -> 0
H14: 0
H15: 0
H16: 0
H17: =C17+E17+G17 -> 0
H18: =C18+E18+G18 -> 0
H19: =C19+E19+G19 -> 0
H20: 0
H21: 0
H22: 0
A24: POINTAGE MATERIEL
A26: ENGINS DE PRODUCTION
A27: TYPE | B27: AFFECTATION HORAIRE | H27: TOTAL HORAIRE JOUR | I27: GNR | J27: HORAMETRE MATIN | K27: HORAMETRE SOIR | L27: CONTRÔLE
H28: =C28+E28+G28 -> 0 | L28: =IF(K28-J28=H28,"OK","FAUX") -> OK
H29: =C29+E29+G29 -> 0 | L29: =IF(K29-J29=H29,"OK","FAUX") -> OK
H30: 0 | L30: OK
H31: 0 | L31: OK
H32: 0 | L32: OK
H33: 0 | L33: OK
A35: VEHICULES DE LIAISON | B35: HORAMETRE MATIN | C35: SOIR | D35: GNR | E35: HEURE FONTIONNEMENT
E36: =C36-B36 -> 0
E37: =C37-B37 -> 0
E38: 0
A41: RAPPORT DE PRODUCTION
B43: COMPTEUR HORAIRE | C43: H/FONCT
A44: PRIMAIRE (Production Plaine)
A45: SECONDAIRE (Production Bascule Tunnel)
A46: TERTIAIRE (frabrication concassée)
A47: BIG BAG
A48: Compteur d'eau
E51: BIG BAG
A52: PRIMAIRE | D52: SECONDAIRE | G52: TERTIAIRE
A53: ALIMENTATION | B53: Tout venant Brut | D53: FABRICATION | E53: 0/4SCL | G53: CONCASSES | H53: 0/2C
A54: Plaine | B54: Tout venant Brut | D54: FABRICATION | E54: M0/16 | G54: CONCASSES | H54: 2/4C
A55: T120 | B55: Tout venant écreté | C55: =C54*0.95 -> 0 | D55: FABRICATION | E55: M0/8 | G55: CONCASSES | H55: 4/6C
A56: Débit mesuré en T/h | B56: GRANULOMETRIE | C56: TONNAGES | E56: GRANULOMETRIE | F56: TONNAGES | G56: CONCASSES | H56: 4/10C
A57: 50 | B57: 04 NATUREL | C57: =C53*D57 -> 0 | D57: 0.22 | E57: SABLE 0/4R | F57: =C57-(F53*'GNR ET ELEMENTS DE PROD'!L10)-('17'!F54*'GNR ET ELEMENTS DE PROD'!L7) -> 0 | G57: CONCASSES | H57: 6/10C
A58: 36 | B58: 4/8R | C58: =C53*D58 -> 0 | D58: 0.16 | E58: 4/8R | F58: =C58 -> 0 | G58: CONCASSES
A59: 42 | B59: 8/16R | C59: =C53*D59 -> 0 | D59: 0.18 | E59: 8/16R | F59: =C59-F54*'GNR ET ELEMENTS DE PROD'!N7 -> 0 | G59: CONCASSES
A60: 32 | B60: 11/22R | C60: =C53*D60 -> 0 | D60: 0.14 | E60: 11/22R | F60: =C60 -> 0 | G60: CONCASSES | H60: 0/4C | I60: =-F54*'GNR ET ELEMENTS DE PROD'!K7-F53*'GNR ET ELEMENTS DE PROD'!K10 -> 0
A61: 68 | B61: 22/80 | C61: =C53*D61 -> 0 | D61: 0.3 | E61: 22/80 | F61: =C63-I55-I5-ABS(I57) -> 0 | G61: CONCASSES | H61: 6,3/10 | I61: =+-'GNR ET ELEMENTS DE PROD'!M7*F54 -> 0
A62: =SUM(A57:B61) -> 228 | C62: =SUM(C57:C61) -> 0 | F62: =SUM(F57:F61) -> 0 | I62: =SUM(I53:I61) -> 0
A64: ACHATS
A68: ARRETS
A69: Horamètre | B69: CIRCUIT | C69: MACHINE | D69: CAUSE | E69: DUREE (en mn) | H69: COMMENTAIRES
E70: Panne | F70: Entretien | G70: AUTRE
A78: Observations (pour garder une trace d'un fait particulier)

Sheet 18
A1: RAPPORT JOURNALIER
A3: DATE :
A4: EXPLOITATION DE: | D4: RESPONSABLE | F4: METEO
D7: H DE PRODUCTIONS PREVUES
A8: POINTAGE PERSONNEL
A10: NOM PRENOM | B10: AFFECTATION | C10: Nombre d'heure | D10: AFFECTATION | E10: Nombre d'heure | F10: AFFECTATION | G10: Nombre d'heure | H10: TOTAL HORAIRE JOUR
H11: =C11+E11+G11 -> 0
H12: =C12+E12+G12 -> 0
H13: =C13+E13+G13 -> 0
H14: 0
H15: 0
H16: 0
H17: =C17+E17+G17 -> 0
H18: =C18+E18+G18 -> 0
H19: =C19+E19+G19 -> 0
H20: 0
H21: 0
H22: 0
A24: POINTAGE MATERIEL
A26: ENGINS DE PRODUCTION
A27: TYPE | B27: AFFECTATION HORAIRE | H27: TOTAL HORAIRE JOUR | I27: GNR | J27: HORAMETRE MATIN | K27: HORAMETRE SOIR | L27: CONTRÔLE
H28: =C28+E28+G28 -> 0 | L28: =IF(K28-J28=H28,"OK","FAUX") -> OK
H29: =C29+E29+G29 -> 0 | L29: =IF(K29-J29=H29,"OK","FAUX") -> OK
H30: 0 | L30: OK
H31: 0 | L31: OK
H32: 0 | L32: OK
H33: 0 | L33: OK
A35: VEHICULES DE LIAISON | B35: HORAMETRE MATIN | C35: SOIR | D35: GNR | E35: HEURE FONTIONNEMENT
E36: =C36-B36 -> 0
E37: =C37-B37 -> 0
E38: 0
A41: RAPPORT DE PRODUCTION
B43: COMPTEUR HORAIRE | C43: H/FONCT
A44: PRIMAIRE (Production Plaine)
A45: SECONDAIRE (Production Bascule Tunnel)
A46: TERTIAIRE (frabrication concassée)
A47: BIG BAG
A48: Compteur d'eau
E51: BIG BAG
A52: PRIMAIRE | D52: SECONDAIRE | G52: TERTIAIRE
A53: ALIMENTATION | B53: Tout venant Brut | D53: FABRICATION | E53: 0/4SCL | G53: CONCASSES | H53: 0/2C
A54: Plaine | B54: Tout venant Brut | D54: FABRICATION | E54: M0/16 | G54: CONCASSES | H54: 2/4C
A55: T120 | B55: Tout venant écreté | C55: =C54*0.95 -> 0 | D55: FABRICATION | E55: M0/8 | G55: CONCASSES | H55: 4/6C
A56: Débit mesuré en T/h | B56: GRANULOMETRIE | C56: TONNAGES | E56: GRANULOMETRIE | F56: TONNAGES | G56: CONCASSES | H56: 4/10C
A57: 50 | B57: 04 NATUREL | C57: =C53*D57 -> 0 | D57: 0.22 | E57: SABLE 0/4R | F57: =C57-(F53*'GNR ET ELEMENTS DE PROD'!L10)-('18'!F54*'GNR ET ELEMENTS DE PROD'!L7) -> 0 | G57: CONCASSES | H57: 6/10C
A58: 36 | B58: 4/8R | C58: =C53*D58 -> 0 | D58: 0.16 | E58: 4/8R | F58: =C58 -> 0 | G58: CONCASSES
A59: 42 | B59: 8/16R | C59: =C53*D59 -> 0 | D59: 0.18 | E59: 8/16R | F59: =C59-F54*'GNR ET ELEMENTS DE PROD'!N7 -> 0 | G59: CONCASSES
A60: 32 | B60: 11/22R | C60: =C53*D60 -> 0 | D60: 0.14 | E60: 11/22R | F60: =C60 -> 0 | G60: CONCASSES | H60: 0/4C | I60: =-F54*'GNR ET ELEMENTS DE PROD'!K7-F53*'GNR ET ELEMENTS DE PROD'!K10 -> 0
A61: 68 | B61: 22/80 | C61: =C53*D61 -> 0 | D61: 0.3 | E61: 22/80 | F61: =C63-I55-I5-ABS(I57) -> 0 | G61: CONCASSES | H61: 6,3/10 | I61: =+-'GNR ET ELEMENTS DE PROD'!M7*F54 -> 0
A62: =SUM(A57:B61) -> 228 | C62: =SUM(C57:C61) -> 0 | F62: =SUM(F57:F61) -> 0 | I62: =SUM(I53:I61) -> 0
A64: ACHATS
A68: ARRETS
A69: Horamètre | B69: CIRCUIT | C69: MACHINE | D69: CAUSE | E69: DUREE (en mn) | H69: COMMENTAIRES
E70: Panne | F70: Entretien | G70: AUTRE
A78: Observations (pour garder une trace d'un fait particulier)

Sheet 19
A1: RAPPORT JOURNALIER
A3: DATE :
A4: EXPLOITATION DE: | D4: RESPONSABLE | F4: METEO
D7: H DE PRODUCTIONS PREVUES
A8: POINTAGE PERSONNEL
A10: NOM PRENOM | B10: AFFECTATION | C10: Nombre d'heure | D10: AFFECTATION | E10: Nombre d'heure | F10: AFFECTATION | G10: Nombre d'heure | H10: TOTAL HORAIRE JOUR
H11: =C11+E11+G11 -> 0
H12: =C12+E12+G12 -> 0
H13: =C13+E13+G13 -> 0
H14: 0
H15: 0
H16: 0
H17: =C17+E17+G17 -> 0
H18: =C18+E18+G18 -> 0
H19: =C19+E19+G19 -> 0
H20: 0
H21: 0
H22: 0
A24: POINTAGE MATERIEL
A26: ENGINS DE PRODUCTION
A27: TYPE | B27: AFFECTATION HORAIRE | H27: TOTAL HORAIRE JOUR | I27: GNR | J27: HORAMETRE MATIN | K27: HORAMETRE SOIR | L27: CONTRÔLE
H28: =C28+E28+G28 -> 0 | L28: =IF(K28-J28=H28,"OK","FAUX") -> OK
H29: =C29+E29+G29 -> 0 | L29: =IF(K29-J29=H29,"OK","FAUX") -> OK
H30: 0 | L30: OK
H31: 0 | L31: OK
H32: 0 | L32: OK
H33: 0 | L33: OK
A35: VEHICULES DE LIAISON | B35: HORAMETRE MATIN | C35: SOIR | D35: GNR | E35: HEURE FONTIONNEMENT
E36: =C36-B36 -> 0
E37: =C37-B37 -> 0
E38: 0
A41: RAPPORT DE PRODUCTION
B43: COMPTEUR HORAIRE | C43: H/FONCT
A44: PRIMAIRE (Production Plaine)
A45: SECONDAIRE (Production Bascule Tunnel)
A46: TERTIAIRE (frabrication concassée)
A47: BIG BAG
A48: Compteur d'eau
E51: BIG BAG
A52: PRIMAIRE | D52: SECONDAIRE | G52: TERTIAIRE
A53: ALIMENTATION | B53: Tout venant Brut | D53: FABRICATION | E53: 0/4SCL | G53: CONCASSES | H53: 0/2C
A54: Plaine | B54: Tout venant Brut | D54: FABRICATION | E54: M0/16 | G54: CONCASSES | H54: 2/4C
A55: T120 | B55: Tout venant écreté | C55: =C54*0.95 -> 0 | D55: FABRICATION | E55: M0/8 | G55: CONCASSES | H55: 4/6C
A56: Débit mesuré en T/h | B56: GRANULOMETRIE | C56: TONNAGES | E56: GRANULOMETRIE | F56: TONNAGES | G56: CONCASSES | H56: 4/10C
A57: 50 | B57: 04 NATUREL | C57: =C53*D57 -> 0 | D57: 0.22 | E57: SABLE 0/4R | F57: =C57-(F53*'GNR ET ELEMENTS DE PROD'!L10)-('19'!F54*'GNR ET ELEMENTS DE PROD'!L7) -> 0 | G57: CONCASSES | H57: 6/10C
A58: 36 | B58: 4/8R | C58: =C53*D58 -> 0 | D58: 0.16 | E58: 4/8R | F58: =C58 -> 0 | G58: CONCASSES
A59: 42 | B59: 8/16R | C59: =C53*D59 -> 0 | D59: 0.18 | E59: 8/16R | F59: =C59-F54*'GNR ET ELEMENTS DE PROD'!N7 -> 0 | G59: CONCASSES
A60: 32 | B60: 11/22R | C60: =C53*D60 -> 0 | D60: 0.14 | E60: 11/22R | F60: =C60 -> 0 | G60: CONCASSES | H60: 0/4C | I60: =-F54*'GNR ET ELEMENTS DE PROD'!K7-F53*'GNR ET ELEMENTS DE PROD'!K10 -> 0
A61: 68 | B61: 22/80 | C61: =C53*D61 -> 0 | D61: 0.3 | E61: 22/80 | F61: =C63-I55-I5-ABS(I57) -> 0 | G61: CONCASSES | H61: 6,3/10 | I61: =+-'GNR ET ELEMENTS DE PROD'!M7*F54 -> 0
A62: =SUM(A57:B61) -> 228 | C62: =SUM(C57:C61) -> 0 | F62: =SUM(F57:F61) -> 0 | I62: =SUM(I53:I61) -> 0
A64: ACHATS
A68: ARRETS
A69: Horamètre | B69: CIRCUIT | C69: MACHINE | D69: CAUSE | E69: DUREE (en mn) | H69: COMMENTAIRES
E70: Panne | F70: Entretien | G70: AUTRE
A78: Observations (pour garder une trace d'un fait particulier)

Sheet 20
A1: RAPPORT JOURNALIER
A3: DATE :
A4: EXPLOITATION DE: | D4: RESPONSABLE | F4: METEO
D7: H DE PRODUCTIONS PREVUES
A8: POINTAGE PERSONNEL
A10: NOM PRENOM | B10: AFFECTATION | C10: Nombre d'heure | D10: AFFECTATION | E10: Nombre d'heure | F10: AFFECTATION | G10: Nombre d'heure | H10: TOTAL HORAIRE JOUR
H11: =C11+E11+G11 -> 0
H12: =C12+E12+G12 -> 0
H13: =C13+E13+G13 -> 0
H14: 0
H15: 0
H16: 0
H17: =C17+E17+G17 -> 0
H18: =C18+E18+G18 -> 0
H19: =C19+E19+G19 -> 0
H20: 0
H21: 0
H22: 0
A24: POINTAGE MATERIEL
A26: ENGINS DE PRODUCTION
A27: TYPE | B27: AFFECTATION HORAIRE | H27: TOTAL HORAIRE JOUR | I27: GNR | J27: HORAMETRE MATIN | K27: HORAMETRE SOIR | L27: CONTRÔLE
H28: =C28+E28+G28 -> 0 | L28: =IF(K28-J28=H28,"OK","FAUX") -> OK
H29: =C29+E29+G29 -> 0 | L29: =IF(K29-J29=H29,"OK","FAUX") -> OK
H30: 0 | L30: OK
H31: 0 | L31: OK
H32: 0 | L32: OK
H33: 0 | L33: OK
A35: VEHICULES DE LIAISON | B35: HORAMETRE MATIN | C35: SOIR | D35: GNR | E35: HEURE FONTIONNEMENT
E36: =C36-B36 -> 0
E37: =C37-B37 -> 0
E38: 0
A41: RAPPORT DE PRODUCTION
B43: COMPTEUR HORAIRE | C43: H/FONCT
A44: PRIMAIRE (Production Plaine)
A45: SECONDAIRE (Production Bascule Tunnel)
A46: TERTIAIRE (frabrication concassée)
A47: BIG BAG
A48: Compteur d'eau
E51: BIG BAG
A52: PRIMAIRE | D52: SECONDAIRE | G52: TERTIAIRE
A53: ALIMENTATION | B53: Tout venant Brut | D53: FABRICATION | E53: 0/4SCL | G53: CONCASSES | H53: 0/2C
A54: Plaine | B54: Tout venant Brut | D54: FABRICATION | E54: M0/16 | G54: CONCASSES | H54: 2/4C
A55: T120 | B55: Tout venant écreté | C55: =C54*0.95 -> 0 | D55: FABRICATION | E55: M0/8 | G55: CONCASSES | H55: 4/6C
A56: Débit mesuré en T/h | B56: GRANULOMETRIE | C56: TONNAGES | E56: GRANULOMETRIE | F56: TONNAGES | G56: CONCASSES | H56: 4/10C
A57: 50 | B57: 04 NATUREL | C57: =C53*D57 -> 0 | D57: 0.22 | E57: SABLE 0/4R | F57: =C57-(F53*'GNR ET ELEMENTS DE PROD'!L10)-('20'!F54*'GNR ET ELEMENTS DE PROD'!L7) -> 0 | G57: CONCASSES | H57: 6/10C
A58: 36 | B58: 4/8R | C58: =C53*D58 -> 0 | D58: 0.16 | E58: 4/8R | F58: =C58 -> 0 | G58: CONCASSES
A59: 42 | B59: 8/16R | C59: =C53*D59 -> 0 | D59: 0.18 | E59: 8/16R | F59: =C59-F54*'GNR ET ELEMENTS DE PROD'!N7 -> 0 | G59: CONCASSES
A60: 32 | B60: 11/22R | C60: =C53*D60 -> 0 | D60: 0.14 | E60: 11/22R | F60: =C60 -> 0 | G60: CONCASSES | H60: 0/4C | I60: =-F54*'GNR ET ELEMENTS DE PROD'!K7-F53*'GNR ET ELEMENTS DE PROD'!K10 -> 0
A61: 68 | B61: 22/80 | C61: =C53*D61 -> 0 | D61: 0.3 | E61: 22/80 | F61: =C63-I55-I5-ABS(I57) -> 0 | G61: CONCASSES | H61: 6,3/10 | I61: =+-'GNR ET ELEMENTS DE PROD'!M7*F54 -> 0
A62: =SUM(A57:B61) -> 228 | C62: =SUM(C57:C61) -> 0 | F62: =SUM(F57:F61) -> 0 | I62: =SUM(I53:I61) -> 0
A64: ACHATS
A68: ARRETS
A69: Horamètre | B69: CIRCUIT | C69: MACHINE | D69: CAUSE | E69: DUREE (en mn) | H69: COMMENTAIRES
E70: Panne | F70: Entretien | G70: AUTRE
A78: Observations (pour garder une trace d'un fait particulier)

Sheet 21
A1: RAPPORT JOURNALIER
A3: DATE :
A4: EXPLOITATION DE: | D4: RESPONSABLE | F4: METEO
D7: H DE PRODUCTIONS PREVUES
A8: POINTAGE PERSONNEL
A10: NOM PRENOM | B10: AFFECTATION | C10: Nombre d'heure | D10: AFFECTATION | E10: Nombre d'heure | F10: AFFECTATION | G10: Nombre d'heure | H10: TOTAL HORAIRE JOUR
H11: =C11+E11+G11 -> 0
H12: =C12+E12+G12 -> 0
H13: =C13+E13+G13 -> 0
H14: 0
H15: 0
H16: 0
H17: =C17+E17+G17 -> 0
H18: =C18+E18+G18 -> 0
H19: =C19+E19+G19 -> 0
H20: 0
H21: 0
H22: 0
A24: POINTAGE MATERIEL
A26: ENGINS DE PRODUCTION
A27: TYPE | B27: AFFECTATION HORAIRE | H27: TOTAL HORAIRE JOUR | I27: GNR | J27: HORAMETRE MATIN | K27: HORAMETRE SOIR | L27: CONTRÔLE
H28: =C28+E28+G28 -> 0 | L28: =IF(K28-J28=H28,"OK","FAUX") -> OK
H29: =C29+E29+G29 -> 0 | L29: =IF(K29-J29=H29,"OK","FAUX") -> OK
H30: 0 | L30: OK
H31: 0 | L31: OK
H32: 0 | L32: OK
H33: 0 | L33: OK
A35: VEHICULES DE LIAISON | B35: HORAMETRE MATIN | C35: SOIR | D35: GNR | E35: HEURE FONTIONNEMENT
E36: =C36-B36 -> 0
E37: =C37-B37 -> 0
E38: 0
A41: RAPPORT DE PRODUCTION
B43: COMPTEUR HORAIRE | C43: H/FONCT
A44: PRIMAIRE (Production Plaine)
A45: SECONDAIRE (Production Bascule Tunnel)
A46: TERTIAIRE (frabrication concassée)
A47: BIG BAG
A48: Compteur d'eau
E51: BIG BAG
A52: PRIMAIRE | D52: SECONDAIRE | G52: TERTIAIRE
A53: ALIMENTATION | B53: Tout venant Brut | D53: FABRICATION | E53: 0/4SCL | G53: CONCASSES | H53: 0/2C
A54: Plaine | B54: Tout venant Brut | D54: FABRICATION | E54: M0/16 | G54: CONCASSES | H54: 2/4C
A55: T120 | B55: Tout venant écreté | C55: =C54*0.95 -> 0 | D55: FABRICATION | E55: M0/8 | G55: CONCASSES | H55: 4/6C
A56: Débit mesuré en T/h | B56: GRANULOMETRIE | C56: TONNAGES | E56: GRANULOMETRIE | F56: TONNAGES | G56: CONCASSES | H56: 4/10C
A57: 50 | B57: 04 NATUREL | C57: =C53*D57 -> 0 | D57: 0.22 | E57: SABLE 0/4R | F57: =C57-(F53*'GNR ET ELEMENTS DE PROD'!L10)-('21'!F54*'GNR ET ELEMENTS DE PROD'!L7) -> 0 | G57: CONCASSES | H57: 6/10C
A58: 36 | B58: 4/8R | C58: =C53*D58 -> 0 | D58: 0.16 | E58: 4/8R | F58: =C58 -> 0 | G58: CONCASSES
A59: 42 | B59: 8/16R | C59: =C53*D59 -> 0 | D59: 0.18 | E59: 8/16R | F59: =C59-F54*'GNR ET ELEMENTS DE PROD'!N7 -> 0 | G59: CONCASSES
A60: 32 | B60: 11/22R | C60: =C53*D60 -> 0 | D60: 0.14 | E60: 11/22R | F60: =C60 -> 0 | G60: CONCASSES | H60: 0/4C | I60: =-F54*'GNR ET ELEMENTS DE PROD'!K7-F53*'GNR ET ELEMENTS DE PROD'!K10 -> 0
A61: 68 | B61: 22/80 | C61: =C53*D61 -> 0 | D61: 0.3 | E61: 22/80 | F61: =C63-I55-I5-ABS(I57) -> 0 | G61: CONCASSES | H61: 6,3/10 | I61: =+-'GNR ET ELEMENTS DE PROD'!M7*F54 -> 0
A62: =SUM(A57:B61) -> 228 | C62: =SUM(C57:C61) -> 0 | F62: =SUM(F57:F61) -> 0 | I62: =SUM(I53:I61) -> 0
A64: ACHATS
A68: ARRETS
A69: Horamètre | B69: CIRCUIT | C69: MACHINE | D69: CAUSE | E69: DUREE (en mn) | H69: COMMENTAIRES
E70: Panne | F70: Entretien | G70: AUTRE
A78: Observations (pour garder une trace d'un fait particulier)

Sheet 22
A1: RAPPORT JOURNALIER
A3: DATE :
A4: EXPLOITATION DE: | D4: RESPONSABLE | F4: METEO
D7: H DE PRODUCTIONS PREVUES
A8: POINTAGE PERSONNEL
A10: NOM PRENOM | B10: AFFECTATION | C10: Nombre d'heure | D10: AFFECTATION | E10: Nombre d'heure | F10: AFFECTATION | G10: Nombre d'heure | H10: TOTAL HORAIRE JOUR
H11: =C11+E11+G11 -> 0
H12: =C12+E12+G12 -> 0
H13: =C13+E13+G13 -> 0
H14: 0
H15: 0
H16: 0
H17: =C17+E17+G17 -> 0
H18: =C18+E18+G18 -> 0
H19: =C19+E19+G19 -> 0
H20: 0
H21: 0
H22: 0
A24: POINTAGE MATERIEL
A26: ENGINS DE PRODUCTION
A27: TYPE | B27: AFFECTATION HORAIRE | H27: TOTAL HORAIRE JOUR | I27: GNR | J27: HORAMETRE MATIN | K27: HORAMETRE SOIR | L27: CONTRÔLE
H28: =C28+E28+G28 -> 0 | L28: =IF(K28-J28=H28,"OK","FAUX") -> OK
H29: =C29+E29+G29 -> 0 | L29: =IF(K29-J29=H29,"OK","FAUX") -> OK
H30: 0 | L30: OK
H31: 0 | L31: OK
H32: 0 | L32: OK
H33: 0 | L33: OK
A35: VEHICULES DE LIAISON | B35: HORAMETRE MATIN | C35: SOIR | D35: GNR | E35: HEURE FONTIONNEMENT
E36: =C36-B36 -> 0
E37: =C37-B37 -> 0
E38: 0
A41: RAPPORT DE PRODUCTION
B43: COMPTEUR HORAIRE | C43: H/FONCT
A44: PRIMAIRE (Production Plaine)
A45: SECONDAIRE (Production Bascule Tunnel)
A46: TERTIAIRE (frabrication concassée)
A47: BIG BAG
A48: Compteur d'eau
E51: BIG BAG
A52: PRIMAIRE | D52: SECONDAIRE | G52: TERTIAIRE
A53: ALIMENTATION | B53: Tout venant Brut | D53: FABRICATION | E53: 0/4SCL | G53: CONCASSES | H53: 0/2C
A54: Plaine | B54: Tout venant Brut | D54: FABRICATION | E54: M0/16 | G54: CONCASSES | H54: 2/4C
A55: T120 | B55: Tout venant écreté | C55: =C54*0.95 -> 0 | D55: FABRICATION | E55: M0/8 | G55: CONCASSES | H55: 4/6C
A56: Débit mesuré en T/h | B56: GRANULOMETRIE | C56: TONNAGES | E56: GRANULOMETRIE | F56: TONNAGES | G56: CONCASSES | H56: 4/10C
A57: 50 | B57: 04 NATUREL | C57: =C53*D57 -> 0 | D57: 0.22 | E57: SABLE 0/4R | F57: =C57-(F53*'GNR ET ELEMENTS DE PROD'!L10)-('22'!F54*'GNR ET ELEMENTS DE PROD'!L7) -> 0 | G57: CONCASSES | H57: 6/10C
A58: 36 | B58: 4/8R | C58: =C53*D58 -> 0 | D58: 0.16 | E58: 4/8R | F58: =C58 -> 0 | G58: CONCASSES
A59: 42 | B59: 8/16R | C59: =C53*D59 -> 0 | D59: 0.18 | E59: 8/16R | F59: =C59-F54*'GNR ET ELEMENTS DE PROD'!N7 -> 0 | G59: CONCASSES
A60: 32 | B60: 11/22R | C60: =C53*D60 -> 0 | D60: 0.14 | E60: 11/22R | F60: =C60 -> 0 | G60: CONCASSES | H60: 0/4C | I60: =-F54*'GNR ET ELEMENTS DE PROD'!K7-F53*'GNR ET ELEMENTS DE PROD'!K10 -> 0
A61: 68 | B61: 22/80 | C61: =C53*D61 -> 0 | D61: 0.3 | E61: 22/80 | F61: =C63-I55-I5-ABS(I57) -> 0 | G61: CONCASSES | H61: 6,3/10 | I61: =+-'GNR ET ELEMENTS DE PROD'!M7*F54 -> 0
A62: =SUM(A57:B61) -> 228 | C62: =SUM(C57:C61) -> 0 | F62: =SUM(F57:F61) -> 0 | I62: =SUM(I53:I61) -> 0
A64: ACHATS
A68: ARRETS
A69: Horamètre | B69: CIRCUIT | C69: MACHINE | D69: CAUSE | E69: DUREE (en mn) | H69: COMMENTAIRES
E70: Panne | F70: Entretien | G70: AUTRE
A78: Observations (pour garder une trace d'un fait particulier)

Sheet 23
A1: RAPPORT JOURNALIER
A3: DATE :
A4: EXPLOITATION DE: | D4: RESPONSABLE | F4: METEO
D7: H DE PRODUCTIONS PREVUES
A8: POINTAGE PERSONNEL
A10: NOM PRENOM | B10: AFFECTATION | C10: Nombre d'heure | D10: AFFECTATION | E10: Nombre d'heure | F10: AFFECTATION | G10: Nombre d'heure | H10: TOTAL HORAIRE JOUR
H11: =C11+E11+G11 -> 0
H12: =C12+E12+G12 -> 0
H13: =C13+E13+G13 -> 0
H14: 0
H15: 0
H16: 0
H17: =C17+E17+G17 -> 0
H18: =C18+E18+G18 -> 0
H19: =C19+E19+G19 -> 0
H20: 0
H21: 0
H22: 0
A24: POINTAGE MATERIEL
A26: ENGINS DE PRODUCTION
A27: TYPE | B27: AFFECTATION HORAIRE | H27: TOTAL HORAIRE JOUR | I27: GNR | J27: HORAMETRE MATIN | K27: HORAMETRE SOIR | L27: CONTRÔLE
H28: =C28+E28+G28 -> 0 | L28: =IF(K28-J28=H28,"OK","FAUX") -> OK
H29: =C29+E29+G29 -> 0 | L29: =IF(K29-J29=H29,"OK","FAUX") -> OK
H30: 0 | L30: OK
H31: 0 | L31: OK
H32: 0 | L32: OK
H33: 0 | L33: OK
A35: VEHICULES DE LIAISON | B35: HORAMETRE MATIN | C35: SOIR | D35: GNR | E35: HEURE FONTIONNEMENT
E36: =C36-B36 -> 0
E37: =C37-B37 -> 0
E38: 0
A41: RAPPORT DE PRODUCTION
B43: COMPTEUR HORAIRE | C43: H/FONCT
A44: PRIMAIRE (Production Plaine)
A45: SECONDAIRE (Production Bascule Tunnel)
A46: TERTIAIRE (frabrication concassée)
A47: BIG BAG
A48: Compteur d'eau
E51: BIG BAG
A52: PRIMAIRE | D52: SECONDAIRE | G52: TERTIAIRE
A53: ALIMENTATION | B53: Tout venant Brut | D53: FABRICATION | E53: 0/4SCL | G53: CONCASSES | H53: 0/2C
A54: Plaine | B54: Tout venant Brut | D54: FABRICATION | E54: M0/16 | G54: CONCASSES | H54: 2/4C
A55: T120 | B55: Tout venant écreté | C55: =C54*0.95 -> 0 | D55: FABRICATION | E55: M0/8 | G55: CONCASSES | H55: 4/6C
A56: Débit mesuré en T/h | B56: GRANULOMETRIE | C56: TONNAGES | E56: GRANULOMETRIE | F56: TONNAGES | G56: CONCASSES | H56: 4/10C
A57: 50 | B57: 04 NATUREL | C57: =C53*D57 -> 0 | D57: 0.22 | E57: SABLE 0/4R | F57: =C57-(F53*'GNR ET ELEMENTS DE PROD'!L10)-('23'!F54*'GNR ET ELEMENTS DE PROD'!L7) -> 0 | G57: CONCASSES | H57: 6/10C
A58: 36 | B58: 4/8R | C58: =C53*D58 -> 0 | D58: 0.16 | E58: 4/8R | F58: =C58 -> 0 | G58: CONCASSES
A59: 42 | B59: 8/16R | C59: =C53*D59 -> 0 | D59: 0.18 | E59: 8/16R | F59: =C59-F54*'GNR ET ELEMENTS DE PROD'!N7 -> 0 | G59: CONCASSES
A60: 32 | B60: 11/22R | C60: =C53*D60 -> 0 | D60: 0.14 | E60: 11/22R | F60: =C60 -> 0 | G60: CONCASSES | H60: 0/4C | I60: =-F54*'GNR ET ELEMENTS DE PROD'!K7-F53*'GNR ET ELEMENTS DE PROD'!K10 -> 0
A61: 68 | B61: 22/80 | C61: =C53*D61 -> 0 | D61: 0.3 | E61: 22/80 | F61: =C63-I55-I5-ABS(I57) -> 0 | G61: CONCASSES | H61: 6,3/10 | I61: =+-'GNR ET ELEMENTS DE PROD'!M7*F54 -> 0
A62: =SUM(A57:B61) -> 228 | C62: =SUM(C57:C61) -> 0 | F62: =SUM(F57:F61) -> 0 | I62: =SUM(I53:I61) -> 0
A64: ACHATS
A68: ARRETS
A69: Horamètre | B69: CIRCUIT | C69: MACHINE | D69: CAUSE | E69: DUREE (en mn) | H69: COMMENTAIRES
E70: Panne | F70: Entretien | G70: AUTRE
A78: Observations (pour garder une trace d'un fait particulier)

Sheet 24
A1: RAPPORT JOURNALIER
A3: DATE :
A4: EXPLOITATION DE: | D4: RESPONSABLE | F4: METEO
D7: H DE PRODUCTIONS PREVUES
A8: POINTAGE PERSONNEL
A10: NOM PRENOM | B10: AFFECTATION | C10: Nombre d'heure | D10: AFFECTATION | E10: Nombre d'heure | F10: AFFECTATION | G10: Nombre d'heure | H10: TOTAL HORAIRE JOUR
H11: =C11+E11+G11 -> 0
H12: =C12+E12+G12 -> 0
H13: =C13+E13+G13 -> 0
H14: 0
H15: 0
H16: 0
H17: =C17+E17+G17 -> 0
H18: =C18+E18+G18 -> 0
H19: =C19+E19+G19 -> 0
H20: 0
H21: 0
H22: 0
A24: POINTAGE MATERIEL
A26: ENGINS DE PRODUCTION
A27: TYPE | B27: AFFECTATION HORAIRE | H27: TOTAL HORAIRE JOUR | I27: GNR | J27: HORAMETRE MATIN | K27: HORAMETRE SOIR | L27: CONTRÔLE
H28: =C28+E28+G28 -> 0 | L28: =IF(K28-J28=H28,"OK","FAUX") -> OK
H29: =C29+E29+G29 -> 0 | L29: =IF(K29-J29=H29,"OK","FAUX") -> OK
H30: 0 | L30: OK
H31: 0 | L31: OK
H32: 0 | L32: OK
H33: 0 | L33: OK
A35: VEHICULES DE LIAISON | B35: HORAMETRE MATIN | C35: SOIR | D35: GNR | E35: HEURE FONTIONNEMENT
E36: =C36-B36 -> 0
E37: =C37-B37 -> 0
E38: 0
A41: RAPPORT DE PRODUCTION
B43: COMPTEUR HORAIRE | C43: H/FONCT
A44: PRIMAIRE (Production Plaine)
A45: SECONDAIRE (Production Bascule Tunnel)
A46: TERTIAIRE (frabrication concassée)
A47: BIG BAG
A48: Compteur d'eau
E51: BIG BAG
A52: PRIMAIRE | D52: SECONDAIRE | G52: TERTIAIRE
A53: ALIMENTATION | B53: Tout venant Brut | D53: FABRICATION | E53: 0/4SCL | G53: CONCASSES | H53: 0/2C
A54: Plaine | B54: Tout venant Brut | D54: FABRICATION | E54: M0/16 | G54: CONCASSES | H54: 2/4C
A55: T120 | B55: Tout venant écreté | C55: =C54*0.95 -> 0 | D55: FABRICATION | E55: M0/8 | G55: CONCASSES | H55: 4/6C
A56: Débit mesuré en T/h | B56: GRANULOMETRIE | C56: TONNAGES | E56: GRANULOMETRIE | F56: TONNAGES | G56: CONCASSES | H56: 4/10C
A57: 50 | B57: 04 NATUREL | C57: =C53*D57 -> 0 | D57: 0.22 | E57: SABLE 0/4R | F57: =C57-(F53*'GNR ET ELEMENTS DE PROD'!L10)-('24'!F54*'GNR ET ELEMENTS DE PROD'!L7) -> 0 | G57: CONCASSES | H57: 6/10C
A58: 36 | B58: 4/8R | C58: =C53*D58 -> 0 | D58: 0.16 | E58: 4/8R | F58: =C58 -> 0 | G58: CONCASSES
A59: 42 | B59: 8/16R | C59: =C53*D59 -> 0 | D59: 0.18 | E59: 8/16R | F59: =C59-F54*'GNR ET ELEMENTS DE PROD'!N7 -> 0 | G59: CONCASSES
A60: 32 | B60: 11/22R | C60: =C53*D60 -> 0 | D60: 0.14 | E60: 11/22R | F60: =C60 -> 0 | G60: CONCASSES | H60: 0/4C | I60: =-F54*'GNR ET ELEMENTS DE PROD'!K7-F53*'GNR ET ELEMENTS DE PROD'!K10 -> 0
A61: 68 | B61: 22/80 | C61: =C53*D61 -> 0 | D61: 0.3 | E61: 22/80 | F61: =C63-I55-I5-ABS(I57) -> 0 | G61: CONCASSES | H61: 6,3/10 | I61: =+-'GNR ET ELEMENTS DE PROD'!M7*F54 -> 0
A62: =SUM(A57:B61) -> 228 | C62: =SUM(C57:C61) -> 0 | F62: =SUM(F57:F61) -> 0 | I62: =SUM(I53:I61) -> 0
A64: ACHATS
A68: ARRETS
A69: Horamètre | B69: CIRCUIT | C69: MACHINE | D69: CAUSE | E69: DUREE (en mn) | H69: COMMENTAIRES
E70: Panne | F70: Entretien | G70: AUTRE
A78: Observations (pour garder une trace d'un fait particulier)

Sheet 25
A1: RAPPORT JOURNALIER
A3: DATE :
A4: EXPLOITATION DE: | D4: RESPONSABLE | F4: METEO
D7: H DE PRODUCTIONS PREVUES
A8: POINTAGE PERSONNEL
A10: NOM PRENOM | B10: AFFECTATION | C10: Nombre d'heure | D10: AFFECTATION | E10: Nombre d'heure | F10: AFFECTATION | G10: Nombre d'heure | H10: TOTAL HORAIRE JOUR
H11: =C11+E11+G11 -> 0
H12: =C12+E12+G12 -> 0
H13: =C13+E13+G13 -> 0
H14: 0
H15: 0
H16: 0
H17: =C17+E17+G17 -> 0
H18: =C18+E18+G18 -> 0
H19: =C19+E19+G19 -> 0
H20: 0
H21: 0
H22: 0
A24: POINTAGE MATERIEL
A26: ENGINS DE PRODUCTION
A27: TYPE | B27: AFFECTATION HORAIRE | H27: TOTAL HORAIRE JOUR | I27: GNR | J27: HORAMETRE MATIN | K27: HORAMETRE SOIR | L27: CONTRÔLE
H28: =C28+E28+G28 -> 0 | L28: =IF(K28-J28=H28,"OK","FAUX") -> OK
H29: =C29+E29+G29 -> 0 | L29: =IF(K29-J29=H29,"OK","FAUX") -> OK
H30: 0 | L30: OK
H31: 0 | L31: OK
H32: 0 | L32: OK
H33: 0 | L33: OK
A35: VEHICULES DE LIAISON | B35: HORAMETRE MATIN | C35: SOIR | D35: GNR | E35: HEURE FONTIONNEMENT
E36: =C36-B36 -> 0
E37: =C37-B37 -> 0
E38: 0
A41: RAPPORT DE PRODUCTION
B43: COMPTEUR HORAIRE | C43: H/FONCT
A44: PRIMAIRE (Production Plaine)
A45: SECONDAIRE (Production Bascule Tunnel)
A46: TERTIAIRE (frabrication concassée)
A47: BIG BAG
A48: Compteur d'eau
E51: BIG BAG
A52: PRIMAIRE | D52: SECONDAIRE | G52: TERTIAIRE
A53: ALIMENTATION | B53: Tout venant Brut | D53: FABRICATION | E53: 0/4SCL | G53: CONCASSES | H53: 0/2C
A54: Plaine | B54: Tout venant Brut | D54: FABRICATION | E54: M0/16 | G54: CONCASSES | H54: 2/4C
A55: T120 | B55: Tout venant écreté | C55: =C54*0.95 -> 0 | D55: FABRICATION | E55: M0/8 | G55: CONCASSES | H55: 4/6C
A56: Débit mesuré en T/h | B56: GRANULOMETRIE | C56: TONNAGES | E56: GRANULOMETRIE | F56: TONNAGES | G56: CONCASSES | H56: 4/10C
A57: 50 | B57: 04 NATUREL | C57: =C53*D57 -> 0 | D57: 0.22 | E57: SABLE 0/4R | F57: =C57-(F53*'GNR ET ELEMENTS DE PROD'!L10)-('25'!F54*'GNR ET ELEMENTS DE PROD'!L7) -> 0 | G57: CONCASSES | H57: 6/10C
A58: 36 | B58: 4/8R | C58: =C53*D58 -> 0 | D58: 0.16 | E58: 4/8R | F58: =C58 -> 0 | G58: CONCASSES
A59: 42 | B59: 8/16R | C59: =C53*D59 -> 0 | D59: 0.18 | E59: 8/16R | F59: =C59-F54*'GNR ET ELEMENTS DE PROD'!N7 -> 0 | G59: CONCASSES
A60: 32 | B60: 11/22R | C60: =C53*D60 -> 0 | D60: 0.14 | E60: 11/22R | F60: =C60 -> 0 | G60: CONCASSES | H60: 0/4C | I60: =-F54*'GNR ET ELEMENTS DE PROD'!K7-F53*'GNR ET ELEMENTS DE PROD'!K10 -> 0
A61: 68 | B61: 22/80 | C61: =C53*D61 -> 0 | D61: 0.3 | E61: 22/80 | F61: =C63-I55-I5-ABS(I57) -> 0 | G61: CONCASSES | H61: 6,3/10 | I61: =+-'GNR ET ELEMENTS DE PROD'!M7*F54 -> 0
A62: =SUM(A57:B61) -> 228 | C62: =SUM(C57:C61) -> 0 | F62: =SUM(F57:F61) -> 0 | I62: =SUM(I53:I61) -> 0
A64: ACHATS
A68: ARRETS
A69: Horamètre | B69: CIRCUIT | C69: MACHINE | D69: CAUSE | E69: DUREE (en mn) | H69: COMMENTAIRES
E70: Panne | F70: Entretien | G70: AUTRE
A78: Observations (pour garder une trace d'un fait particulier)

Sheet 26
A1: RAPPORT JOURNALIER
A3: DATE :
A4: EXPLOITATION DE: | D4: RESPONSABLE | F4: METEO
D7: H DE PRODUCTIONS PREVUES
A8: POINTAGE PERSONNEL
A10: NOM PRENOM | B10: AFFECTATION | C10: Nombre d'heure | D10: AFFECTATION | E10: Nombre d'heure | F10: AFFECTATION | G10: Nombre d'heure | H10: TOTAL HORAIRE JOUR
H11: =C11+E11+G11 -> 0
H12: =C12+E12+G12 -> 0
H13: =C13+E13+G13 -> 0
H14: 0
H15: 0
H16: 0
H17: =C17+E17+G17 -> 0
H18: =C18+E18+G18 -> 0
H19: =C19+E19+G19 -> 0
H20: 0
H21: 0
H22: 0
A24: POINTAGE MATERIEL
A26: ENGINS DE PRODUCTION
A27: TYPE | B27: AFFECTATION HORAIRE | H27: TOTAL HORAIRE JOUR | I27: GNR | J27: HORAMETRE MATIN | K27: HORAMETRE SOIR | L27: CONTRÔLE
H28: =C28+E28+G28 -> 0 | L28: =IF(K28-J28=H28,"OK","FAUX") -> OK
H29: =C29+E29+G29 -> 0 | L29: =IF(K29-J29=H29,"OK","FAUX") -> OK
H30: 0 | L30: OK
H31: 0 | L31: OK
H32: 0 | L32: OK
H33: 0 | L33: OK
A35: VEHICULES DE LIAISON | B35: HORAMETRE MATIN | C35: SOIR | D35: GNR | E35: HEURE FONTIONNEMENT
E36: =C36-B36 -> 0
E37: =C37-B37 -> 0
E38: 0
A41: RAPPORT DE PRODUCTION
B43: COMPTEUR HORAIRE | C43: H/FONCT
A44: PRIMAIRE (Production Plaine)
A45: SECONDAIRE (Production Bascule Tunnel)
A46: TERTIAIRE (frabrication concassée)
A47: BIG BAG
A48: Compteur d'eau
E51: BIG BAG
A52: PRIMAIRE | D52: SECONDAIRE | G52: TERTIAIRE
A53: ALIMENTATION | B53: Tout venant Brut | D53: FABRICATION | E53: 0/4SCL | G53: CONCASSES | H53: 0/2C
A54: Plaine | B54: Tout venant Brut | D54: FABRICATION | E54: M0/16 | G54: CONCASSES | H54: 2/4C
A55: T120 | B55: Tout venant écreté | C55: =C54*0.95 -> 0 | D55: FABRICATION | E55: M0/8 | G55: CONCASSES | H55: 4/6C
A56: Débit mesuré en T/h | B56: GRANULOMETRIE | C56: TONNAGES | E56: GRANULOMETRIE | F56: TONNAGES | G56: CONCASSES | H56: 4/10C
A57: 50 | B57: 04 NATUREL | C57: =C53*D57 -> 0 | D57: 0.22 | E57: SABLE 0/4R | F57: =C57-(F53*'GNR ET ELEMENTS DE PROD'!L10)-('26'!F54*'GNR ET ELEMENTS DE PROD'!L7) -> 0 | G57: CONCASSES | H57: 6/10C
A58: 36 | B58: 4/8R | C58: =C53*D58 -> 0 | D58: 0.16 | E58: 4/8R | F58: =C58 -> 0 | G58: CONCASSES
A59: 42 | B59: 8/16R | C59: =C53*D59 -> 0 | D59: 0.18 | E59: 8/16R | F59: =C59-F54*'GNR ET ELEMENTS DE PROD'!N7 -> 0 | G59: CONCASSES
A60: 32 | B60: 11/22R | C60: =C53*D60 -> 0 | D60: 0.14 | E60: 11/22R | F60: =C60 -> 0 | G60: CONCASSES | H60: 0/4C | I60: =-F54*'GNR ET ELEMENTS DE PROD'!K7-F53*'GNR ET ELEMENTS DE PROD'!K10 -> 0
A61: 68 | B61: 22/80 | C61: =C53*D61 -> 0 | D61: 0.3 | E61: 22/80 | F61: =C63-I55-I5-ABS(I57) -> 0 | G61: CONCASSES | H61: 6,3/10 | I61: =+-'GNR ET ELEMENTS DE PROD'!M7*F54 -> 0
A62: =SUM(A57:B61) -> 228 | C62: =SUM(C57:C61) -> 0 | F62: =SUM(F57:F61) -> 0 | I62: =SUM(I53:I61) -> 0
A64: ACHATS
A68: ARRETS
A69: Horamètre | B69: CIRCUIT | C69: MACHINE | D69: CAUSE | E69: DUREE (en mn) | H69: COMMENTAIRES
E70: Panne | F70: Entretien | G70: AUTRE
A78: Observations (pour garder une trace d'un fait particulier)

Sheet 27
A1: RAPPORT JOURNALIER
A3: DATE :
A4: EXPLOITATION DE: | D4: RESPONSABLE | F4: METEO
D7: H DE PRODUCTIONS PREVUES
A8: POINTAGE PERSONNEL
A10: NOM PRENOM | B10: AFFECTATION | C10: Nombre d'heure | D10: AFFECTATION | E10: Nombre d'heure | F10: AFFECTATION | G10: Nombre d'heure | H10: TOTAL HORAIRE JOUR
H11: =C11+E11+G11 -> 0
H12: =C12+E12+G12 -> 0
H13: =C13+E13+G13 -> 0
H14: 0
H15: 0
H16: 0
H17: =C17+E17+G17 -> 0
H18: =C18+E18+G18 -> 0
H19: =C19+E19+G19 -> 0
H20: 0
H21: 0
H22: 0
A24: POINTAGE MATERIEL
A26: ENGINS DE PRODUCTION
A27: TYPE | B27: AFFECTATION HORAIRE | H27: TOTAL HORAIRE JOUR | I27: GNR | J27: HORAMETRE MATIN | K27: HORAMETRE SOIR | L27: CONTRÔLE
H28: =C28+E28+G28 -> 0 | L28: =IF(K28-J28=H28,"OK","FAUX") -> OK
H29: =C29+E29+G29 -> 0 | L29: =IF(K29-J29=H29,"OK","FAUX") -> OK
H30: 0 | L30: OK
H31: 0 | L31: OK
H32: 0 | L32: OK
H33: 0 | L33: OK
A35: VEHICULES DE LIAISON | B35: HORAMETRE MATIN | C35: SOIR | D35: GNR | E35: HEURE FONTIONNEMENT
E36: =C36-B36 -> 0
E37: =C37-B37 -> 0
E38: 0
A41: RAPPORT DE PRODUCTION
B43: COMPTEUR HORAIRE | C43: H/FONCT
A44: PRIMAIRE (Production Plaine)
A45: SECONDAIRE (Production Bascule Tunnel)
A46: TERTIAIRE (frabrication concassée)
A47: BIG BAG
A48: Compteur d'eau
E51: BIG BAG
A52: PRIMAIRE | D52: SECONDAIRE | G52: TERTIAIRE
A53: ALIMENTATION | B53: Tout venant Brut | D53: FABRICATION | E53: 0/4SCL | G53: CONCASSES | H53: 0/2C
A54: Plaine | B54: Tout venant Brut | D54: FABRICATION | E54: M0/16 | G54: CONCASSES | H54: 2/4C
A55: T120 | B55: Tout venant écreté | C55: =C54*0.95 -> 0 | D55: FABRICATION | E55: M0/8 | G55: CONCASSES | H55: 4/6C
A56: Débit mesuré en T/h | B56: GRANULOMETRIE | C56: TONNAGES | E56: GRANULOMETRIE | F56: TONNAGES | G56: CONCASSES | H56: 4/10C
A57: 50 | B57: 04 NATUREL | C57: =C53*D57 -> 0 | D57: 0.22 | E57: SABLE 0/4R | F57: =C57-(F53*'GNR ET ELEMENTS DE PROD'!L10)-('27'!F54*'GNR ET ELEMENTS DE PROD'!L7) -> 0 | G57: CONCASSES | H57: 6/10C
A58: 36 | B58: 4/8R | C58: =C53*D58 -> 0 | D58: 0.16 | E58: 4/8R | F58: =C58 -> 0 | G58: CONCASSES
A59: 42 | B59: 8/16R | C59: =C53*D59 -> 0 | D59: 0.18 | E59: 8/16R | F59: =C59-F54*'GNR ET ELEMENTS DE PROD'!N7 -> 0 | G59: CONCASSES
A60: 32 | B60: 11/22R | C60: =C53*D60 -> 0 | D60: 0.14 | E60: 11/22R | F60: =C60 -> 0 | G60: CONCASSES | H60: 0/4C | I60: =-F54*'GNR ET ELEMENTS DE PROD'!K7-F53*'GNR ET ELEMENTS DE PROD'!K10 -> 0
A61: 68 | B61: 22/80 | C61: =C53*D61 -> 0 | D61: 0.3 | E61: 22/80 | F61: =C63-I55-I5-ABS(I57) -> 0 | G61: CONCASSES | H61: 6,3/10 | I61: =+-'GNR ET ELEMENTS DE PROD'!M7*F54 -> 0
A62: =SUM(A57:B61) -> 228 | C62: =SUM(C57:C61) -> 0 | F62: =SUM(F57:F61) -> 0 | I62: =SUM(I53:I61) -> 0
A64: ACHATS
A68: ARRETS
A69: Horamètre | B69: CIRCUIT | C69: MACHINE | D69: CAUSE | E69: DUREE (en mn) | H69: COMMENTAIRES
E70: Panne | F70: Entretien | G70: AUTRE
A78: Observations (pour garder une trace d'un fait particulier)

Sheet 28
A1: RAPPORT JOURNALIER
A3: DATE :
A4: EXPLOITATION DE: | D4: RESPONSABLE | F4: METEO
D7: H DE PRODUCTIONS PREVUES
A8: POINTAGE PERSONNEL
A10: NOM PRENOM | B10: AFFECTATION | C10: Nombre d'heure | D10: AFFECTATION | E10: Nombre d'heure | F10: AFFECTATION | G10: Nombre d'heure | H10: TOTAL HORAIRE JOUR
H11: =C11+E11+G11 -> 0
H12: =C12+E12+G12 -> 0
H13: =C13+E13+G13 -> 0
H14: 0
H15: 0
H16: 0
H17: =C17+E17+G17 -> 0
H18: =C18+E18+G18 -> 0
H19: =C19+E19+G19 -> 0
H20: 0
H21: 0
H22: 0
A24: POINTAGE MATERIEL
A26: ENGINS DE PRODUCTION
A27: TYPE | B27: AFFECTATION HORAIRE | H27: TOTAL HORAIRE JOUR | I27: GNR | J27: HORAMETRE MATIN | K27: HORAMETRE SOIR | L27: CONTRÔLE
H28: =C28+E28+G28 -> 0 | L28: =IF(K28-J28=H28,"OK","FAUX") -> OK
H29: =C29+E29+G29 -> 0 | L29: =IF(K29-J29=H29,"OK","FAUX") -> OK
H30: 0 | L30: OK
H31: 0 | L31: OK
H32: 0 | L32: OK
H33: 0 | L33: OK
A35: VEHICULES DE LIAISON | B35: HORAMETRE MATIN | C35: SOIR | D35: GNR | E35: HEURE FONTIONNEMENT
E36: =C36-B36 -> 0
E37: =C37-B37 -> 0
E38: 0
A41: RAPPORT DE PRODUCTION
B43: COMPTEUR HORAIRE | C43: H/FONCT
A44: PRIMAIRE (Production Plaine)
A45: SECONDAIRE (Production Bascule Tunnel)
A46: TERTIAIRE (frabrication concassée)
A47: BIG BAG
A48: Compteur d'eau
E51: BIG BAG
A52: PRIMAIRE | D52: SECONDAIRE | G52: TERTIAIRE
A53: ALIMENTATION | B53: Tout venant Brut | D53: FABRICATION | E53: 0/4SCL | G53: CONCASSES | H53: 0/2C
A54: Plaine | B54: Tout venant Brut | D54: FABRICATION | E54: M0/16 | G54: CONCASSES | H54: 2/4C
A55: T120 | B55: Tout venant écreté | C55: =C54*0.95 -> 0 | D55: FABRICATION | E55: M0/8 | G55: CONCASSES | H55: 4/6C
A56: Débit mesuré en T/h | B56: GRANULOMETRIE | C56: TONNAGES | E56: GRANULOMETRIE | F56: TONNAGES | G56: CONCASSES | H56: 4/10C
A57: 50 | B57: 04 NATUREL | C57: =C53*D57 -> 0 | D57: 0.22 | E57: SABLE 0/4R | F57: =C57-(F53*'GNR ET ELEMENTS DE PROD'!L10)-('28'!F54*'GNR ET ELEMENTS DE PROD'!L7) -> 0 | G57: CONCASSES | H57: 6/10C
A58: 36 | B58: 4/8R | C58: =C53*D58 -> 0 | D58: 0.16 | E58: 4/8R | F58: =C58 -> 0 | G58: CONCASSES
A59: 42 | B59: 8/16R | C59: =C53*D59 -> 0 | D59: 0.18 | E59: 8/16R | F59: =C59-F54*'GNR ET ELEMENTS DE PROD'!N7 -> 0 | G59: CONCASSES
A60: 32 | B60: 11/22R | C60: =C53*D60 -> 0 | D60: 0.14 | E60: 11/22R | F60: =C60 -> 0 | G60: CONCASSES | H60: 0/4C | I60: =-F54*'GNR ET ELEMENTS DE PROD'!K7-F53*'GNR ET ELEMENTS DE PROD'!K10 -> 0
A61: 68 | B61: 22/80 | C61: =C53*D61 -> 0 | D61: 0.3 | E61: 22/80 | F61: =C63-I55-I5-ABS(I57) -> 0 | G61: CONCASSES | H61: 6,3/10 | I61: =+-'GNR ET ELEMENTS DE PROD'!M7*F54 -> 0
A62: =SUM(A57:B61) -> 228 | C62: =SUM(C57:C61) -> 0 | F62: =SUM(F57:F61) -> 0 | I62: =SUM(I53:I61) -> 0
A64: ACHATS
A68: ARRETS
A69: Horamètre | B69: CIRCUIT | C69: MACHINE | D69: CAUSE | E69: DUREE (en mn) | H69: COMMENTAIRES
E70: Panne | F70: Entretien | G70: AUTRE
A78: Observations (pour garder une trace d'un fait particulier)

Sheet 29
A1: RAPPORT JOURNALIER
A3: DATE :
A4: EXPLOITATION DE: | D4: RESPONSABLE | F4: METEO
D7: H DE PRODUCTIONS PREVUES
A8: POINTAGE PERSONNEL
A10: NOM PRENOM | B10: AFFECTATION | C10: Nombre d'heure | D10: AFFECTATION | E10: Nombre d'heure | F10: AFFECTATION | G10: Nombre d'heure | H10: TOTAL HORAIRE JOUR
H11: =C11+E11+G11 -> 0
H12: =C12+E12+G12 -> 0
H13: =C13+E13+G13 -> 0
H14: 0
H15: 0
H16: 0
H17: =C17+E17+G17 -> 0
H18: =C18+E18+G18 -> 0
H19: =C19+E19+G19 -> 0
H20: 0
H21: 0
H22: 0
A24: POINTAGE MATERIEL
A26: ENGINS DE PRODUCTION
A27: TYPE | B27: AFFECTATION HORAIRE | H27: TOTAL HORAIRE JOUR | I27: GNR | J27: HORAMETRE MATIN | K27: HORAMETRE SOIR | L27: CONTRÔLE
H28: =C28+E28+G28 -> 0 | L28: =IF(K28-J28=H28,"OK","FAUX") -> OK
H29: =C29+E29+G29 -> 0 | L29: =IF(K29-J29=H29,"OK","FAUX") -> OK
H30: 0 | L30: OK
H31: 0 | L31: OK
H32: 0 | L32: OK
H33: 0 | L33: OK
A35: VEHICULES DE LIAISON | B35: HORAMETRE MATIN | C35: SOIR | D35: GNR | E35: HEURE FONTIONNEMENT
E36: =C36-B36 -> 0
E37: =C37-B37 -> 0
E38: 0
A41: RAPPORT DE PRODUCTION
B43: COMPTEUR HORAIRE | C43: H/FONCT
A44: PRIMAIRE (Production Plaine)
A45: SECONDAIRE (Production Bascule Tunnel)
A46: TERTIAIRE (frabrication concassée)
A47: BIG BAG
A48: Compteur d'eau
E51: BIG BAG
A52: PRIMAIRE | D52: SECONDAIRE | G52: TERTIAIRE
A53: ALIMENTATION | B53: Tout venant Brut | D53: FABRICATION | E53: 0/4SCL | G53: CONCASSES | H53: 0/2C
A54: Plaine | B54: Tout venant Brut | D54: FABRICATION | E54: M0/16 | G54: CONCASSES | H54: 2/4C
A55: T120 | B55: Tout venant écreté | C55: =C54*0.95 -> 0 | D55: FABRICATION | E55: M0/8 | G55: CONCASSES | H55: 4/6C
A56: Débit mesuré en T/h | B56: GRANULOMETRIE | C56: TONNAGES | E56: GRANULOMETRIE | F56: TONNAGES | G56: CONCASSES | H56: 4/10C
A57: 50 | B57: 04 NATUREL | C57: =C53*D57 -> 0 | D57: 0.22 | E57: SABLE 0/4R | F57: =C57-(F53*'GNR ET ELEMENTS DE PROD'!L10)-('29'!F54*'GNR ET ELEMENTS DE PROD'!L7) -> 0 | G57: CONCASSES | H57: 6/10C
A58: 36 | B58: 4/8R | C58: =C53*D58 -> 0 | D58: 0.16 | E58: 4/8R | F58: =C58 -> 0 | G58: CONCASSES
A59: 42 | B59: 8/16R | C59: =C53*D59 -> 0 | D59: 0.18 | E59: 8/16R | F59: =C59-F54*'GNR ET ELEMENTS DE PROD'!N7 -> 0 | G59: CONCASSES
A60: 32 | B60: 11/22R | C60: =C53*D60 -> 0 | D60: 0.14 | E60: 11/22R | F60: =C60 -> 0 | G60: CONCASSES | H60: 0/4C | I60: =-F54*'GNR ET ELEMENTS DE PROD'!K7-F53*'GNR ET ELEMENTS DE PROD'!K10 -> 0
A61: 68 | B61: 22/80 | C61: =C53*D61 -> 0 | D61: 0.3 | E61: 22/80 | F61: =C63-I55-I5-ABS(I57) -> 0 | G61: CONCASSES | H61: 6,3/10 | I61: =+-'GNR ET ELEMENTS DE PROD'!M7*F54 -> 0
A62: =SUM(A57:B61) -> 228 | C62: =SUM(C57:C61) -> 0 | F62: =SUM(F57:F61) -> 0 | I62: =SUM(I53:I61) -> 0
A64: ACHATS
A68: ARRETS
A69: Horamètre | B69: CIRCUIT | C69: MACHINE | D69: CAUSE | E69: DUREE (en mn) | H69: COMMENTAIRES
E70: Panne | F70: Entretien | G70: AUTRE
A78: Observations (pour garder une trace d'un fait particulier)

Sheet 30
A1: RAPPORT JOURNALIER
A3: DATE :
A4: EXPLOITATION DE: | D4: RESPONSABLE | F4: METEO
D7: H DE PRODUCTIONS PREVUES
A8: POINTAGE PERSONNEL
A10: NOM PRENOM | B10: AFFECTATION | C10: Nombre d'heure | D10: AFFECTATION | E10: Nombre d'heure | F10: AFFECTATION | G10: Nombre d'heure | H10: TOTAL HORAIRE JOUR
H11: =C11+E11+G11 -> 0
H12: =C12+E12+G12 -> 0
H13: =C13+E13+G13 -> 0
H14: 0
H15: 0
H16: 0
H17: =C17+E17+G17 -> 0
H18: =C18+E18+G18 -> 0
H19: =C19+E19+G19 -> 0
H20: 0
H21: 0
H22: 0
A24: POINTAGE MATERIEL
A26: ENGINS DE PRODUCTION
A27: TYPE | B27: AFFECTATION HORAIRE | H27: TOTAL HORAIRE JOUR | I27: GNR | J27: HORAMETRE MATIN | K27: HORAMETRE SOIR | L27: CONTRÔLE
H28: =C28+E28+G28 -> 0 | L28: =IF(K28-J28=H28,"OK","FAUX") -> OK
H29: =C29+E29+G29 -> 0 | L29: =IF(K29-J29=H29,"OK","FAUX") -> OK
H30: 0 | L30: OK
H31: 0 | L31: OK
H32: 0 | L32: OK
H33: 0 | L33: OK
A35: VEHICULES DE LIAISON | B35: HORAMETRE MATIN | C35: SOIR | D35: GNR | E35: HEURE FONTIONNEMENT
E36: =C36-B36 -> 0
E37: =C37-B37 -> 0
E38: 0
A41: RAPPORT DE PRODUCTION
B43: COMPTEUR HORAIRE | C43: H/FONCT
A44: PRIMAIRE (Production Plaine)
A45: SECONDAIRE (Production Bascule Tunnel)
A46: TERTIAIRE (frabrication concassée)
A47: BIG BAG
A48: Compteur d'eau
E51: BIG BAG
A52: PRIMAIRE | D52: SECONDAIRE | G52: TERTIAIRE
A53: ALIMENTATION | B53: Tout venant Brut | D53: FABRICATION | E53: 0/4SCL | G53: CONCASSES | H53: 0/2C
A54: Plaine | B54: Tout venant Brut | D54: FABRICATION | E54: M0/16 | G54: CONCASSES | H54: 2/4C
A55: T120 | B55: Tout venant écreté | C55: =C54*0.95 -> 0 | D55: FABRICATION | E55: M0/8 | G55: CONCASSES | H55: 4/6C
A56: Débit mesuré en T/h | B56: GRANULOMETRIE | C56: TONNAGES | E56: GRANULOMETRIE | F56: TONNAGES | G56: CONCASSES | H56: 4/10C
A57: 50 | B57: 04 NATUREL | C57: =C53*D57 -> 0 | D57: 0.22 | E57: SABLE 0/4R | F57: =C57-(F53*'GNR ET ELEMENTS DE PROD'!L10)-('30'!F54*'GNR ET ELEMENTS DE PROD'!L7) -> 0 | G57: CONCASSES | H57: 6/10C
A58: 36 | B58: 4/8R | C58: =C53*D58 -> 0 | D58: 0.16 | E58: 4/8R | F58: =C58 -> 0 | G58: CONCASSES
A59: 42 | B59: 8/16R | C59: =C53*D59 -> 0 | D59: 0.18 | E59: 8/16R | F59: =C59-F54*'GNR ET ELEMENTS DE PROD'!N7 -> 0 | G59: CONCASSES
A60: 32 | B60: 11/22R | C60: =C53*D60 -> 0 | D60: 0.14 | E60: 11/22R | F60: =C60 -> 0 | G60: CONCASSES | H60: 0/4C | I60: =-F54*'GNR ET ELEMENTS DE PROD'!K7-F53*'GNR ET ELEMENTS DE PROD'!K10 -> 0
A61: 68 | B61: 22/80 | C61: =C53*D61 -> 0 | D61: 0.3 | E61: 22/80 | F61: =C63-I55-I5-ABS(I57) -> 0 | G61: CONCASSES | H61: 6,3/10 | I61: =+-'GNR ET ELEMENTS DE PROD'!M7*F54 -> 0
A62: =SUM(A57:B61) -> 228 | C62: =SUM(C57:C61) -> 0 | F62: =SUM(F57:F61) -> 0 | I62: =SUM(I53:I61) -> 0
A64: ACHATS
A68: ARRETS
A69: Horamètre | B69: CIRCUIT | C69: MACHINE | D69: CAUSE | E69: DUREE (en mn) | H69: COMMENTAIRES
E70: Panne | F70: Entretien | G70: AUTRE
A78: Observations (pour garder une trace d'un fait particulier)

Sheet 31
A1: RAPPORT JOURNALIER
A3: DATE :
A4: EXPLOITATION DE: | D4: RESPONSABLE | F4: METEO
D7: H DE PRODUCTIONS PREVUES
A8: POINTAGE PERSONNEL
A10: NOM PRENOM | B10: AFFECTATION | C10: Nombre d'heure | D10: AFFECTATION | E10: Nombre d'heure | F10: AFFECTATION | G10: Nombre d'heure | H10: TOTAL HORAIRE JOUR
H11: =C11+E11+G11 -> 0
H12: =C12+E12+G12 -> 0
H13: =C13+E13+G13 -> 0
H14: 0
H15: 0
H16: 0
H17: =C17+E17+G17 -> 0
H18: =C18+E18+G18 -> 0
H19: =C19+E19+G19 -> 0
H20: 0
H21: 0
H22: 0
A24: POINTAGE MATERIEL
A26: ENGINS DE PRODUCTION
A27: TYPE | B27: AFFECTATION HORAIRE | H27: TOTAL HORAIRE JOUR | I27: GNR | J27: HORAMETRE MATIN | K27: HORAMETRE SOIR | L27: CONTRÔLE
H28: =C28+E28+G28 -> 0 | L28: =IF(K28-J28=H28,"OK","FAUX") -> OK
H29: =C29+E29+G29 -> 0 | L29: =IF(K29-J29=H29,"OK","FAUX") -> OK
H30: 0 | L30: OK
H31: 0 | L31: OK
H32: 0 | L32: OK
H33: 0 | L33: OK
A35: VEHICULES DE LIAISON | B35: HORAMETRE MATIN | C35: SOIR | D35: GNR | E35: HEURE FONTIONNEMENT
E36: =C36-B36 -> 0
E37: =C37-B37 -> 0
E38: 0
A41: RAPPORT DE PRODUCTION
B43: COMPTEUR HORAIRE | C43: H/FONCT
A44: PRIMAIRE (Production Plaine)
A45: SECONDAIRE (Production Bascule Tunnel)
A46: TERTIAIRE (frabrication concassée)
A47: BIG BAG
A48: Compteur d'eau
E51: BIG BAG
A52: PRIMAIRE | D52: SECONDAIRE | G52: TERTIAIRE
A53: ALIMENTATION | B53: Tout venant Brut | D53: FABRICATION | E53: 0/4SCL | G53: CONCASSES | H53: 0/2C
A54: Plaine | B54: Tout venant Brut | D54: FABRICATION | E54: M0/16 | G54: CONCASSES | H54: 2/4C
A55: T120 | B55: Tout venant écreté | C55: =C54*0.95 -> 0 | D55: FABRICATION | E55: M0/8 | G55: CONCASSES | H55: 4/6C
A56: Débit mesuré en T/h | B56: GRANULOMETRIE | C56: TONNAGES | E56: GRANULOMETRIE | F56: TONNAGES | G56: CONCASSES | H56: 4/10C
A57: 50 | B57: 04 NATUREL | C57: =C53*D57 -> 0 | D57: 0.22 | E57: SABLE 0/4R | F57: =C57-(F53*'GNR ET ELEMENTS DE PROD'!L10)-('31'!F54*'GNR ET ELEMENTS DE PROD'!L7) -> 0 | G57: CONCASSES | H57: 6/10C
A58: 36 | B58: 4/8R | C58: =C53*D58 -> 0 | D58: 0.16 | E58: 4/8R | F58: =C58 -> 0 | G58: CONCASSES
A59: 42 | B59: 8/16R | C59: =C53*D59 -> 0 | D59: 0.18 | E59: 8/16R | F59: =C59-F54*'GNR ET ELEMENTS DE PROD'!N7 -> 0 | G59: CONCASSES
A60: 32 | B60: 11/22R | C60: =C53*D60 -> 0 | D60: 0.14 | E60: 11/22R | F60: =C60 -> 0 | G60: CONCASSES | H60: 0/4C | I60: =-F54*'GNR ET ELEMENTS DE PROD'!K7-F53*'GNR ET ELEMENTS DE PROD'!K10 -> 0
A61: 68 | B61: 22/80 | C61: =C53*D61 -> 0 | D61: 0.3 | E61: 22/80 | F61: =C63-I55-I5-ABS(I57) -> 0 | G61: CONCASSES | H61: 6,3/10 | I61: =+-'GNR ET ELEMENTS DE PROD'!M7*F54 -> 0
A62: =SUM(A57:B61) -> 228 | C62: =SUM(C57:C61) -> 0 | F62: =SUM(F57:F61) -> 0 | I62: =SUM(I53:I61) -> 0
A64: ACHATS
A68: ARRETS
A69: Horamètre | B69: CIRCUIT | C69: MACHINE | D69: CAUSE | E69: DUREE (en mn) | H69: COMMENTAIRES
E70: Panne | F70: Entretien | G70: AUTRE
A78: Observations (pour garder une trace d'un fait particulier)

Sheet RECAP MOIS PERSONNEL
A1: RECAPITULATIF AFFECTATION PERSONNEL SEPTEMBRE 2020 OSSELLE
A2: DATE | B2: NOM | C2: AFFECTATION | D2: H | E2: AFFECTATION2 | F2: H2 | G2: AFFECTATION4 | H2: H3 | I2: TOTAL
A3: 1 | B3: ='1'!A11 -> CRETIN Brigitte | C3: ='1'!B11 -> Bascule 200200 | D3: ='1'!C11 -> 8 | E3: ='1'!D11 -> 0 | F3: ='1'!E11 -> 0 | G3: ='1'!F11 -> 0 | H3: ='1'!G11 -> 0 | I3: =D3+H3+F3 -> 8
A4: =A3 -> 1 | B4: ='1'!A12 -> DORKELD Didier | C4: ='1'!B12 -> Sur Engin Chargement client | D4: ='1'!C12 -> 5 | E4: ='1'!D12 -> 210258 Travaux divers sans engins | F4: ='1'!E12 -> 3 | G4: ='1'!F12 -> 0 | H4: ='1'!G12 -> 0 | I4: =D4+H4+F4 -> 8
A5: =A4 -> 1 | B5: ='1'!A13 -> HOLTZ Mathieu | C5: ='1'!B13 -> Sur Engin Destockage | D5: ='1'!C13 -> 7 | E5: ='1'!D13 -> 210258 Travaux divers sans engins | F5: ='1'!E13 -> 1 | G5: ='1'!F13 -> 0 | H5: ='1'!G13 -> 0 | I5: 8
A6: 1 | B6: ='1'!A14 -> 0 | C6: ='1'!B14 -> 0 | D6: ='1'!C14 -> 0 | E6: ='1'!D14 -> 0 | F6: ='1'!E14 -> 0 | G6: ='1'!F14 -> 0 | H6: ='1'!G14 -> 0 | I6: 0
A7: 1 | B7: ='1'!A15 -> 0 | C7: ='1'!B15 -> 0 | D7: ='1'!C15 -> 0 | E7: ='1'!D15 -> 0 | F7: ='1'!E15 -> 0 | G7: ='1'!F15 -> 0 | H7: ='1'!G15 -> 0 | I7: 0
A8: 1 | B8: ='1'!A16 -> 0 | C8: ='1'!B16 -> 0 | D8: ='1'!C16 -> 0 | E8: ='1'!D16 -> 0 | F8: ='1'!E16 -> 0 | G8: ='1'!F16 -> 0 | H8: ='1'!G16 -> 0 | I8: =D8+H8+F8 -> 0
A9: 1 | B9: ='1'!A17 -> 0 | C9: ='1'!B17 -> 0 | D9: ='1'!C17 -> 0 | E9: ='1'!D17 -> 0 | F9: ='1'!E17 -> 0 | G9: ='1'!F17 -> 0 | H9: ='1'!G17 -> 0 | I9: 0
A10: 1 | B10: ='1'!A18 -> 0 | C10: ='1'!B18 -> 0 | D10: ='1'!C18 -> 0 | E10: ='1'!D18 -> 0 | F10: ='1'!E18 -> 0 | G10: ='1'!F18 -> 0 | H10: ='1'!G18 -> 0 | I10: 0
A11: 1 | B11: ='1'!A19 -> 0 | C11: ='1'!B19 -> 0 | D11: ='1'!C19 -> 0 | E11: ='1'!D19 -> 0 | F11: ='1'!E19 -> 0 | G11: ='1'!F19 -> 0 | H11: ='1'!G19 -> 0 | I11: 0
A12: 1 | B12: ='1'!A20 -> 0 | C12: ='1'!B20 -> 0 | D12: ='1'!C20 -> 0 | E12: ='1'!D20 -> 0 | F12: ='1'!E20 -> 0 | G12: ='1'!F20 -> 0 | H12: ='1'!G20 -> 0 | I12: 0
A13: 1 | B13: ='1'!A21 -> 0 | C13: ='1'!B21 -> 0 | D13: ='1'!C21 -> 0 | E13: ='1'!D21 -> 0 | F13: ='1'!E21 -> 0 | G13: ='1'!F21 -> 0 | H13: ='1'!G21 -> 0 | I13: 0
A14: 1 | B14: ='1'!A22 -> 0 | C14: ='1'!B22 -> 0 | D14: ='1'!C22 -> 0 | E14: ='1'!D22 -> 0 | F14: ='1'!E22 -> 0 | G14: ='1'!F22 -> 0 | H14: ='1'!G22 -> 0 | I14: 0
A15: 2 | B15: ='2'!A11 -> CRETIN Brigitte | C15: ='2'!B11 -> Bascule 200200 | D15: ='2'!C11 -> 7 | E15: ='2'!D11 -> 0 | F15: ='2'!E11 -> 0 | G15: ='2'!F11 -> 0 | H15: ='2'!G11 -> 0 | I15: 7
A16: =A15 -> 2 | B16: ='2'!A12 -> DORKELD Didier | C16: ='2'!B12 -> Sur Engin Chargement client | D16: ='2'!C12 -> 3 | E16: ='2'!D12 -> 210258 Travaux divers sans engins | F16: ='2'!E12 -> 4 | G16: ='2'!F12 -> 0 | H16: ='2'!G12 -> 0 | I16: =D16+H16+F16 -> 7
A17: =A16 -> 2 | B17: ='2'!A13 -> 0 | C17: ='2'!B13 -> 0 | D17: ='2'!C13 -> 0 | E17: ='2'!D13 -> 0 | F17: ='2'!E13 -> 0 | G17: ='2'!F13 -> 0 | H17: ='2'!G13 -> 0 | I17: =D17+H17+F17 -> 0 | K17: NOM
A18: 2 | B18: ='2'!A14 -> 0 | C18: ='2'!B14 -> 0 | D18: ='2'!C14 -> 0 | E18: ='2'!D14 -> 0 | F18: ='2'!E14 -> 0 | G18: ='2'!F14 -> 0 | H18: ='2'!G14 -> 0 | I18: 0
A19: 2 | B19: ='2'!A15 -> 0 | C19: ='2'!B15 -> 0 | D19: ='2'!C15 -> 0 | E19: ='2'!D15 -> 0 | F19: ='2'!E15 -> 0 | G19: ='2'!F15 -> 0 | H19: ='2'!G15 -> 0 | I19: 0
A20: 2 | B20: ='2'!A16 -> 0 | C20: ='2'!B16 -> 0 | D20: ='2'!C16 -> 0 | E20: ='2'!D16 -> 0 | F20: ='2'!E16 -> 0 | G20: ='2'!F16 -> 0 | H20: ='2'!G16 -> 0 | I20: 0
A21: 2 | B21: ='2'!A17 -> 0 | C21: ='2'!B17 -> 0 | D21: ='2'!C17 -> 0 | E21: ='2'!D17 -> 0 | F21: ='2'!E17 -> 0 | G21: ='2'!F17 -> 0 | H21: ='2'!G17 -> 0 | I21: 0
A22: 2 | B22: ='2'!A18 -> 0 | C22: ='2'!B18 -> 0 | D22: ='2'!C18 -> 0 | E22: ='2'!D18 -> 0 | F22: ='2'!E18 -> 0 | G22: ='2'!F18 -> 0 | H22: ='2'!G18 -> 0 | I22: 0
A23: 2 | B23: ='2'!A19 -> 0 | C23: ='2'!B19 -> 0 | D23: ='2'!C19 -> 0 | E23: ='2'!D19 -> 0 | F23: ='2'!E19 -> 0 | G23: ='2'!F19 -> 0 | H23: ='2'!G19 -> 0 | I23: 0
A24: 2 | B24: ='2'!A20 -> 0 | C24: ='2'!B20 -> 0 | D24: ='2'!C20 -> 0 | E24: ='2'!D20 -> 0 | F24: ='2'!E20 -> 0 | G24: ='2'!F20 -> 0 | H24: ='2'!G20 -> 0 | I24: 0
A25: 2 | B25: ='2'!A21 -> 0 | C25: ='2'!B21 -> 0 | D25: ='2'!C21 -> 0 | E25: ='2'!D21 -> 0 | F25: ='2'!E21 -> 0 | G25: ='2'!F21 -> 0 | H25: ='2'!G21 -> 0 | I25: 0
A26: 2 | B26: ='2'!A22 -> 0 | C26: ='2'!B22 -> 0 | D26: ='2'!C22 -> 0 | E26: ='2'!D22 -> 0 | F26: ='2'!E22 -> 0 | G26: ='2'!F22 -> 0 | H26: ='2'!G22 -> 0 | I26: 0
A27: 3 | B27: ='3'!A11 -> CRETIN Brigitte | C27: ='3'!B11 -> Bascule 200200 | D27: ='3'!C11 -> 7 | E27: ='3'!D11 -> 0 | F27: ='3'!E11 -> 0 | G27: ='3'!F11 -> 0 | H27: ='3'!G11 -> 0 | I27: =D27+H27+F27 -> 7
A28: =A27 -> 3 | B28: ='3'!A12 -> DORKELD Didier | C28: ='3'!B12 -> Sur Engin Chargement client | D28: ='3'!C12 -> 3 | E28: ='3'!D12 -> 210258 Travaux divers sans engins | F28: ='3'!E12 -> 4 | G28: ='3'!F12 -> 0 | H28: ='3'!G12 -> 0 | I28: =D28+H28+F28 -> 7 | K28: AFFECTATIONS | L28: TOTAL HORAIRE
A29: =A28 -> 3 | B29: ='3'!A13 -> 0 | C29: ='3'!B13 -> 0 | D29: ='3'!C13 -> 0 | E29: ='3'!D13 -> 0 | F29: ='3'!E13 -> 0 | G29: ='3'!F13 -> 0 | H29: ='3'!G13 -> 0 | I29: 0
A30: 3 | B30: ='3'!A14 -> 0 | C30: ='3'!B14 -> 0 | D30: ='3'!C14 -> 0 | E30: ='3'!D14 -> 0 | F30: ='3'!E14 -> 0 | G30: ='3'!F14 -> 0 | H30: ='3'!G14 -> 0 | I30: =D30+H30+F30 -> 0
A31: 3 | B31: ='3'!A15 -> 0 | C31: ='3'!B15 -> 0 | D31: ='3'!C15 -> 0 | E31: ='3'!D15 -> 0 | F31: ='3'!E15 -> 0 | G31: ='3'!F15 -> 0 | H31: ='3'!G15 -> 0 | I31: 0
A32: 3 | B32: ='3'!A16 -> 0 | C32: ='3'!B16 -> 0 | D32: ='3'!C16 -> 0 | E32: ='3'!D16 -> 0 | F32: ='3'!E16 -> 0 | G32: ='3'!F16 -> 0 | H32: ='3'!G16 -> 0 | I32: 0
A33: 3 | B33: ='3'!A17 -> 0 | C33: ='3'!B17 -> 0 | D33: ='3'!C17 -> 0 | E33: ='3'!D17 -> 0 | F33: ='3'!E17 -> 0 | G33: ='3'!F17 -> 0 | H33: ='3'!G17 -> 0 | I33: =D33+H33+F33 -> 0
A34: 3 | B34: ='3'!A18 -> 0 | C34: ='3'!B18 -> 0 | D34: ='3'!C18 -> 0 | E34: ='3'!D18 -> 0 | F34: ='3'!E18 -> 0 | G34: ='3'!F18 -> 0 | H34: ='3'!G18 -> 0 | I34: 0
A35: 3 | B35: ='3'!A19 -> 0 | C35: ='3'!B19 -> 0 | D35: ='3'!C19 -> 0 | E35: ='3'!D19 -> 0 | F35: ='3'!E19 -> 0 | G35: ='3'!F19 -> 0 | H35: ='3'!G19 -> 0 | I35: 0
A36: 3 | B36: ='3'!A20 -> 0 | C36: ='3'!B20 -> 0 | D36: ='3'!C20 -> 0 | E36: ='3'!D20 -> 0 | F36: ='3'!E20 -> 0 | G36: ='3'!F20 -> 0 | H36: ='3'!G20 -> 0 | I36: 0
A37: 3 | B37: ='3'!A21 -> 0 | C37: ='3'!B21 -> 0 | D37: ='3'!C21 -> 0 | E37: ='3'!D21 -> 0 | F37: ='3'!E21 -> 0 | G37: ='3'!F21 -> 0 | H37: ='3'!G21 -> 0 | I37: 0
A38: 3 | B38: ='3'!A22 -> 0 | C38: ='3'!B22 -> 0 | D38: ='3'!C22 -> 0 | E38: ='3'!D22 -> 0 | F38: ='3'!E22 -> 0 | G38: ='3'!F22 -> 0 | H38: ='3'!G22 -> 0 | I38: 0
A39: 4 | B39: ='4'!A11 -> CRETIN Brigitte | C39: ='4'!B11 -> Bascule 200200 | D39: ='4'!C11 -> 7 | E39: ='4'!D11 -> 0 | F39: ='4'!E11 -> 0 | G39: ='4'!F11 -> 0 | H39: ='4'!G11 -> 0 | I39: 7
A40: =A39 -> 4 | B40: ='4'!A12 -> DORKELD Didier | C40: ='4'!B12 -> Sur Engin Chargement client | D40: ='4'!C12 -> 3 | E40: ='4'!D12 -> 210258 Travaux divers sans engins | F40: ='4'!E12 -> 4 | G40: ='4'!F12 -> 0 | H40: ='4'!G12 -> 0 | I40: =D40+H40+F40 -> 7
A41: =A40 -> 4 | B41: ='4'!A13 -> 0 | C41: ='4'!B13 -> 0 | D41: ='4'!C13 -> 0 | E41: ='4'!D13 -> 0 | F41: ='4'!E13 -> 0 | G41: ='4'!F13 -> 0 | H41: ='4'!G13 -> 0 | I41: 0
A42: 4 | B42: ='4'!A14 -> 0 | C42: ='4'!B14 -> 0 | D42: ='4'!C14 -> 0 | E42: ='4'!D14 -> 0 | F42: ='4'!E14 -> 0 | G42: ='4'!F14 -> 0 | H42: ='4'!G14 -> 0 | I42: =D42+H42+F42 -> 0
A43: 4 | B43: ='4'!A15 -> 0 | C43: ='4'!B15 -> 0 | D43: ='4'!C15 -> 0 | E43: ='4'!D15 -> 0 | F43: ='4'!E15 -> 0 | G43: ='4'!F15 -> 0 | H43: ='4'!G15 -> 0 | I43: 0
A44: 4 | B44: ='4'!A16 -> 0 | C44: ='4'!B16 -> 0 | D44: ='4'!C16 -> 0 | E44: ='4'!D16 -> 0 | F44: ='4'!E16 -> 0 | G44: ='4'!F16 -> 0 | H44: ='4'!G16 -> 0 | I44: 0
A45: 4 | B45: ='4'!A17 -> 0 | C45: ='4'!B17 -> 0 | D45: ='4'!C17 -> 0 | E45: ='4'!D17 -> 0 | F45: ='4'!E17 -> 0 | G45: ='4'!F17 -> 0 | H45: ='4'!G17 -> 0 | I45: 0
A46: 4 | B46: ='4'!A18 -> 0 | C46: ='4'!B18 -> 0 | D46: ='4'!C18 -> 0 | E46: ='4'!D18 -> 0 | F46: ='4'!E18 -> 0 | G46: ='4'!F18 -> 0 | H46: ='4'!G18 -> 0 | I46: 0
A47: 4 | B47: ='4'!A19 -> 0 | C47: ='4'!B19 -> 0 | D47: ='4'!C19 -> 0 | E47: ='4'!D19 -> 0 | F47: ='4'!E19 -> 0 | G47: ='4'!F19 -> 0 | H47: ='4'!G19 -> 0 | I47: 0
A48: 4 | B48: ='4'!A20 -> 0 | C48: ='4'!B20 -> 0 | D48: ='4'!C20 -> 0 | E48: ='4'!D20 -> 0 | F48: ='4'!E20 -> 0 | G48: ='4'!F20 -> 0 | H48: ='4'!G20 -> 0 | I48: 0
A49: 4 | B49: ='4'!A21 -> 0 | C49: ='4'!B21 -> 0 | D49: ='4'!C21 -> 0 | E49: ='4'!D21 -> 0 | F49: ='4'!E21 -> 0 | G49: ='4'!F21 -> 0 | H49: ='4'!G21 -> 0 | I49: 0
A50: 4 | B50: ='4'!A22 -> 0 | C50: ='4'!B22 -> 0 | D50: ='4'!C22 -> 0 | E50: ='4'!D22 -> 0 | F50: ='4'!E22 -> 0 | G50: ='4'!F22 -> 0 | H50: ='4'!G22 -> 0 | I50: 0
A51: 5 | B51: ='5'!A11 -> 0 | C51: ='5'!B11 -> 0 | D51: ='5'!C11 -> 0 | E51: ='5'!D11 -> 0 | F51: ='5'!E11 -> 0 | G51: ='5'!F11 -> 0 | H51: ='5'!G11 -> 0 | I51: 0
A52: 5 | B52: ='5'!A12 -> DORKELD Didier | C52: ='5'!B12 -> Sur Engin Chargement client | D52: ='5'!C12 -> 2 | E52: ='5'!D12 -> 210258 Travaux divers sans engins | F52: ='5'!E12 -> 6 | G52: ='5'!F12 -> 0 | H52: ='5'!G12 -> 0 | I52: =D52+H52+F52 -> 8
A53: 5 | B53: ='5'!A13 -> HOLTZ Mathieu | C53: ='5'!B13 -> Install secondaire 210256 | D53: ='5'!C13 -> 1.5 | E53: ='5'!D13 -> Sur Engin Destockage | F53: ='5'!E13 -> 4 | G53: ='5'!F13 -> 0 | H53: ='5'!G13 -> 0 | I53: =D53+H53+F53 -> 5.5
A54: 5 | B54: ='5'!A14 -> LEBRUN Martial | C54: ='5'!B14 -> Bascule 200200 | D54: ='5'!C14 -> 8 | E54: ='5'!D14 -> 0 | F54: ='5'!E14 -> 0 | G54: ='5'!F14 -> 0 | H54: ='5'!G14 -> 0 | I54: 8
A55: 5 | B55: ='5'!A15 -> 0 | C55: ='5'!B15 -> 0 | D55: ='5'!C15 -> 0 | E55: ='5'!D15 -> 0 | F55: ='5'!E15 -> 0 | G55: ='5'!F15 -> 0 | H55: ='5'!G15 -> 0 | I55: 0
A56: 5 | B56: ='5'!A16 -> 0 | C56: ='5'!B16 -> 0 | D56: ='5'!C16 -> 0 | E56: ='5'!D16 -> 0 | F56: ='5'!E16 -> 0 | G56: ='5'!F16 -> 0 | H56: ='5'!G16 -> 0 | I56: 0
A57: 5 | B57: ='5'!A17 -> 0 | C57: ='5'!B17 -> 0 | D57: ='5'!C17 -> 0 | E57: ='5'!D17 -> 0 | F57: ='5'!E17 -> 0 | G57: ='5'!F17 -> 0 | H57: ='5'!G17 -> 0 | I57: 0
A58: 5 | B58: ='5'!A18 -> 0 | C58: ='5'!B18 -> 0 | D58: ='5'!C18 -> 0 | E58: ='5'!D18 -> 0 | F58: ='5'!E18 -> 0 | G58: ='5'!F18 -> 0 | H58: ='5'!G18 -> 0 | I58: 0
A59: 5 | B59: ='5'!A19 -> 0 | C59: ='5'!B19 -> 0 | D59: ='5'!C19 -> 0 | E59: ='5'!D19 -> 0 | F59: ='5'!E19 -> 0 | G59: ='5'!F19 -> 0 | H59: ='5'!G19 -> 0 | I59: 0
A60: 5 | B60: ='5'!A20 -> 0 | C60: ='5'!B20 -> 0 | D60: ='5'!C20 -> 0 | E60: ='5'!D20 -> 0 | F60: ='5'!E20 -> 0 | G60: ='5'!F20 -> 0 | H60: ='5'!G20 -> 0 | I60: 0
A61: 5 | B61: ='5'!A21 -> 0 | C61: ='5'!B21 -> 0 | D61: ='5'!C21 -> 0 | E61: ='5'!D21 -> 0 | F61: ='5'!E21 -> 0 | G61: ='5'!F21 -> 0 | H61: ='5'!G21 -> 0 | I61: 0
A62: 5 | B62: ='5'!A22 -> 0 | C62: ='5'!B22 -> 0 | D62: ='5'!C22 -> 0 | E62: ='5'!D22 -> 0 | F62: ='5'!E22 -> 0 | G62: ='5'!F22 -> 0 | H62: ='5'!G22 -> 0 | I62: 0
A63: 6 | B63: ='6'!A11 -> 0 | C63: ='6'!B11 -> 0 | D63: ='6'!C11 -> 0 | E63: ='6'!D11 -> 0 | F63: ='6'!E11 -> 0 | G63: ='6'!F11 -> 0 | H63: ='6'!G11 -> 0 | I63: 0
A64: =A63 -> 6 | B64: ='6'!A12 -> DORKELD Didier | C64: ='6'!B12 -> Sur Engin Chargement client | D64: ='6'!C12 -> 2 | E64: ='6'!D12 -> 210258 Travaux divers sans engins | F64: ='6'!E12 -> 6 | G64: ='6'!F12 -> 0 | H64: ='6'!G12 -> 0 | I64: =D64+H64+F64 -> 8
A65: =A64 -> 6 | B65: ='6'!A13 -> HOLTZ Mathieu | C65: ='6'!B13 -> Sur Engin Destockage | D65: ='6'!C13 -> 4 | E65: ='6'!D13 -> Install secondaire 210256 | F65: ='6'!E13 -> 4 | G65: ='6'!F13 -> 0 | H65: ='6'!G13 -> 0 | I65: 8
A66: 6 | B66: ='6'!A14 -> LEBRUN Martial | C66: ='6'!B14 -> Bascule 200200 | D66: ='6'!C14 -> 8 | E66: ='6'!D14 -> 0 | F66: ='6'!E14 -> 0 | G66: ='6'!F14 -> 0 | H66: ='6'!G14 -> 0 | I66: =D66+H66+F66 -> 8
A67: 6 | B67: ='6'!A15 -> 0 | C67: ='6'!B15 -> 0 | D67: ='6'!C15 -> 0 | E67: ='6'!D15 -> 0 | F67: ='6'!E15 -> 0 | G67: ='6'!F15 -> 0 | H67: ='6'!G15 -> 0 | I67: 0
A68: 6 | B68: ='6'!A16 -> 0 | C68: ='6'!B16 -> 0 | D68: ='6'!C16 -> 0 | E68: ='6'!D16 -> 0 | F68: ='6'!E16 -> 0 | G68: ='6'!F16 -> 0 | H68: ='6'!G16 -> 0 | I68: 0
A69: 6 | B69: ='6'!A17 -> 0 | C69: ='6'!B17 -> 0 | D69: ='6'!C17 -> 0 | E69: ='6'!D17 -> 0 | F69: ='6'!E17 -> 0 | G69: ='6'!F17 -> 0 | H69: ='6'!G17 -> 0 | I69: 0
A70: 6 | B70: ='6'!A18 -> 0 | C70: ='6'!B18 -> 0 | D70: ='6'!C18 -> 0 | E70: ='6'!D18 -> 0 | F70: ='6'!E18 -> 0 | G70: ='6'!F18 -> 0 | H70: ='6'!G18 -> 0 | I70: 0
A71: 6 | B71: ='6'!A19 -> 0 | C71: ='6'!B19 -> 0 | D71: ='6'!C19 -> 0 | E71: ='6'!D19 -> 0 | F71: ='6'!E19 -> 0 | G71: ='6'!F19 -> 0 | H71: ='6'!G19 -> 0 | I71: 0
A72: 6 | B72: ='6'!A20 -> 0 | C72: ='6'!B20 -> 0 | D72: ='6'!C20 -> 0 | E72: ='6'!D20 -> 0 | F72: ='6'!E20 -> 0 | G72: ='6'!F20 -> 0 | H72: ='6'!G20 -> 0 | I72: 0
A73: 6 | B73: ='6'!A21 -> 0 | C73: ='6'!B21 -> 0 | D73: ='6'!C21 -> 0 | E73: ='6'!D21 -> 0 | F73: ='6'!E21 -> 0 | G73: ='6'!F21 -> 0 | H73: ='6'!G21 -> 0 | I73: 0
A74: 6 | B74: ='6'!A22 -> 0 | C74: ='6'!B22 -> 0 | D74: ='6'!C22 -> 0 | E74: ='6'!D22 -> 0 | F74: ='6'!E22 -> 0 | G74: ='6'!F22 -> 0 | H74: ='6'!G22 -> 0 | I74: 0
A75: 7 | B75: ='7'!A11 -> 0 | C75: ='7'!B11 -> 0 | D75: ='7'!C11 -> 0 | E75: ='7'!D11 -> 0 | F75: ='7'!E11 -> 0 | G75: ='7'!F11 -> 0 | H75: ='7'!G11 -> 0 | I75: 0
A76: =A75 -> 7 | B76: ='7'!A12 -> DORKELD Didier | C76: ='7'!B12 -> Sur Engin Chargement client | D76: ='7'!C12 -> 2 | E76: ='7'!D12 -> 210258 Travaux divers sans engins | F76: ='7'!E12 -> 6 | G76: ='7'!F12 -> 0 | H76: ='7'!G12 -> 0 | I76: 8
A77: =A76 -> 7 | B77: ='7'!A13 -> HOLTZ Mathieu | C77: ='7'!B13 -> Sur Engin Travaux divers site | D77: ='7'!C13 -> 2 | E77: ='7'!D13 -> 210258 Travaux divers sans engins | F77: ='7'!E13 -> 6 | G77: ='7'!F13 -> 0 | H77: ='7'!G13 -> 0 | I77: 8
A78: 7 | B78: ='7'!A14 -> LEBRUN Martial | C78: ='7'!B14 -> Bascule 200200 | D78: ='7'!C14 -> 8 | E78: ='7'!D14 -> 0 | F78: ='7'!E14 -> 0 | G78: ='7'!F14 -> 0 | H78: ='7'!G14 -> 0 | I78: 8
A79: 7 | B79: ='7'!A15 -> 0 | C79: ='7'!B15 -> 0 | D79: ='7'!C15 -> 0 | E79: ='7'!D15 -> 0 | F79: ='7'!E15 -> 0 | G79: ='7'!F15 -> 0 | H79: ='7'!G15 -> 0 | I79: 0
A80: 7 | B80: ='7'!A16 -> 0 | C80: ='7'!B16 -> 0 | D80: ='7'!C16 -> 0 | E80: ='7'!D16 -> 0 | F80: ='7'!E16 -> 0 | G80: ='7'!F16 -> 0 | H80: ='7'!G16 -> 0 | I80: 0
A81: 7 | B81: ='7'!A17 -> 0 | C81: ='7'!B17 -> 0 | D81: ='7'!C17 -> 0 | E81: ='7'!D17 -> 0 | F81: ='7'!E17 -> 0 | G81: ='7'!F17 -> 0 | H81: ='7'!G17 -> 0 | I81: 0
A82: 7 | B82: ='7'!A18 -> 0 | C82: ='7'!B18 -> 0 | D82: ='7'!C18 -> 0 | E82: ='7'!D18 -> 0 | F82: ='7'!E18 -> 0 | G82: ='7'!F18 -> 0 | H82: ='7'!G18 -> 0 | I82: 0
A83: 7 | B83: ='7'!A19 -> 0 | C83: ='7'!B19 -> 0 | D83: ='7'!C19 -> 0 | E83: ='7'!D19 -> 0 | F83: ='7'!E19 -> 0 | G83: ='7'!F19 -> 0 | H83: ='7'!G19 -> 0 | I83: 0
A84: 7 | B84: ='7'!A20 -> 0 | C84: ='7'!B20 -> 0 | D84: ='7'!C20 -> 0 | E84: ='7'!D20 -> 0 | F84: ='7'!E20 -> 0 | G84: ='7'!F20 -> 0 | H84: ='7'!G20 -> 0 | I84: 0
A85: 7 | B85: ='7'!A21 -> 0 | C85: ='7'!B21 -> 0 | D85: ='7'!C21 -> 0 | E85: ='7'!D21 -> 0 | F85: ='7'!E21 -> 0 | G85: ='7'!F21 -> 0 | H85: ='7'!G21 -> 0 | I85: 0
A86: 7 | B86: ='7'!A22 -> 0 | C86: ='7'!B22 -> 0 | D86: ='7'!C22 -> 0 | E86: ='7'!D22 -> 0 | F86: ='7'!E22 -> 0 | G86: ='7'!F22 -> 0 | H86: ='7'!G22 -> 0 | I86: 0
A87: 8 | B87: ='8'!A11 -> CRETIN Brigitte | C87: ='8'!B11 -> 0 | D87: ='8'!C11 -> 0 | E87: ='8'!D11 -> 0 | F87: ='8'!E11 -> 0 | G87: ='8'!F11 -> 0 | H87: ='8'!G11 -> 0 | I87: 0
A88: =A87 -> 8 | B88: ='8'!A12 -> DORKELD Didier | C88: ='8'!B12 -> Sur Engin Chargement client | D88: ='8'!C12 -> 2 | E88: ='8'!D12 -> 210258 Travaux divers sans engins | F88: ='8'!E12 -> 6 | G88: ='8'!F12 -> 0 | H88: ='8'!G12 -> 0 | I88: 8
A89: =A88 -> 8 | B89: ='8'!A13 -> HOLTZ Mathieu | C89: ='8'!B13 -> Sur Engin Destockage | D89: ='8'!C13 -> 5 | E89: ='8'!D13 -> Install secondaire 210256 | F89: ='8'!E13 -> 3 | G89: ='8'!F13 -> 0 | H89: ='8'!G13 -> 0 | I89: 8
A90: 8 | B90: ='8'!A14 -> LEBRUN Martial | C90: ='8'!B14 -> Bascule 200200 | D90: ='8'!C14 -> 8 | E90: ='8'!D14 -> 0 | F90: ='8'!E14 -> 0 | G90: ='8'!F14 -> 0 | H90: ='8'!G14 -> 0 | I90: 8
A91: 8 | B91: ='8'!A15 -> 0 | C91: ='8'!B15 -> 0 | D91: ='8'!C15 -> 0 | E91: ='8'!D15 -> 0 | F91: ='8'!E15 -> 0 | G91: ='8'!F15 -> 0 | H91: ='8'!G15 -> 0 | I91: 0
A92: 8 | B92: ='8'!A16 -> 0 | C92: ='8'!B16 -> 0 | D92: ='8'!C16 -> 0 | E92: ='8'!D16 -> 0 | F92: ='8'!E16 -> 0 | G92: ='8'!F16 -> 0 | H92: ='8'!G16 -> 0 | I92: 0
A93: 8 | B93: ='8'!A17 -> 0 | C93: ='8'!B17 -> 0 | D93: ='8'!C17 -> 0 | E93: ='8'!D17 -> 0 | F93: ='8'!E17 -> 0 | G93: ='8'!F17 -> 0 | H93: ='8'!G17 -> 0 | I93: 0
A94: 8 | B94: ='8'!A18 -> 0 | C94: ='8'!B18 -> 0 | D94: ='8'!C18 -> 0 | E94: ='8'!D18 -> 0 | F94: ='8'!E18 -> 0 | G94: ='8'!F18 -> 0 | H94: ='8'!G18 -> 0 | I94: 0
A95: 8 | B95: ='8'!A19 -> 0 | C95: ='8'!B19 -> 0 | D95: ='8'!C19 -> 0 | E95: ='8'!D19 -> 0 | F95: ='8'!E19 -> 0 | G95: ='8'!F19 -> 0 | H95: ='8'!G19 -> 0 | I95: 0
A96: 8 | B96: ='8'!A20 -> 0 | C96: ='8'!B20 -> 0 | D96: ='8'!C20 -> 0 | E96: ='8'!D20 -> 0 | F96: ='8'!E20 -> 0 | G96: ='8'!F20 -> 0 | H96: ='8'!G20 -> 0 | I96: 0
A97: 8 | B97: ='8'!A21 -> 0 | C97: ='8'!B21 -> 0 | D97: ='8'!C21 -> 0 | E97: ='8'!D21 -> 0 | F97: ='8'!E21 -> 0 | G97: ='8'!F21 -> 0 | H97: ='8'!G21 -> 0 | I97: 0
A98: 8 | B98: ='8'!A22 -> 0 | C98: ='8'!B22 -> 0 | D98: ='8'!C22 -> 0 | E98: ='8'!D22 -> 0 | F98: ='8'!E22 -> 0 | G98: ='8'!F22 -> 0 | H98: ='8'!G22 -> 0 | I98: 0
A99: 9 | B99: ='9'!A11 -> CRETIN Brigitte | C99: ='9'!B11 -> 0 | D99: ='9'!C11 -> 0 | E99: ='9'!D11 -> 0 | F99: ='9'!E11 -> 0 | G99: ='9'!F11 -> 0 | H99: ='9'!G11 -> 0 | I99: 0
A100: =A99 -> 9 | B100: ='9'!A12 -> DORKELD Didier | C100: ='9'!B12 -> 210258 Travaux divers sans engins | D100: ='9'!C12 -> 3 | E100: ='9'!D12 -> Sur Engin Chargement client | F100: ='9'!E12 -> 3 | G100: ='9'!F12 -> Sur Engin Travaux divers site | H100: ='9'!G12 -> 1 | I100: 7
A101: =A100 -> 9 | B101: ='9'!A13 -> HOLTZ Mathieu | C101: ='9'!B13 -> Install secondaire 210256 | D101: ='9'!C13 -> 3.5 | E101: ='9'!D13 -> Sur Engin Destockage | F101: ='9'!E13 -> 3.5 | G101: ='9'!F13 -> 0 | H101: ='9'!G13 -> 0 | I101: 7
A102: 9 | B102: ='9'!A14 -> LEBRUN Martial | C102: ='9'!B14 -> Bascule 200200 | D102: ='9'!C14 -> 7 | E102: ='9'!D14 -> 0 | F102: ='9'!E14 -> 0 | G102: ='9'!F14 -> 0 | H102: ='9'!G14 -> 0 | I102: 7
A103: 9 | B103: ='9'!A15 -> 0 | C103: ='9'!B15 -> 0 | D103: ='9'!C15 -> 0 | E103: ='9'!D15 -> 0 | F103: ='9'!E15 -> 0 | G103: ='9'!F15 -> 0 | H103: ='9'!G15 -> 0 | I103: 0
A104: 9 | B104: ='9'!A16 -> 0 | C104: ='9'!B16 -> 0 | D104: ='9'!C16 -> 0 | E104: ='9'!D16 -> 0 | F104: ='9'!E16 -> 0 | G104: ='9'!F16 -> 0 | H104: ='9'!G16 -> 0 | I104: =D104+H104+F104 -> 0
A105: 9 | B105: ='9'!A17 -> 0 | C105: ='9'!B17 -> 0 | D105: ='9'!C17 -> 0 | E105: ='9'!D17 -> 0 | F105: ='9'!E17 -> 0 | G105: ='9'!F17 -> 0 | H105: ='9'!G17 -> 0 | I105: 0
A106: 9 | B106: ='9'!A18 -> 0 | C106: ='9'!B18 -> 0 | D106: ='9'!C18 -> 0 | E106: ='9'!D18 -> 0 | F106: ='9'!E18 -> 0 | G106: ='9'!F18 -> 0 | H106: ='9'!G18 -> 0 | I106: 0
A107: 9 | B107: ='9'!A19 -> 0 | C107: ='9'!B19 -> 0 | D107: ='9'!C19 -> 0 | E107: ='9'!D19 -> 0 | F107: ='9'!E19 -> 0 | G107: ='9'!F19 -> 0 | H107: ='9'!G19 -> 0 | I107: 0
A108: 9 | B108: ='9'!A20 -> 0 | C108: ='9'!B20 -> 0 | D108: ='9'!C20 -> 0 | E108: ='9'!D20 -> 0 | F108: ='9'!E20 -> 0 | G108: ='9'!F20 -> 0 | H108: ='9'!G20 -> 0 | I108: 0
A109: 9 | B109: ='9'!A21 -> 0 | C109: ='9'!B21 -> 0 | D109: ='9'!C21 -> 0 | E109: ='9'!D21 -> 0 | F109: ='9'!E21 -> 0 | G109: ='9'!F21 -> 0 | H109: ='9'!G21 -> 0 | I109: 0
A110: 9 | B110: ='9'!A22 -> 0 | C110: ='9'!B22 -> 0 | D110: ='9'!C22 -> 0 | E110: ='9'!D22 -> 0 | F110: ='9'!E22 -> 0 | G110: ='9'!F22 -> 0 | H110: ='9'!G22 -> 0 | I110: 0
A111: 10 | B111: ='10'!A11 -> 0 | C111: ='10'!B11 -> 0 | D111: ='10'!C11 -> 0 | E111: ='10'!D11 -> 0 | F111: ='10'!E11 -> 0 | G111: ='10'!F11 -> 0 | H111: ='10'!G11 -> 0 | I111: 0
A112: =A111 -> 10 | B112: ='10'!A12 -> 0 | C112: ='10'!B12 -> 0 | D112: ='10'!C12 -> 0 | E112: ='10'!D12 -> 0 | F112: ='10'!E12 -> 0 | G112: ='10'!F12 -> 0 | H112: ='10'!G12 -> 0 | I112: 0
A113: =A112 -> 10 | B113: ='10'!A13 -> 0 | C113: ='10'!B13 -> 0 | D113: ='10'!C13 -> 0 | E113: ='10'!D13 -> 0 | F113: ='10'!E13 -> 0 | G113: ='10'!F13 -> 0 | H113: ='10'!G13 -> 0 | I113: 0
A114: 10 | B114: ='10'!A14 -> 0 | C114: ='10'!B14 -> 0 | D114: ='10'!C14 -> 0 | E114: ='10'!D14 -> 0 | F114: ='10'!E14 -> 0 | G114: ='10'!F14 -> 0 | H114: ='10'!G14 -> 0 | I114: 0
A115: 10 | B115: ='10'!A15 -> 0 | C115: ='10'!B15 -> 0 | D115: ='10'!C15 -> 0 | E115: ='10'!D15 -> 0 | F115: ='10'!E15 -> 0 | G115: ='10'!F15 -> 0 | H115: ='10'!G15 -> 0 | I115: 0
A116: 10 | B116: ='10'!A16 -> 0 | C116: ='10'!B16 -> 0 | D116: ='10'!C16 -> 0 | E116: ='10'!D16 -> 0 | F116: ='10'!E16 -> 0 | G116: ='10'!F16 -> 0 | H116: ='10'!G16 -> 0 | I116: 0
A117: 10 | B117: ='10'!A17 -> 0 | C117: ='10'!B17 -> 0 | D117: ='10'!C17 -> 0 | E117: ='10'!D17 -> 0 | F117: ='10'!E17 -> 0 | G117: ='10'!F17 -> 0 | H117: ='10'!G17 -> 0 | I117: 0
A118: 10 | B118: ='10'!A18 -> 0 | C118: ='10'!B18 -> 0 | D118: ='10'!C18 -> 0 | E118: ='10'!D18 -> 0 | F118: ='10'!E18 -> 0 | G118: ='10'!F18 -> 0 | H118: ='10'!G18 -> 0 | I118: 0
A119: 10 | B119: ='10'!A19 -> 0 | C119: ='10'!B19 -> 0 | D119: ='10'!C19 -> 0 | E119: ='10'!D19 -> 0 | F119: ='10'!E19 -> 0 | G119: ='10'!F19 -> 0 | H119: ='10'!G19 -> 0 | I119: 0
A120: 10 | B120: ='10'!A20 -> 0 | C120: ='10'!B20 -> 0 | D120: ='10'!C20 -> 0 | E120: ='10'!D20 -> 0 | F120: ='10'!E20 -> 0 | G120: ='10'!F20 -> 0 | H120: ='10'!G20 -> 0 | I120: 0
A121: 10 | B121: ='10'!A21 -> 0 | C121: ='10'!B21 -> 0 | D121: ='10'!C21 -> 0 | E121: ='10'!D21 -> 0 | F121: ='10'!E21 -> 0 | G121: ='10'!F21 -> 0 | H121: ='10'!G21 -> 0 | I121: 0
A122: 10 | B122: ='10'!A22 -> 0 | C122: ='10'!B22 -> 0 | D122: ='10'!C22 -> 0 | E122: ='10'!D22 -> 0 | F122: ='10'!E22 -> 0 | G122: ='10'!F22 -> 0 | H122: ='10'!G22 -> 0 | I122: 0
A123: 11 | B123: ='11'!A11 -> 0 | C123: ='11'!B11 -> 0 | D123: ='11'!C11 -> 0 | E123: ='11'!D11 -> 0 | F123: ='11'!E11 -> 0 | G123: ='11'!F11 -> 0 | H123: ='11'!G11 -> 0 | I123: ='11'!H11 -> 0
A124: =A123 -> 11 | B124: ='11'!A12 -> 0 | C124: ='11'!B12 -> 0 | D124: ='11'!C12 -> 0 | E124: ='11'!D12 -> 0 | F124: ='11'!E12 -> 0 | G124: ='11'!F12 -> 0 | H124: ='11'!G12 -> 0 | I124: 0
A125: =A124 -> 11 | B125: ='11'!A13 -> 0 | C125: ='11'!B13 -> 0 | D125: ='11'!C13 -> 0 | E125: ='11'!D13 -> 0 | F125: ='11'!E13 -> 0 | G125: ='11'!F13 -> 0 | H125: ='11'!G13 -> 0 | I125: 0
A126: =A125 -> 11 | B126: ='11'!A14 -> 0 | C126: ='11'!B14 -> 0 | D126: ='11'!C14 -> 0 | E126: ='11'!D14 -> 0 | F126: ='11'!E14 -> 0 | G126: ='11'!F14 -> 0 | H126: ='11'!G14 -> 0 | I126: 0
A127: 11 | B127: ='11'!A15 -> 0 | C127: ='11'!B15 -> 0 | D127: ='11'!C15 -> 0 | E127: ='11'!D15 -> 0 | F127: ='11'!E15 -> 0 | G127: ='11'!F15 -> 0 | H127: ='11'!G15 -> 0 | I127: 0
A128: 11 | B128: ='11'!A16 -> 0 | C128: ='11'!B16 -> 0 | D128: ='11'!C16 -> 0 | E128: ='11'!D16 -> 0 | F128: ='11'!E16 -> 0 | G128: ='11'!F16 -> 0 | H128: ='11'!G16 -> 0 | I128: 0
A129: 11 | B129: ='11'!A17 -> 0 | C129: ='11'!B17 -> 0 | D129: ='11'!C17 -> 0 | E129: ='11'!D17 -> 0 | F129: ='11'!E17 -> 0 | G129: ='11'!F17 -> 0 | H129: ='11'!G17 -> 0 | I129: 0
A130: 11 | B130: ='11'!A18 -> 0 | C130: ='11'!B18 -> 0 | D130: ='11'!C18 -> 0 | E130: ='11'!D18 -> 0 | F130: ='11'!E18 -> 0 | G130: ='11'!F18 -> 0 | H130: ='11'!G18 -> 0 | I130: 0
A131: 11 | B131: ='11'!A19 -> 0 | C131: ='11'!B19 -> 0 | D131: ='11'!C19 -> 0 | E131: ='11'!D19 -> 0 | F131: ='11'!E19 -> 0 | G131: ='11'!F19 -> 0 | H131: ='11'!G19 -> 0 | I131: 0
A132: 11 | B132: ='11'!A20 -> 0 | C132: ='11'!B20 -> 0 | D132: ='11'!C20 -> 0 | E132: ='11'!D20 -> 0 | F132: ='11'!E20 -> 0 | G132: ='11'!F20 -> 0 | H132: ='11'!G20 -> 0 | I132: 0
A133: 11 | B133: ='11'!A21 -> 0 | C133: ='11'!B21 -> 0 | D133: ='11'!C21 -> 0 | E133: ='11'!D21 -> 0 | F133: ='11'!E21 -> 0 | G133: ='11'!F21 -> 0 | H133: ='11'!G21 -> 0 | I133: 0
A134: 11 | B134: ='11'!A22 -> 0 | C134: ='11'!B22 -> 0 | D134: ='11'!C22 -> 0 | E134: ='11'!D22 -> 0 | F134: ='11'!E22 -> 0 | G134: ='11'!F22 -> 0 | H134: ='11'!G22 -> 0 | I134: 0
A135: 12 | B135: ='12'!A11 -> CRETIN Brigitte | C135: ='12'!B11 -> Bascule 200200 | D135: ='12'!C11 -> 8 | E135: ='12'!D11 -> 0 | F135: ='12'!E11 -> 0 | G135: ='12'!F11 -> 0 | H135: ='12'!G11 -> 0 | I135: 8
A136: =A135 -> 12 | B136: ='12'!A12 -> DORKELD Didier | C136: ='12'!B12 -> 210258 Travaux divers sans engins | D136: ='12'!C12 -> 3 | E136: ='12'!D12 -> Sur Engin Chargement client | F136: ='12'!E12 -> 5 | G136: ='12'!F12 -> 0 | H136: ='12'!G12 -> 0 | I136: 8
A137: =A136 -> 12 | B137: ='12'!A13 -> 0 | C137: ='12'!B13 -> 0 | D137: ='12'!C13 -> 0 | E137: ='12'!D13 -> 0 | F137: ='12'!E13 -> 0 | G137: ='12'!F13 -> 0 | H137: ='12'!G13 -> 0 | I137: 0
A138: 12 | B138: ='12'!A14 -> 0 | C138: ='12'!B14 -> 0 | D138: ='12'!C14 -> 0 | E138: ='12'!D14 -> 0 | F138: ='12'!E14 -> 0 | G138: ='12'!F14 -> 0 | H138: ='12'!G14 -> 0 | I138: 0
A139: 12 | B139: ='12'!A15 -> 0 | C139: ='12'!B15 -> 0 | D139: ='12'!C15 -> 0 | E139: ='12'!D15 -> 0 | F139: ='12'!E15 -> 0 | G139: ='12'!F15 -> 0 | H139: ='12'!G15 -> 0 | I139: 0
A140: 12 | B140: ='12'!A16 -> 0 | C140: ='12'!B16 -> 0 | D140: ='12'!C16 -> 0 | E140: ='12'!D16 -> 0 | F140: ='12'!E16 -> 0 | G140: ='12'!F16 -> 0 | H140: ='12'!G16 -> 0 | I140: 0
A141: 12 | B141: ='12'!A17 -> 0 | C141: ='12'!B17 -> 0 | D141: ='12'!C17 -> 0 | E141: ='12'!D17 -> 0 | F141: ='12'!E17 -> 0 | G141: ='12'!F17 -> 0 | H141: ='12'!G17 -> 0 | I141: 0
A142: 12 | B142: ='12'!A18 -> 0 | C142: ='12'!B18 -> 0 | D142: ='12'!C18 -> 0 | E142: ='12'!D18 -> 0 | F142: ='12'!E18 -> 0 | G142: ='12'!F18 -> 0 | H142: ='12'!G18 -> 0 | I142: 0
A143: 12 | B143: ='12'!A19 -> 0 | C143: ='12'!B19 -> 0 | D143: ='12'!C19 -> 0 | E143: ='12'!D19 -> 0 | F143: ='12'!E19 -> 0 | G143: ='12'!F19 -> 0 | H143: ='12'!G19 -> 0 | I143: 0
A144: 12 | B144: ='12'!A20 -> 0 | C144: ='12'!B20 -> 0 | D144: ='12'!C20 -> 0 | E144: ='12'!D20 -> 0 | F144: ='12'!E20 -> 0 | G144: ='12'!F20 -> 0 | H144: ='12'!G20 -> 0 | I144: 0
A145: 12 | B145: ='12'!A21 -> 0 | C145: ='12'!B21 -> 0 | D145: ='12'!C21 -> 0 | E145: ='12'!D21 -> 0 | F145: ='12'!E21 -> 0 | G145: ='12'!F21 -> 0 | H145: ='12'!G21 -> 0 | I145: 0
A146: 12 | B146: ='12'!A22 -> 0 | C146: ='12'!B22 -> 0 | D146: ='12'!C22 -> 0 | E146: ='12'!D22 -> 0 | F146: ='12'!E22 -> 0 | G146: ='12'!F22 -> 0 | H146: ='12'!G22 -> 0 | I146: 0
A147: 13 | B147: ='13'!A11 -> CRETIN Brigitte | C147: ='13'!B11 -> Bascule 200200 | D147: ='13'!C11 -> 8 | E147: ='13'!D11 -> 0 | F147: ='13'!E11 -> 0 | G147: ='13'!F11 -> 0 | H147: ='13'!G11 -> 0 | I147: 8
A148: 13 | B148: ='13'!A12 -> DORKELD Didier | C148: ='13'!B12 -> 210258 Travaux divers sans engins | D148: ='13'!C12 -> 2 | E148: ='13'!D12 -> Sur Engin Chargement client | F148: ='13'!E12 -> 6 | G148: ='13'!F12 -> 0 | H148: ='13'!G12 -> 0 | I148: 8
A149: 13 | B149: ='13'!A13 -> 0 | C149: ='13'!B13 -> 0 | D149: ='13'!C13 -> 0 | E149: ='13'!D13 -> 0 | F149: ='13'!E13 -> 0 | G149: ='13'!F13 -> 0 | H149: ='13'!G13 -> 0 | I149: 0
A150: 13 | B150: ='13'!A14 -> 0 | C150: ='13'!B14 -> 0 | D150: ='13'!C14 -> 0 | E150: ='13'!D14 -> 0 | F150: ='13'!E14 -> 0 | G150: ='13'!F14 -> 0 | H150: ='13'!G14 -> 0 | I150: 0
A151: 13 | B151: ='13'!A15 -> 0 | C151: ='13'!B15 -> 0 | D151: ='13'!C15 -> 0 | E151: ='13'!D15 -> 0 | F151: ='13'!E15 -> 0 | G151: ='13'!F15 -> 0 | H151: ='13'!G15 -> 0 | I151: 0
A152: 13 | B152: ='13'!A16 -> 0 | C152: ='13'!B16 -> 0 | D152: ='13'!C16 -> 0 | E152: ='13'!D16 -> 0 | F152: ='13'!E16 -> 0 | G152: ='13'!F16 -> 0 | H152: ='13'!G16 -> 0 | I152: 0
A153: 13 | B153: ='13'!A17 -> 0 | C153: ='13'!B17 -> 0 | D153: ='13'!C17 -> 0 | E153: ='13'!D17 -> 0 | F153: ='13'!E17 -> 0 | G153: ='13'!F17 -> 0 | H153: ='13'!G17 -> 0 | I153: 0
A154: 13 | B154: ='13'!A18 -> 0 | C154: ='13'!B18 -> 0 | D154: ='13'!C18 -> 0 | E154: ='13'!D18 -> 0 | F154: ='13'!E18 -> 0 | G154: ='13'!F18 -> 0 | H154: ='13'!G18 -> 0 | I154: 0
A155: 13 | B155: ='13'!A19 -> 0 | C155: ='13'!B19 -> 0 | D155: ='13'!C19 -> 0 | E155: ='13'!D19 -> 0 | F155: ='13'!E19 -> 0 | G155: ='13'!F19 -> 0 | H155: ='13'!G19 -> 0 | I155: 0
A156: 13 | B156: ='13'!A20 -> 0 | C156: ='13'!B20 -> 0 | D156: ='13'!C20 -> 0 | E156: ='13'!D20 -> 0 | F156: ='13'!E20 -> 0 | G156: ='13'!F20 -> 0 | H156: ='13'!G20 -> 0 | I156: 0
A157: 13 | B157: ='13'!A21 -> 0 | C157: ='13'!B21 -> 0 | D157: ='13'!C21 -> 0 | E157: ='13'!D21 -> 0 | F157: ='13'!E21 -> 0 | G157: ='13'!F21 -> 0 | H157: ='13'!G21 -> 0 | I157: 0
A158: 13 | B158: ='13'!A22 -> 0 | C158: ='13'!B22 -> 0 | D158: ='13'!C22 -> 0 | E158: ='13'!D22 -> 0 | F158: ='13'!E22 -> 0 | G158: ='13'!F22 -> 0 | H158: ='13'!G22 -> 0 | I158: 0
A159: 14 | B159: ='14'!A11 -> CRETIN Brigitte | C159: ='14'!B11 -> Bascule 200200 | D159: ='14'!C11 -> 8 | E159: ='14'!D11 -> 0 | F159: ='14'!E11 -> 0 | G159: ='14'!F11 -> 0 | H159: ='14'!G11 -> 0 | I159: 8
A160: =A159 -> 14 | B160: ='14'!A12 -> DORKELD Didier | C160: ='14'!B12 -> 210258 Travaux divers sans engins | D160: ='14'!C12 -> 6 | E160: ='14'!D12 -> Sur Engin Chargement client | F160: ='14'!E12 -> 2 | G160: ='14'!F12 -> 0 | H160: ='14'!G12 -> 0 | I160: 8
A161: =A160 -> 14 | B161: ='14'!A13 -> 0 | C161: ='14'!B13 -> 0 | D161: ='14'!C13 -> 0 | E161: ='14'!D13 -> 0 | F161: ='14'!E13 -> 0 | G161: ='14'!F13 -> 0 | H161: ='14'!G13 -> 0 | I161: 0
A162: 14 | B162: ='14'!A14 -> 0 | C162: ='14'!B14 -> 0 | D162: ='14'!C14 -> 0 | E162: ='14'!D14 -> 0 | F162: ='14'!E14 -> 0 | G162: ='14'!F14 -> 0 | H162: ='14'!G14 -> 0 | I162: 0
A163: 14 | B163: ='14'!A15 -> 0 | C163: ='14'!B15 -> 0 | D163: ='14'!C15 -> 0 | E163: ='14'!D15 -> 0 | F163: ='14'!E15 -> 0 | G163: ='14'!F15 -> 0 | H163: ='14'!G15 -> 0 | I163: 0
A164: 14 | B164: ='14'!A16 -> 0 | C164: ='14'!B16 -> 0 | D164: ='14'!C16 -> 0 | E164: ='14'!D16 -> 0 | F164: ='14'!E16 -> 0 | G164: ='14'!F16 -> 0 | H164: ='14'!G16 -> 0 | I164: 0
A165: 14 | B165: ='14'!A17 -> 0 | C165: ='14'!B17 -> 0 | D165: ='14'!C17 -> 0 | E165: ='14'!D17 -> 0 | F165: ='14'!E17 -> 0 | G165: ='14'!F17 -> 0 | H165: ='14'!G17 -> 0 | I165: 0
A166: 14 | B166: ='14'!A18 -> 0 | C166: ='14'!B18 -> 0 | D166: ='14'!C18 -> 0 | E166: ='14'!D18 -> 0 | F166: ='14'!E18 -> 0 | G166: ='14'!F18 -> 0 | H166: ='14'!G18 -> 0 | I166: 0
A167: 14 | B167: ='14'!A19 -> 0 | C167: ='14'!B19 -> 0 | D167: ='14'!C19 -> 0 | E167: ='14'!D19 -> 0 | F167: ='14'!E19 -> 0 | G167: ='14'!F19 -> 0 | H167: ='14'!G19 -> 0 | I167: 0
A168: 14 | B168: ='14'!A20 -> 0 | C168: ='14'!B20 -> 0 | D168: ='14'!C20 -> 0 | E168: ='14'!D20 -> 0 | F168: ='14'!E20 -> 0 | G168: ='14'!F20 -> 0 | H168: ='14'!G20 -> 0 | I168: =D168+H168+F168 -> 0
A169: 14 | B169: ='14'!A21 -> 0 | C169: ='14'!B21 -> 0 | D169: ='14'!C21 -> 0 | E169: ='14'!D21 -> 0 | F169: ='14'!E21 -> 0 | G169: ='14'!F21 -> 0 | H169: ='14'!G21 -> 0 | I169: 0
A170: 14 | B170: ='14'!A22 -> 0 | C170: ='14'!B22 -> 0 | D170: ='14'!C22 -> 0 | E170: ='14'!D22 -> 0 | F170: ='14'!E22 -> 0 | G170: ='14'!F22 -> 0 | H170: ='14'!G22 -> 0 | I170: 0
A171: 15 | B171: ='15'!A11 -> CRETIN Brigitte | C171: ='15'!B11 -> Bascule 200200 | D171: ='15'!C11 -> 8 | E171: ='15'!D11 -> 0 | F171: ='15'!E11 -> 0 | G171: ='15'!F11 -> 0 | H171: ='15'!G11 -> 0 | I171: 8
A172: =A171 -> 15 | B172: ='15'!A12 -> DORKELD Didier | C172: ='15'!B12 -> 210258 Travaux divers sans engins | D172: ='15'!C12 -> 6 | E172: ='15'!D12 -> Sur Engin Chargement client | F172: ='15'!E12 -> 2 | G172: ='15'!F12 -> 0 | H172: ='15'!G12 -> 0 | I172: 8
A173: =A172 -> 15 | B173: ='15'!A13 -> 0 | C173: ='15'!B13 -> 0 | D173: ='15'!C13 -> 0 | E173: ='15'!D13 -> 0 | F173: ='15'!E13 -> 0 | G173: ='15'!F13 -> 0 | H173: ='15'!G13 -> 0 | I173: 0
A174: 15 | B174: ='15'!A14 -> 0 | C174: ='15'!B14 -> 0 | D174: ='15'!C14 -> 0 | E174: ='15'!D14 -> 0 | F174: ='15'!E14 -> 0 | G174: ='15'!F14 -> 0 | H174: ='15'!G14 -> 0 | I174: 0
A175: 15 | B175: ='15'!A15 -> 0 | C175: ='15'!B15 -> 0 | D175: ='15'!C15 -> 0 | E175: ='15'!D15 -> 0 | F175: ='15'!E15 -> 0 | G175: ='15'!F15 -> 0 | H175: ='15'!G15 -> 0 | I175: 0
A176: 15 | B176: ='15'!A16 -> 0 | C176: ='15'!B16 -> 0 | D176: ='15'!C16 -> 0 | E176: ='15'!D16 -> 0 | F176: ='15'!E16 -> 0 | G176: ='15'!F16 -> 0 | H176: ='15'!G16 -> 0 | I176: 0
A177: 15 | B177: ='15'!A17 -> 0 | C177: ='15'!B17 -> 0 | D177: ='15'!C17 -> 0 | E177: ='15'!D17 -> 0 | F177: ='15'!E17 -> 0 | G177: ='15'!F17 -> 0 | H177: ='15'!G17 -> 0 | I177: 0
A178: 15 | B178: ='15'!A18 -> 0 | C178: ='15'!B18 -> 0 | D178: ='15'!C18 -> 0 | E178: ='15'!D18 -> 0 | F178: ='15'!E18 -> 0 | G178: ='15'!F18 -> 0 | H178: ='15'!G18 -> 0 | I178: 0
A179: 15 | B179: ='15'!A19 -> 0 | C179: ='15'!B19 -> 0 | D179: ='15'!C19 -> 0 | E179: ='15'!D19 -> 0 | F179: ='15'!E19 -> 0 | G179: ='15'!F19 -> 0 | H179: ='15'!G19 -> 0 | I179: 0
A180: 15 | B180: ='15'!A20 -> 0 | C180: ='15'!B20 -> 0 | D180: ='15'!C20 -> 0 | E180: ='15'!D20 -> 0 | F180: ='15'!E20 -> 0 | G180: ='15'!F20 -> 0 | H180: ='15'!G20 -> 0 | I180: 0
A181: 15 | B181: ='15'!A21 -> 0 | C181: ='15'!B21 -> 0 | D181: ='15'!C21 -> 0 | E181: ='15'!D21 -> 0 | F181: ='15'!E21 -> 0 | G181: ='15'!F21 -> 0 | H181: ='15'!G21 -> 0 | I181: 0
A182: 15 | B182: ='15'!A22 -> 0 | C182: ='15'!B22 -> 0 | D182: ='15'!C22 -> 0 | E182: ='15'!D22 -> 0 | F182: ='15'!E22 -> 0 | G182: ='15'!F22 -> 0 | H182: ='15'!G22 -> 0 | I182: 0
A183: 16 | B183: ='16'!A11 -> CRETIN Brigitte | C183: ='16'!B11 -> Bascule 200200 | D183: ='16'!C11 -> 7 | E183: ='16'!D11 -> 0 | F183: ='16'!E11 -> 0 | G183: ='16'!F11 -> 0 | H183: ='16'!G11 -> 0 | I183: 7
A184: =A183 -> 16 | B184: ='16'!A12 -> DORKELD Didier | C184: ='16'!B12 -> 210258 Travaux divers sans engins | D184: ='16'!C12 -> 5 | E184: ='16'!D12 -> Sur Engin Chargement client | F184: ='16'!E12 -> 2 | G184: ='16'!F12 -> 0 | H184: ='16'!G12 -> 0 | I184: 7
A185: =A184 -> 16 | B185: ='16'!A13 -> 0 | C185: ='16'!B13 -> 0 | D185: ='16'!C13 -> 0 | E185: ='16'!D13 -> 0 | F185: ='16'!E13 -> 0 | G185: ='16'!F13 -> 0 | H185: ='16'!G13 -> 0 | I185: 0
A186: 16 | B186: ='16'!A14 -> 0 | C186: ='16'!B14 -> 0 | D186: ='16'!C14 -> 0 | E186: ='16'!D14 -> 0 | F186: ='16'!E14 -> 0 | G186: ='16'!F14 -> 0 | H186: ='16'!G14 -> 0 | I186: 0
A187: 16 | B187: ='16'!A15 -> 0 | C187: ='16'!B15 -> 0 | D187: ='16'!C15 -> 0 | E187: ='16'!D15 -> 0 | F187: ='16'!E15 -> 0 | G187: ='16'!F15 -> 0 | H187: ='16'!G15 -> 0 | I187: 0
A188: 16 | B188: ='16'!A16 -> 0 | C188: ='16'!B16 -> 0 | D188: ='16'!C16 -> 0 | E188: ='16'!D16 -> 0 | F188: ='16'!E16 -> 0 | G188: ='16'!F16 -> 0 | H188: ='16'!G16 -> 0 | I188: 0
A189: 16 | B189: ='16'!A17 -> 0 | C189: ='16'!B17 -> 0 | D189: ='16'!C17 -> 0 | E189: ='16'!D17 -> 0 | F189: ='16'!E17 -> 0 | G189: ='16'!F17 -> 0 | H189: ='16'!G17 -> 0 | I189: 0
A190: 16 | B190: ='16'!A18 -> 0 | C190: ='16'!B18 -> 0 | D190: ='16'!C18 -> 0 | E190: ='16'!D18 -> 0 | F190: ='16'!E18 -> 0 | G190: ='16'!F18 -> 0 | H190: ='16'!G18 -> 0 | I190: 0
A191: 16 | B191: ='16'!A19 -> 0 | C191: ='16'!B19 -> 0 | D191: ='16'!C19 -> 0 | E191: ='16'!D19 -> 0 | F191: ='16'!E19 -> 0 | G191: ='16'!F19 -> 0 | H191: ='16'!G19 -> 0 | I191: 0
A192: 16 | B192: ='16'!A20 -> 0 | C192: ='16'!B20 -> 0 | D192: ='16'!C20 -> 0 | E192: ='16'!D20 -> 0 | F192: ='16'!E20 -> 0 | G192: ='16'!F20 -> 0 | H192: ='16'!G20 -> 0 | I192: 0
A193: 16 | B193: ='16'!A21 -> 0 | C193: ='16'!B21 -> 0 | D193: ='16'!C21 -> 0 | E193: ='16'!D21 -> 0 | F193: ='16'!E21 -> 0 | G193: ='16'!F21 -> 0 | H193: ='16'!G21 -> 0 | I193: 0
A194: 16 | B194: ='16'!A22 -> 0 | C194: ='16'!B22 -> 0 | D194: ='16'!C22 -> 0 | E194: ='16'!D22 -> 0 | F194: ='16'!E22 -> 0 | G194: ='16'!F22 -> 0 | H194: ='16'!G22 -> 0 | I194: 0
A195: 17 | B195: ='17'!A11 -> 0 | C195: ='17'!B11 -> 0 | D195: ='17'!C11 -> 0 | E195: ='17'!D11 -> 0 | F195: ='17'!E11 -> 0 | G195: ='17'!F11 -> 0 | H195: ='17'!G11 -> 0 | I195: 0
A196: =A195 -> 17 | B196: ='17'!A12 -> 0 | C196: ='17'!B12 -> 0 | D196: ='17'!C12 -> 0 | E196: ='17'!D12 -> 0 | F196: ='17'!E12 -> 0 | G196: ='17'!F12 -> 0 | H196: ='17'!G12 -> 0 | I196: 0
A197: =A196 -> 17 | B197: ='17'!A13 -> 0 | C197: ='17'!B13 -> 0 | D197: ='17'!C13 -> 0 | E197: ='17'!D13 -> 0 | F197: ='17'!E13 -> 0 | G197: ='17'!F13 -> 0 | H197: ='17'!G13 -> 0 | I197: 0
A198: 17 | B198: ='17'!A14 -> 0 | C198: ='17'!B14 -> 0 | D198: ='17'!C14 -> 0 | E198: ='17'!D14 -> 0 | F198: ='17'!E14 -> 0 | G198: ='17'!F14 -> 0 | H198: ='17'!G14 -> 0 | I198: 0
A199: 17 | B199: ='17'!A15 -> 0 | C199: ='17'!B15 -> 0 | D199: ='17'!C15 -> 0 | E199: ='17'!D15 -> 0 | F199: ='17'!E15 -> 0 | G199: ='17'!F15 -> 0 | H199: ='17'!G15 -> 0 | I199: 0
A200: 17 | B200: ='17'!A16 -> 0 | C200: ='17'!B16 -> 0 | D200: ='17'!C16 -> 0 | E200: ='17'!D16 -> 0 | F200: ='17'!E16 -> 0 | G200: ='17'!F16 -> 0 | H200: ='17'!G16 -> 0 | I200: 0
... 175 more rows

Sheet RECAP MOIS MATERIEL
A1: DATE | B1: N° IMMAT | C1: AFFECTATION | D1: H | E1: AFFECTATION | F1: H | G1: AFFECTATION | H1: H | I1: H/kms TOTAL | J1: GNR | K1: H MATIN | L1: H SOIR | M1: TOTAL GNR/jour
A2: 1 | B2: ='1'!A28 -> Chargeur L566 - D3101014 | C2: ='1'!B28 -> CHARGEMENT CLIENT /200200 | D2: ='1'!C28 -> 5 | E2: ='1'!D28 -> 0 | F2: ='1'!E28 -> 0 | G2: ='1'!F28 -> 0 | H2: ='1'!G28 -> 0 | I2: ='1'!H28 -> 5 | J2: ='1'!I28 -> 0 | K2: ='1'!J28 -> 16743 | L2: ='1'!K28 -> 16748 | M2: =SUM(J2:J10) -> 193
A3: =A2 -> 1 | B3: ='1'!A29 -> Chargeur 966G - D3102742 | C3: ='1'!B29 -> DESTOCKAGE/200308 | D3: ='1'!C29 -> 7 | E3: ='1'!D29 -> 0 | F3: ='1'!E29 -> 0 | G3: ='1'!F29 -> 0 | H3: ='1'!G29 -> 0 | I3: ='1'!H29 -> 7 | J3: ='1'!I29 -> 193 | K3: ='1'!J29 -> 2386 | L3: ='1'!K29 -> 2393
A4: =A3 -> 1 | B4: ='1'!A30 -> CAMION MERCEDES OSSELLE-P2100552 | C4: ='1'!B30 -> 0 | D4: ='1'!C30 -> 0 | E4: ='1'!D30 -> 0 | F4: ='1'!E30 -> 0 | G4: ='1'!F30 -> 0 | H4: ='1'!G30 -> 0 | I4: ='1'!H30 -> 0 | J4: ='1'!I30 -> 0 | K4: ='1'!J30 -> 0 | L4: ='1'!K30 -> 0
A5: 1 | B5: ='1'!A31 -> 0 | C5: ='1'!B31 -> 0 | D5: ='1'!C31 -> 0 | E5: ='1'!D31 -> 0 | F5: ='1'!E31 -> 0 | G5: ='1'!F31 -> 0 | H5: ='1'!G31 -> 0 | I5: ='1'!H31 -> 0 | J5: ='1'!I31 -> 0 | K5: ='1'!J31 -> 0 | L5: ='1'!K31 -> 0
A6: 1 | B6: ='1'!A32 -> 0 | C6: ='1'!B32 -> 0 | D6: ='1'!C32 -> 0 | E6: ='1'!D32 -> 0 | F6: ='1'!E32 -> 0 | G6: ='1'!F32 -> 0 | H6: ='1'!G32 -> 0 | I6: ='1'!H32 -> 0 | J6: ='1'!I32 -> 0 | K6: ='1'!J32 -> 0 | L6: ='1'!K32 -> 0
A7: 1 | B7: ='1'!A33 -> 0 | C7: ='1'!B33 -> 0 | D7: ='1'!C33 -> 0 | E7: ='1'!D33 -> 0 | F7: ='1'!E33 -> 0 | G7: ='1'!F33 -> 0 | H7: ='1'!G33 -> 0 | I7: ='1'!H33 -> 0 | J7: ='1'!I33 -> 0 | K7: ='1'!J33 -> 0 | L7: ='1'!K33 -> 0
A8: 1 | B8: ='1'!A36 -> Minipelle SV17 - oss - D1002929 | I8: ='1'!E36 -> 0 | J8: ='1'!D36 -> 0 | K8: ='1'!B36 -> 2291 | L8: ='1'!C36 -> 2291
A9: 1 | B9: ='1'!A37 -> Manitou M30 - C8100689 | I9: ='1'!E37 -> 0 | J9: ='1'!D37 -> 0 | K9: ='1'!B37 -> 7139 | L9: ='1'!C37 -> 7139
A10: 1 | B10: ='1'!A38 -> 0 | I10: ='1'!E38 -> 0 | J10: ='1'!D38 -> 0 | K10: ='1'!B38 -> 0 | L10: ='1'!C38 -> 0
A11: 2 | B11: ='2'!A28 -> Chargeur L566 - D3101014 | C11: ='2'!B28 -> 0 | D11: ='2'!C28 -> 0 | E11: ='2'!D28 -> 0 | F11: ='2'!E28 -> 0 | G11: ='2'!F28 -> 0 | H11: ='2'!G28 -> 0 | I11: ='2'!H28 -> 0 | J11: ='2'!I28 -> 0 | K11: ='2'!J28 -> 16748 | L11: ='2'!K28 -> 16748 | M11: =SUM(J11:J19) -> 0
A12: =A11 -> 2 | B12: ='2'!A29 -> Chargeur 966G - D3102742 | C12: ='2'!B29 -> CHARGEMENT CLIENT /200200 | D12: ='2'!C29 -> 3 | E12: ='2'!D29 -> 0 | F12: ='2'!E29 -> 0 | G12: ='2'!F29 -> 0 | H12: ='2'!G29 -> 0 | I12: ='2'!H29 -> 3 | J12: ='2'!I29 -> 0 | K12: ='2'!J29 -> 2393 | L12: ='2'!K29 -> 2396
A13: =A12 -> 2 | B13: ='2'!A30 -> CAMION MERCEDES OSSELLE-P2100552 | C13: ='2'!B30 -> 0 | D13: ='2'!C30 -> 0 | E13: ='2'!D30 -> 0 | F13: ='2'!E30 -> 0 | G13: ='2'!F30 -> 0 | H13: ='2'!G30 -> 0 | I13: ='2'!H30 -> 0 | J13: ='2'!I30 -> 0 | K13: ='2'!J30 -> 0 | L13: ='2'!K30 -> 0
A14: 2 | B14: ='2'!A31 -> 0 | C14: ='2'!B31 -> 0 | D14: ='2'!C31 -> 0 | E14: ='2'!D31 -> 0 | F14: ='2'!E31 -> 0 | G14: ='2'!F31 -> 0 | H14: ='2'!G31 -> 0 | I14: ='2'!H31 -> 0 | J14: ='2'!I31 -> 0 | K14: ='2'!J31 -> 0 | L14: ='2'!K31 -> 0
A15: 2 | B15: ='2'!A32 -> 0 | C15: ='2'!B32 -> 0 | D15: ='2'!C32 -> 0 | E15: ='2'!D32 -> 0 | F15: ='2'!E32 -> 0 | G15: ='2'!F32 -> 0 | H15: ='2'!G32 -> 0 | I15: ='2'!H32 -> 0 | J15: ='2'!I32 -> 0 | K15: ='2'!J32 -> 0 | L15: ='2'!K32 -> 0
A16: 2 | B16: ='2'!A33 -> 0 | C16: ='2'!B33 -> 0 | D16: ='2'!C33 -> 0 | E16: ='2'!D33 -> 0 | F16: ='2'!E33 -> 0 | G16: ='2'!F33 -> 0 | H16: ='2'!G33 -> 0 | I16: ='2'!H33 -> 0 | J16: ='2'!I33 -> 0 | K16: ='2'!J33 -> 0 | L16: ='2'!K33 -> 0
A17: 2 | B17: ='2'!A36 -> Minipelle SV17 - oss - D1002929 | G17: ='2'!F36 -> 0 | H17: ='2'!G36 -> 0 | I17: ='2'!E36 -> 0 | J17: ='2'!D36 -> 0 | K17: ='2'!B36 -> 2291 | L17: ='2'!C36 -> 2291
A18: 2 | B18: ='2'!A37 -> Manitou M30 - C8100689 | I18: ='2'!E37 -> 0 | J18: ='2'!D37 -> 0 | K18: ='2'!B37 -> 7139 | L18: ='2'!C37 -> 7139
A19: 2 | B19: ='2'!A38 -> 0 | I19: ='2'!E38 -> 0 | J19: ='2'!D38 -> 0 | K19: ='2'!B38 -> 0 | L19: ='2'!C38 -> 0
A20: 3 | B20: ='3'!A28 -> Chargeur L566 - D3101014 | C20: ='3'!B28 -> 0 | D20: ='3'!C28 -> 0 | E20: ='3'!D28 -> 0 | F20: ='3'!E28 -> 0 | G20: ='3'!F28 -> 0 | H20: ='3'!G28 -> 0 | I20: ='3'!H28 -> 0 | J20: ='3'!I28 -> 0 | K20: ='3'!J28 -> 16748 | L20: ='3'!K28 -> 16748 | M20: =SUM(J20:J28) -> 0
A21: 3 | B21: ='3'!A29 -> Chargeur 966G - D3102742 | C21: ='3'!B29 -> CHARGEMENT CLIENT /200200 | D21: ='3'!C29 -> 3 | E21: ='3'!D29 -> 0 | F21: ='3'!E29 -> 0 | G21: ='3'!F29 -> 0 | H21: ='3'!G29 -> 0 | I21: ='3'!H29 -> 3 | J21: ='3'!I29 -> 0 | K21: ='3'!J29 -> 2393 | L21: ='3'!K29 -> 2396
A22: 3 | B22: ='3'!A30 -> CAMION MERCEDES OSSELLE-P2100552 | C22: ='3'!B30 -> 0 | D22: ='3'!C30 -> 0 | E22: ='3'!D30 -> 0 | F22: ='3'!E30 -> 0 | G22: ='3'!F30 -> 0 | H22: ='3'!G30 -> 0 | I22: ='3'!H30 -> 0 | J22: ='3'!I30 -> 0 | K22: ='3'!J30 -> 0 | L22: ='3'!K30 -> 0
A23: 3 | B23: ='3'!A31 -> 0 | C23: ='3'!B31 -> 0 | D23: ='3'!C31 -> 0 | E23: ='3'!D31 -> 0 | F23: ='3'!E31 -> 0 | G23: ='3'!F31 -> 0 | H23: ='3'!G31 -> 0 | I23: ='3'!H31 -> 0 | J23: ='3'!I31 -> 0 | K23: ='3'!J31 -> 0 | L23: ='3'!K31 -> 0
A24: 3 | B24: ='3'!A32 -> 0 | C24: ='3'!B32 -> 0 | D24: ='3'!C32 -> 0 | E24: ='3'!D32 -> 0 | F24: ='3'!E32 -> 0 | G24: ='3'!F32 -> 0 | H24: ='3'!G32 -> 0 | I24: ='3'!H32 -> 0 | J24: ='3'!I32 -> 0 | K24: ='3'!J32 -> 0 | L24: ='3'!K32 -> 0
A25: 3 | B25: ='3'!A33 -> 0 | C25: ='3'!B33 -> 0 | D25: ='3'!C33 -> 0 | E25: ='3'!D33 -> 0 | F25: ='3'!E33 -> 0 | G25: ='3'!F33 -> 0 | H25: ='3'!G33 -> 0 | I25: ='3'!H33 -> 0 | J25: ='3'!I33 -> 0 | K25: ='3'!J33 -> 0 | L25: ='3'!K33 -> 0
A26: 3 | B26: ='3'!A36 -> Minipelle SV17 - oss - D1002929 | G26: ='3'!F36 -> 0 | H26: ='3'!G36 -> 0 | I26: ='3'!E36 -> 0 | J26: ='3'!D36 -> 0 | K26: ='3'!B36 -> 2291 | L26: ='3'!C36 -> 2291
A27: 3 | B27: ='3'!A37 -> Manitou M30 - C8100689 | G27: ='3'!F37 -> 0 | H27: ='3'!G37 -> 0 | I27: ='3'!E37 -> 0 | J27: ='3'!D37 -> 0 | K27: ='3'!B37 -> 7139 | L27: ='3'!C37 -> 7139
A28: 3 | B28: ='3'!A38 -> 0 | G28: ='3'!F38 -> 0 | H28: ='3'!G38 -> 0 | I28: ='3'!E38 -> 0 | J28: ='3'!D38 -> 0 | K28: ='3'!B38 -> 0 | L28: ='3'!C38 -> 0
A29: 4 | B29: ='4'!A28 -> Chargeur L566 - D3101014 | C29: ='4'!B28 -> 0 | D29: ='4'!C28 -> 0 | E29: ='4'!D28 -> 0 | F29: ='4'!E28 -> 0 | G29: ='4'!F28 -> 0 | H29: ='4'!G28 -> 0 | I29: ='4'!H28 -> 0 | J29: ='4'!I28 -> 0 | K29: ='4'!J28 -> 16748 | L29: ='4'!K28 -> 16748 | M29: =SUM(J29:J37) -> 0
A30: =A29 -> 4 | B30: ='4'!A29 -> Chargeur 966G - D3102742 | C30: ='4'!B29 -> CHARGEMENT CLIENT /200200 | D30: ='4'!C29 -> 3 | E30: ='4'!D29 -> 0 | F30: ='4'!E29 -> 0 | G30: ='4'!F29 -> 0 | H30: ='4'!G29 -> 0 | I30: ='4'!H29 -> 3 | J30: ='4'!I29 -> 0 | K30: ='4'!J29 -> 2393 | L30: ='4'!K29 -> 2396
A31: =A30 -> 4 | B31: ='4'!A30 -> CAMION MERCEDES OSSELLE-P2100552 | C31: ='4'!B30 -> 0 | D31: ='4'!C30 -> 0 | E31: ='4'!D30 -> 0 | F31: ='4'!E30 -> 0 | G31: ='4'!F30 -> 0 | H31: ='4'!G30 -> 0 | I31: ='4'!H30 -> 0 | J31: ='4'!I30 -> 0 | K31: ='4'!J30 -> 0 | L31: ='4'!K30 -> 0
A32: 4 | B32: ='4'!A31 -> 0 | C32: ='4'!B31 -> 0 | D32: ='4'!C31 -> 0 | E32: ='4'!D31 -> 0 | F32: ='4'!E31 -> 0 | G32: ='4'!F31 -> 0 | H32: ='4'!G31 -> 0 | I32: ='4'!H31 -> 0 | J32: ='4'!I31 -> 0 | K32: ='4'!J31 -> 0 | L32: ='4'!K31 -> 0
A33: 4 | B33: ='4'!A32 -> 0 | C33: ='4'!B32 -> 0 | D33: ='4'!C32 -> 0 | E33: ='4'!D32 -> 0 | F33: ='4'!E32 -> 0 | G33: ='4'!F32 -> 0 | H33: ='4'!G32 -> 0 | I33: ='4'!H32 -> 0 | J33: ='4'!I32 -> 0 | K33: ='4'!J32 -> 0 | L33: ='4'!K32 -> 0
A34: 4 | B34: ='4'!A33 -> 0 | C34: ='4'!B33 -> 0 | D34: ='4'!C33 -> 0 | E34: ='4'!D33 -> 0 | F34: ='4'!E33 -> 0 | G34: ='4'!F33 -> 0 | H34: ='4'!G33 -> 0 | I34: ='4'!H33 -> 0 | J34: ='4'!I33 -> 0 | K34: ='4'!J33 -> 0 | L34: ='4'!K33 -> 0
A35: 4 | B35: ='4'!A36 -> Minipelle SV17 - oss - D1002929 | G35: ='4'!F36 -> 0 | H35: ='4'!G36 -> 0 | I35: ='4'!E36 -> 0 | J35: ='4'!D36 -> 0 | K35: ='4'!B36 -> 2291 | L35: ='4'!C36 -> 2291
A36: 4 | B36: ='4'!A37 -> Manitou M30 - C8100689 | G36: ='4'!F37 -> 0 | H36: ='4'!G37 -> 0 | I36: ='4'!E37 -> 0 | J36: ='4'!D37 -> 0 | K36: ='4'!B37 -> 7139 | L36: ='4'!C37 -> 7139
A37: 4 | B37: ='4'!A38 -> 0 | G37: ='4'!F38 -> 0 | H37: ='4'!G38 -> 0 | I37: ='4'!E38 -> 0 | J37: ='4'!D38 -> 0 | K37: ='4'!B38 -> 0 | L37: ='4'!C38 -> 0
A38: 5 | B38: ='5'!A28 -> Chargeur L566 - D3101014 | C38: ='5'!B28 -> CHARGEMENT CLIENT /200200 | D38: ='5'!C28 -> 2 | E38: ='5'!D28 -> 0 | F38: ='5'!E28 -> 0 | G38: ='5'!F28 -> 0 | H38: ='5'!G28 -> 0 | I38: ='5'!H28 -> 2 | J38: ='5'!I28 -> 150 | K38: ='5'!J28 -> 16748 | L38: ='5'!K28 -> 16750 | M38: =SUM(J38:J46) -> 150
A39: =A38 -> 5 | B39: ='5'!A29 -> Chargeur 966G - D3102742 | C39: ='5'!B29 -> DESTOCKAGE/200308 | D39: ='5'!C29 -> 4 | E39: ='5'!D29 -> 0 | F39: ='5'!E29 -> 0 | G39: ='5'!F29 -> 0 | H39: ='5'!G29 -> 0 | I39: ='5'!H29 -> 4 | J39: ='5'!I29 -> 0 | K39: ='5'!J29 -> 2396 | L39: ='5'!K29 -> 2400
A40: =A39 -> 5 | B40: ='5'!A30 -> CAMION MERCEDES OSSELLE-P2100552 | C40: ='5'!B30 -> 0 | D40: ='5'!C30 -> 0 | E40: ='5'!D30 -> 0 | F40: ='5'!E30 -> 0 | G40: ='5'!F30 -> 0 | H40: ='5'!G30 -> 0 | I40: ='5'!H30 -> 0 | J40: ='5'!I30 -> 0 | K40: ='5'!J30 -> 0 | L40: ='5'!K30 -> 0
A41: 5 | B41: ='5'!A31 -> 0 | C41: ='5'!B31 -> 0 | D41: ='5'!C31 -> 0 | E41: ='5'!D31 -> 0 | F41: ='5'!E31 -> 0 | G41: ='5'!F31 -> 0 | H41: ='5'!G31 -> 0 | I41: ='5'!H31 -> 0 | J41: ='5'!I31 -> 0 | K41: ='5'!J31 -> 0 | L41: ='5'!K31 -> 0
A42: 5 | B42: ='5'!A32 -> 0 | C42: ='5'!B32 -> 0 | D42: ='5'!C32 -> 0 | E42: ='5'!D32 -> 0 | F42: ='5'!E32 -> 0 | G42: ='5'!F32 -> 0 | H42: ='5'!G32 -> 0 | I42: ='5'!H32 -> 0 | J42: ='5'!I32 -> 0 | K42: ='5'!J32 -> 0 | L42: ='5'!K32 -> 0
A43: 5 | B43: ='5'!A33 -> 0 | C43: ='5'!B33 -> 0 | D43: ='5'!C33 -> 0 | E43: ='5'!D33 -> 0 | F43: ='5'!E33 -> 0 | G43: ='5'!F33 -> 0 | H43: ='5'!G33 -> 0 | I43: ='5'!H33 -> 0 | J43: ='5'!I33 -> 0 | K43: ='5'!J33 -> 0 | L43: ='5'!K33 -> 0
A44: 5 | B44: ='5'!A36 -> Minipelle SV17 - oss - D1002929 | G44: ='5'!F36 -> 0 | H44: ='5'!G36 -> 0 | I44: ='5'!E36 -> 0 | J44: ='5'!D36 -> 0 | K44: ='5'!B36 -> 2291 | L44: ='5'!C36 -> 2291
A45: 5 | B45: ='5'!A37 -> Manitou M30 - C8100689 | G45: ='5'!F37 -> 0 | H45: ='5'!G37 -> 0 | I45: ='5'!E37 -> 0 | J45: ='5'!D37 -> 0 | K45: ='5'!B37 -> 7139 | L45: ='5'!C37 -> 7139
A46: 5 | B46: ='5'!A38 -> 0 | G46: ='5'!F38 -> 0 | H46: ='5'!G38 -> 0 | I46: ='5'!E38 -> 0 | J46: ='5'!D38 -> 0 | K46: ='5'!B38 -> 0 | L46: ='5'!C38 -> 0
A47: 6 | B47: ='6'!A28 -> Chargeur L566 - D3101014 | C47: ='6'!B28 -> CHARGEMENT CLIENT /200200 | D47: ='6'!C28 -> 2 | E47: ='6'!D28 -> 0 | F47: ='6'!E28 -> 0 | G47: ='6'!F28 -> 0 | H47: ='6'!G28 -> 0 | I47: ='6'!H28 -> 2 | J47: ='6'!I28 -> 0 | K47: ='6'!J28 -> 16750 | L47: ='6'!K28 -> 16752 | M47: =SUM(J47:J55) -> 0
A48: =A47 -> 6 | B48: ='6'!A29 -> Chargeur 966G - D3102742 | C48: ='6'!B29 -> DESTOCKAGE/200308 | D48: ='6'!C29 -> 4 | E48: ='6'!D29 -> 0 | F48: ='6'!E29 -> 0 | G48: ='6'!F29 -> 0 | H48: ='6'!G29 -> 0 | I48: ='6'!H29 -> 4 | J48: ='6'!I29 -> 0 | K48: ='6'!J29 -> 2400 | L48: ='6'!K29 -> 2404
A49: =A48 -> 6 | B49: ='6'!A30 -> CAMION MERCEDES OSSELLE-P2100552 | C49: ='6'!B30 -> 0 | D49: ='6'!C30 -> 0 | E49: ='6'!D30 -> 0 | F49: ='6'!E30 -> 0 | G49: ='6'!F30 -> 0 | H49: ='6'!G30 -> 0 | I49: ='6'!H30 -> 0 | J49: ='6'!I30 -> 0 | K49: ='6'!J30 -> 0 | L49: ='6'!K30 -> 0
A50: 6 | B50: ='6'!A31 -> 0 | C50: ='6'!B31 -> 0 | D50: ='6'!C31 -> 0 | E50: ='6'!D31 -> 0 | F50: ='6'!E31 -> 0 | G50: ='6'!F31 -> 0 | H50: ='6'!G31 -> 0 | I50: ='6'!H31 -> 0 | J50: ='6'!I31 -> 0 | K50: ='6'!J31 -> 0 | L50: ='6'!K31 -> 0
A51: 6 | B51: ='6'!A32 -> 0 | C51: ='6'!B32 -> 0 | D51: ='6'!C32 -> 0 | E51: ='6'!D32 -> 0 | F51: ='6'!E32 -> 0 | G51: ='6'!F32 -> 0 | H51: ='6'!G32 -> 0 | I51: ='6'!H32 -> 0 | J51: ='6'!I32 -> 0 | K51: ='6'!J32 -> 0 | L51: ='6'!K32 -> 0
A52: 6 | B52: ='6'!A33 -> 0 | C52: ='6'!B33 -> 0 | D52: ='6'!C33 -> 0 | E52: ='6'!D33 -> 0 | F52: ='6'!E33 -> 0 | G52: ='6'!F33 -> 0 | H52: ='6'!G33 -> 0 | I52: ='6'!H33 -> 0 | J52: ='6'!I33 -> 0 | K52: ='6'!J33 -> 0 | L52: ='6'!K33 -> 0
A53: 6 | B53: ='6'!A36 -> Minipelle SV17 - oss - D1002929 | G53: ='6'!F36 -> 0 | H53: ='6'!G36 -> 0 | I53: ='6'!E36 -> 0 | J53: ='6'!D36 -> 0 | K53: ='6'!B36 -> 2291 | L53: ='6'!C36 -> 2291
A54: 6 | B54: ='6'!A37 -> Manitou M30 - C8100689 | G54: ='6'!F37 -> 0 | H54: ='6'!G37 -> 0 | I54: ='6'!E37 -> 0 | J54: ='6'!D37 -> 0 | K54: ='6'!B37 -> 7139 | L54: ='6'!C37 -> 7139
A55: 6 | B55: ='6'!A38 -> 0 | G55: ='6'!F38 -> 0 | H55: ='6'!G38 -> 0 | I55: ='6'!E38 -> 0 | J55: ='6'!D38 -> 0 | K55: ='6'!B38 -> 0 | L55: ='6'!C38 -> 0
A56: 7 | B56: ='7'!A28 -> Chargeur L566 - D3101014 | C56: ='7'!B28 -> TRAVAUX DIVERS SUR PISTE 200950 | D56: ='7'!C28 -> 2 | E56: ='7'!D28 -> 0 | F56: ='7'!E28 -> 0 | G56: ='7'!F28 -> 0 | H56: ='7'!G28 -> 0 | I56: ='7'!H28 -> 2 | J56: ='7'!I28 -> 100 | K56: ='7'!J28 -> 16752 | L56: ='7'!K28 -> 16754 | M56: =SUM(J56:J64) -> 250
A57: =A56 -> 7 | B57: ='7'!A29 -> Chargeur 966G - D3102742 | C57: ='7'!B29 -> TRAVAUX DECH/210402 | D57: ='7'!C29 -> 2 | E57: ='7'!D29 -> 0 | F57: ='7'!E29 -> 0 | G57: ='7'!F29 -> 0 | H57: ='7'!G29 -> 0 | I57: ='7'!H29 -> 2 | J57: ='7'!I29 -> 150 | K57: ='7'!J29 -> 2404 | L57: ='7'!K29 -> 2406
A58: =A57 -> 7 | B58: ='7'!A30 -> CAMION MERCEDES OSSELLE-P2100552 | C58: ='7'!B30 -> 0 | D58: ='7'!C30 -> 0 | E58: ='7'!D30 -> 0 | F58: ='7'!E30 -> 0 | G58: ='7'!F30 -> 0 | H58: ='7'!G30 -> 0 | I58: ='7'!H30 -> 0 | J58: ='7'!I30 -> 0 | K58: ='7'!J30 -> 0 | L58: ='7'!K30 -> 0
A59: 7 | B59: ='7'!A31 -> 0 | C59: ='7'!B31 -> 0 | D59: ='7'!C31 -> 0 | E59: ='7'!D31 -> 0 | F59: ='7'!E31 -> 0 | G59: ='7'!F31 -> 0 | H59: ='7'!G31 -> 0 | I59: ='7'!H31 -> 0 | J59: ='7'!I31 -> 0 | K59: ='7'!J31 -> 0 | L59: ='7'!K31 -> 0
A60: 7 | B60: ='7'!A32 -> 0 | C60: ='7'!B32 -> 0 | D60: ='7'!C32 -> 0 | E60: ='7'!D32 -> 0 | F60: ='7'!E32 -> 0 | G60: ='7'!F32 -> 0 | H60: ='7'!G32 -> 0 | I60: ='7'!H32 -> 0 | J60: ='7'!I32 -> 0 | K60: ='7'!J32 -> 0 | L60: ='7'!K32 -> 0
A61: 7 | B61: ='7'!A33 -> 0 | C61: ='7'!B33 -> 0 | D61: ='7'!C33 -> 0 | E61: ='7'!D33 -> 0 | F61: ='7'!E33 -> 0 | G61: ='7'!F33 -> 0 | H61: ='7'!G33 -> 0 | I61: ='7'!H33 -> 0 | J61: ='7'!I33 -> 0 | K61: ='7'!J33 -> 0 | L61: ='7'!K33 -> 0
A62: 7 | B62: ='7'!A36 -> Minipelle SV17 - oss - D1002929 | G62: ='7'!F36 -> 0 | H62: ='7'!G36 -> 0 | I62: ='7'!E36 -> 0 | J62: ='7'!D36 -> 0 | K62: ='7'!B36 -> 2291 | L62: ='7'!C36 -> 2291
A63: 7 | B63: ='7'!A37 -> Manitou M30 - C8100689 | G63: ='7'!F37 -> 0 | H63: ='7'!G37 -> 0 | I63: ='7'!E37 -> 2 | J63: ='7'!D37 -> 0 | K63: ='7'!B37 -> 7139 | L63: ='7'!C37 -> 7141
A64: 7 | B64: ='7'!A38 -> 0 | G64: ='7'!F38 -> 0 | H64: ='7'!G38 -> 0 | I64: ='7'!E38 -> 0 | J64: ='7'!D38 -> 0 | K64: ='7'!B38 -> 0 | L64: ='7'!C38 -> 0
A65: 8 | B65: ='8'!A28 -> Chargeur L566 - D3101014 | C65: ='8'!B28 -> CHARGEMENT CLIENT /200200 | D65: ='8'!C28 -> 2 | E65: ='8'!D28 -> 0 | F65: ='8'!E28 -> 0 | G65: ='8'!F28 -> 0 | H65: ='8'!G28 -> 0 | I65: ='8'!H28 -> 2 | J65: ='8'!I28 -> 0 | K65: ='8'!J28 -> 16754 | L65: ='8'!K28 -> 16756 | M65: =SUM(J65:J73) -> 0
A66: =A65 -> 8 | B66: ='8'!A29 -> Chargeur 966G - D3102742 | C66: ='8'!B29 -> DESTOCKAGE/200308 | D66: ='8'!C29 -> 5 | E66: ='8'!D29 -> 0 | F66: ='8'!E29 -> 0 | G66: ='8'!F29 -> 0 | H66: ='8'!G29 -> 0 | I66: ='8'!H29 -> 5 | J66: ='8'!I29 -> 0 | K66: ='8'!J29 -> 2406 | L66: ='8'!K29 -> 2411
A67: =A66 -> 8 | B67: ='8'!A30 -> CAMION MERCEDES OSSELLE-P2100552 | C67: ='8'!B30 -> 0 | D67: ='8'!C30 -> 0 | E67: ='8'!D30 -> 0 | F67: ='8'!E30 -> 0 | G67: ='8'!F30 -> 0 | H67: ='8'!G30 -> 0 | I67: ='8'!H30 -> 0 | J67: ='8'!I30 -> 0 | K67: ='8'!J30 -> 0 | L67: ='8'!K30 -> 0
A68: 8 | B68: ='8'!A31 -> 0 | C68: ='8'!B31 -> 0 | D68: ='8'!C31 -> 0 | E68: ='8'!D31 -> 0 | F68: ='8'!E31 -> 0 | G68: ='8'!F31 -> 0 | H68: ='8'!G31 -> 0 | I68: ='8'!H31 -> 0 | J68: ='8'!I31 -> 0 | K68: ='8'!J31 -> 0 | L68: ='8'!K31 -> 0
A69: 8 | B69: ='8'!A32 -> 0 | C69: ='8'!B32 -> 0 | D69: ='8'!C32 -> 0 | E69: ='8'!D32 -> 0 | F69: ='8'!E32 -> 0 | G69: ='8'!F32 -> 0 | H69: ='8'!G32 -> 0 | I69: ='8'!H32 -> 0 | J69: ='8'!I32 -> 0 | K69: ='8'!J32 -> 0 | L69: ='8'!K32 -> 0
A70: 8 | B70: ='8'!A33 -> 0 | C70: ='8'!B33 -> 0 | D70: ='8'!C33 -> 0 | E70: ='8'!D33 -> 0 | F70: ='8'!E33 -> 0 | G70: ='8'!F33 -> 0 | H70: ='8'!G33 -> 0 | I70: ='8'!H33 -> 0 | J70: ='8'!I33 -> 0 | K70: ='8'!J33 -> 0 | L70: ='8'!K33 -> 0
A71: 8 | B71: ='8'!A36 -> Minipelle SV17 - oss - D1002929 | G71: ='8'!F36 -> 0 | H71: ='8'!G36 -> 0 | I71: ='8'!E36 -> 0 | J71: ='8'!D36 -> 0 | K71: ='8'!B36 -> 2291 | L71: ='8'!C36 -> 2291
A72: 8 | B72: ='8'!A37 -> Manitou M30 - C8100689 | G72: ='8'!F37 -> 0 | H72: ='8'!G37 -> 0 | I72: ='8'!E37 -> 0 | J72: ='8'!D37 -> 0 | K72: ='8'!B37 -> 7141 | L72: ='8'!C37 -> 7141
A73: 8 | B73: ='8'!A38 -> 0 | G73: ='8'!F38 -> 0 | H73: ='8'!G38 -> 0 | I73: ='8'!E38 -> 0 | J73: ='8'!D38 -> 0 | K73: ='8'!B38 -> 0 | L73: ='8'!C38 -> 0
A74: 9 | B74: ='9'!A28 -> Chargeur L566 - D3101014 | C74: ='9'!B28 -> TRAVAUX DIVERS SUR PISTE 200950 | D74: ='9'!C28 -> 1 | E74: ='9'!D28 -> CHARGEMENT CLIENT /200200 | F74: ='9'!E28 -> 3 | G74: ='9'!F28 -> 0 | H74: ='9'!G28 -> 0 | I74: ='9'!H28 -> 4 | J74: ='9'!I28 -> 0 | K74: ='9'!J28 -> 16756 | L74: ='9'!K28 -> 16760 | M74: =SUM(J74:J82) -> 150
A75: =A74 -> 9 | B75: ='9'!A29 -> Chargeur 966G - D3102742 | C75: ='9'!B29 -> TRAVAUX DIVERS SUR PISTE 200950 | D75: ='9'!C29 -> 1 | E75: ='9'!D29 -> DESTOCKAGE/200308 | F75: ='9'!E29 -> 4 | G75: ='9'!F29 -> 0 | H75: ='9'!G29 -> 0 | I75: ='9'!H29 -> 5 | J75: ='9'!I29 -> 150 | K75: ='9'!J29 -> 2411 | L75: ='9'!K29 -> 2416
A76: =A75 -> 9 | B76: ='9'!A30 -> CAMION MERCEDES OSSELLE-P2100552 | C76: ='9'!B30 -> 0 | D76: ='9'!C30 -> 0 | E76: ='9'!D30 -> 0 | F76: ='9'!E30 -> 0 | G76: ='9'!F30 -> 0 | H76: ='9'!G30 -> 0 | I76: ='9'!H30 -> 0 | J76: ='9'!I30 -> 0 | K76: ='9'!J30 -> 0 | L76: ='9'!K30 -> 0
A77: 9 | B77: ='9'!A31 -> 0 | C77: ='9'!B31 -> 0 | D77: ='9'!C31 -> 0 | E77: ='9'!D31 -> 0 | F77: ='9'!E31 -> 0 | G77: ='9'!F31 -> 0 | H77: ='9'!G31 -> 0 | I77: ='9'!H31 -> 0 | J77: ='9'!I31 -> 0 | K77: ='9'!J31 -> 0 | L77: ='9'!K31 -> 0
A78: 9 | B78: ='9'!A32 -> 0 | C78: ='9'!B32 -> 0 | D78: ='9'!C32 -> 0 | E78: ='9'!D32 -> 0 | F78: ='9'!E32 -> 0 | G78: ='9'!F32 -> 0 | H78: ='9'!G32 -> 0 | I78: ='9'!H32 -> 0 | J78: ='9'!I32 -> 0 | K78: ='9'!J32 -> 0 | L78: ='9'!K32 -> 0
A79: 9 | B79: ='9'!A33 -> 0 | C79: ='9'!B33 -> 0 | D79: ='9'!C33 -> 0 | E79: ='9'!D33 -> 0 | F79: ='9'!E33 -> 0 | G79: ='9'!F33 -> 0 | H79: ='9'!G33 -> 0 | I79: ='9'!H33 -> 0 | J79: ='9'!I33 -> 0 | K79: ='9'!J33 -> 0 | L79: ='9'!K33 -> 0
A80: 9 | B80: ='9'!A36 -> Minipelle SV17 - oss - D1002929 | G80: ='9'!F36 -> 0 | H80: ='9'!G36 -> 0 | I80: ='9'!E36 -> 0 | J80: ='9'!D36 -> 0 | K80: ='9'!B36 -> 2291 | L80: ='9'!C36 -> 2291
A81: 9 | B81: ='9'!A37 -> Manitou M30 - C8100689 | G81: ='9'!F37 -> 0 | H81: ='9'!G37 -> 0 | I81: ='9'!E37 -> 0 | J81: ='9'!D37 -> 0 | K81: ='9'!B37 -> 7141 | L81: ='9'!C37 -> 7141
A82: 9 | B82: ='9'!A38 -> 0 | G82: ='9'!F38 -> 0 | H82: ='9'!G38 -> 0 | I82: ='9'!E38 -> 0 | J82: ='9'!D38 -> 0 | K82: ='9'!B38 -> 0 | L82: ='9'!C38 -> 0
A83: 10 | B83: ='10'!A28 -> 0 | C83: ='10'!B28 -> 0 | D83: ='10'!C28 -> 0 | E83: ='10'!D28 -> 0 | F83: ='10'!E28 -> 0 | G83: ='10'!F28 -> 0 | H83: ='10'!G28 -> 0 | I83: ='10'!H28 -> 0 | J83: ='10'!I28 -> 0 | K83: ='10'!J28 -> 0 | L83: ='10'!K28 -> 0 | M83: =SUM(J83:J91) -> 0
A84: =A83 -> 10 | B84: ='10'!A29 -> 0 | C84: ='10'!B29 -> 0 | D84: ='10'!C29 -> 0 | E84: ='10'!D29 -> 0 | F84: ='10'!E29 -> 0 | G84: ='10'!F29 -> 0 | H84: ='10'!G29 -> 0 | I84: ='10'!H29 -> 0 | J84: ='10'!I29 -> 0 | K84: ='10'!J29 -> 0 | L84: ='10'!K29 -> 0
A85: =A84 -> 10 | B85: ='10'!A30 -> 0 | C85: ='10'!B30 -> 0 | D85: ='10'!C30 -> 0 | E85: ='10'!D30 -> 0 | F85: ='10'!E30 -> 0 | G85: ='10'!F30 -> 0 | H85: ='10'!G30 -> 0 | I85: ='10'!H30 -> 0 | J85: ='10'!I30 -> 0 | K85: ='10'!J30 -> 0 | L85: ='10'!K30 -> 0
A86: 10 | B86: ='10'!A31 -> 0 | C86: ='10'!B31 -> 0 | D86: ='10'!C31 -> 0 | E86: ='10'!D31 -> 0 | F86: ='10'!E31 -> 0 | G86: ='10'!F31 -> 0 | H86: ='10'!G31 -> 0 | I86: ='10'!H31 -> 0 | J86: ='10'!I31 -> 0 | K86: ='10'!J31 -> 0 | L86: ='10'!K31 -> 0
A87: 10 | B87: ='10'!A32 -> 0 | C87: ='10'!B32 -> 0 | D87: ='10'!C32 -> 0 | E87: ='10'!D32 -> 0 | F87: ='10'!E32 -> 0 | G87: ='10'!F32 -> 0 | H87: ='10'!G32 -> 0 | I87: ='10'!H32 -> 0 | J87: ='10'!I32 -> 0 | K87: ='10'!J32 -> 0 | L87: ='10'!K32 -> 0
A88: 10 | B88: ='10'!A33 -> 0 | C88: ='10'!B33 -> 0 | D88: ='10'!C33 -> 0 | E88: ='10'!D33 -> 0 | F88: ='10'!E33 -> 0 | G88: ='10'!F33 -> 0 | H88: ='10'!G33 -> 0 | I88: ='10'!H33 -> 0 | J88: ='10'!I33 -> 0 | K88: ='10'!J33 -> 0 | L88: ='10'!K33 -> 0
A89: 10 | B89: ='10'!A36 -> 0 | G89: ='10'!F36 -> 0 | H89: ='10'!G36 -> 0 | I89: ='10'!E36 -> 0 | J89: ='10'!D36 -> 0 | K89: ='10'!B36 -> 0 | L89: ='10'!C36 -> 0
A90: 10 | B90: ='10'!A37 -> 0 | G90: ='10'!F37 -> 0 | H90: ='10'!G37 -> 0 | I90: ='10'!E37 -> 0 | J90: ='10'!D37 -> 0 | K90: ='10'!B37 -> 0 | L90: ='10'!C37 -> 0
A91: 10 | B91: ='10'!A38 -> 0 | G91: ='10'!F38 -> 0 | H91: ='10'!G38 -> 0 | I91: ='10'!E38 -> 0 | J91: ='10'!D38 -> 0 | K91: ='10'!B38 -> 0 | L91: ='10'!C38 -> 0
A92: 11 | B92: ='11'!A28 -> 0 | C92: ='11'!B28 -> 0 | D92: ='11'!C28 -> 0 | E92: ='11'!D28 -> 0 | F92: ='11'!E28 -> 0 | G92: ='11'!F28 -> 0 | H92: ='11'!G28 -> 0 | I92: ='11'!H28 -> 0 | J92: ='11'!I28 -> 0 | K92: ='11'!J28 -> 0 | L92: ='11'!K28 -> 0 | M92: =SUM(J92:J100) -> 0
A93: =A92 -> 11 | B93: ='11'!A29 -> 0 | C93: ='11'!B29 -> 0 | D93: ='11'!C29 -> 0 | E93: ='11'!D29 -> 0 | F93: ='11'!E29 -> 0 | G93: ='11'!F29 -> 0 | H93: ='11'!G29 -> 0 | I93: ='11'!H29 -> 0 | J93: ='11'!I29 -> 0 | K93: ='11'!J29 -> 0 | L93: ='11'!K29 -> 0
A94: =A93 -> 11 | B94: ='11'!A30 -> 0 | C94: ='11'!B30 -> 0 | D94: ='11'!C30 -> 0 | E94: ='11'!D30 -> 0 | F94: ='11'!E30 -> 0 | G94: ='11'!F30 -> 0 | H94: ='11'!G30 -> 0 | I94: ='11'!H30 -> 0 | J94: ='11'!I30 -> 0 | K94: ='11'!J30 -> 0 | L94: ='11'!K30 -> 0
A95: 11 | B95: ='11'!A31 -> 0 | C95: ='11'!B31 -> 0 | D95: ='11'!C31 -> 0 | E95: ='11'!D31 -> 0 | F95: ='11'!E31 -> 0 | G95: ='11'!F31 -> 0 | H95: ='11'!G31 -> 0 | I95: ='11'!H31 -> 0 | J95: ='11'!I31 -> 0 | K95: ='11'!J31 -> 0 | L95: ='11'!K31 -> 0
A96: 11 | B96: ='11'!A32 -> 0 | C96: ='11'!B32 -> 0 | D96: ='11'!C32 -> 0 | E96: ='11'!D32 -> 0 | F96: ='11'!E32 -> 0 | G96: ='11'!F32 -> 0 | H96: ='11'!G32 -> 0 | I96: ='11'!H32 -> 0 | J96: ='11'!I32 -> 0 | K96: ='11'!J32 -> 0 | L96: ='11'!K32 -> 0
A97: 11 | B97: ='11'!A33 -> 0 | C97: ='11'!B33 -> 0 | D97: ='11'!C33 -> 0 | E97: ='11'!D33 -> 0 | F97: ='11'!E33 -> 0 | G97: ='11'!F33 -> 0 | H97: ='11'!G33 -> 0 | I97: ='11'!H33 -> 0 | J97: ='11'!I33 -> 0 | K97: ='11'!J33 -> 0 | L97: ='11'!K33 -> 0
A98: 11 | B98: ='11'!A36 -> 0 | G98: ='11'!F36 -> 0 | H98: ='11'!G36 -> 0 | I98: ='11'!E36 -> 0 | J98: ='11'!D36 -> 0 | K98: ='11'!B36 -> 0 | L98: ='11'!C36 -> 0
A99: 11 | B99: ='11'!A37 -> 0 | G99: ='11'!F37 -> 0 | H99: ='11'!G37 -> 0 | I99: ='11'!E37 -> 0 | J99: ='11'!D37 -> 0 | K99: ='11'!B37 -> 0 | L99: ='11'!C37 -> 0
A100: 11 | B100: ='11'!A38 -> 0 | G100: ='11'!F38 -> 0 | H100: ='11'!G38 -> 0 | I100: ='11'!E38 -> 0 | J100: ='11'!D38 -> 0 | K100: ='11'!B38 -> 0 | L100: ='11'!C38 -> 0
A101: 12 | B101: ='12'!A28 -> Chargeur L566 - D3101014 | C101: ='12'!B28 -> TRAVAUX DIVERS SUR PISTE 200950 | D101: ='12'!C28 -> 3 | E101: ='12'!D28 -> 0 | F101: ='12'!E28 -> 0 | G101: ='12'!F28 -> 0 | H101: ='12'!G28 -> 0 | I101: ='12'!H28 -> 3 | J101: ='12'!I28 -> 305 | K101: ='12'!J28 -> 16760 | L101: ='12'!K28 -> 16763 | M101: =SUM(J101:J109) -> 305
A102: =A101 -> 12 | B102: ='12'!A29 -> Chargeur 966G - D3102742 | C102: ='12'!B29 -> CHARGEMENT CLIENT /200200 | D102: ='12'!C29 -> 3 | E102: ='12'!D29 -> 0 | F102: ='12'!E29 -> 0 | G102: ='12'!F29 -> 0 | H102: ='12'!G29 -> 0 | I102: ='12'!H29 -> 3 | J102: ='12'!I29 -> 0 | K102: ='12'!J29 -> 2416 | L102: ='12'!K29 -> 2419
A103: =A102 -> 12 | B103: ='12'!A30 -> CAMION MERCEDES OSSELLE-P2100552 | C103: ='12'!B30 -> 0 | D103: ='12'!C30 -> 0 | E103: ='12'!D30 -> 0 | F103: ='12'!E30 -> 0 | G103: ='12'!F30 -> 0 | H103: ='12'!G30 -> 0 | I103: ='12'!H30 -> 0 | J103: ='12'!I30 -> 0 | K103: ='12'!J30 -> 0 | L103: ='12'!K30 -> 0
A104: 12 | B104: ='12'!A31 -> 0 | C104: ='12'!B31 -> 0 | D104: ='12'!C31 -> 0 | E104: ='12'!D31 -> 0 | F104: ='12'!E31 -> 0 | G104: ='12'!F31 -> 0 | H104: ='12'!G31 -> 0 | I104: ='12'!H31 -> 0 | J104: ='12'!I31 -> 0 | K104: ='12'!J31 -> 0 | L104: ='12'!K31 -> 0
A105: 12 | B105: ='12'!A32 -> 0 | C105: ='12'!B32 -> 0 | D105: ='12'!C32 -> 0 | E105: ='12'!D32 -> 0 | F105: ='12'!E32 -> 0 | G105: ='12'!F32 -> 0 | H105: ='12'!G32 -> 0 | I105: ='12'!H32 -> 0 | J105: ='12'!I32 -> 0 | K105: ='12'!J32 -> 0 | L105: ='12'!K32 -> 0
A106: 12 | B106: ='12'!A33 -> 0 | C106: ='12'!B33 -> 0 | D106: ='12'!C33 -> 0 | E106: ='12'!D33 -> 0 | F106: ='12'!E33 -> 0 | G106: ='12'!F33 -> 0 | H106: ='12'!G33 -> 0 | I106: ='12'!H33 -> 0 | J106: ='12'!I33 -> 0 | K106: ='12'!J33 -> 0 | L106: ='12'!K33 -> 0
A107: 12 | B107: ='12'!A36 -> Minipelle SV17 - oss - D1002929 | G107: ='12'!F36 -> 0 | H107: ='12'!G36 -> 0 | I107: ='12'!E36 -> 0 | J107: ='12'!D36 -> 0 | K107: ='12'!B36 -> 2291 | L107: ='12'!C36 -> 2291
A108: 12 | B108: ='12'!A37 -> Manitou M30 - C8100689 | G108: ='12'!F37 -> 0 | H108: ='12'!G37 -> 0 | I108: ='12'!E37 -> 0 | J108: ='12'!D37 -> 0 | K108: ='12'!B37 -> 7141 | L108: ='12'!C37 -> 7141
A109: 12 | B109: ='12'!A38 -> 0 | G109: ='12'!F38 -> 0 | H109: ='12'!G38 -> 0 | I109: ='12'!E38 -> 0 | J109: ='12'!D38 -> 0 | K109: ='12'!B38 -> 0 | L109: ='12'!C38 -> 0
A110: 13 | B110: ='13'!A28 -> Chargeur L566 - D3101014 | C110: ='13'!B28 -> 0 | D110: ='13'!C28 -> 0 | E110: ='13'!D28 -> 0 | F110: ='13'!E28 -> 0 | G110: ='13'!F28 -> 0 | H110: ='13'!G28 -> 0 | I110: ='13'!H28 -> 0 | J110: ='13'!I28 -> 0 | K110: ='13'!J28 -> 16763 | L110: ='13'!K28 -> 16763 | M110: =SUM(J110:J118) -> 0
A111: =A110 -> 13 | B111: ='13'!A29 -> Chargeur 966G - D3102742 | C111: ='13'!B29 -> CHARGEMENT CLIENT /200200 | D111: ='13'!C29 -> 3 | E111: ='13'!D29 -> 0 | F111: ='13'!E29 -> 0 | G111: ='13'!F29 -> 0 | H111: ='13'!G29 -> 0 | I111: ='13'!H29 -> 3 | J111: ='13'!I29 -> 0 | K111: ='13'!J29 -> 2419 | L111: ='13'!K29 -> 2422
A112: =A111 -> 13 | B112: ='13'!A30 -> CAMION MERCEDES OSSELLE-P2100552 | C112: ='13'!B30 -> 0 | D112: ='13'!C30 -> 0 | E112: ='13'!D30 -> 0 | F112: ='13'!E30 -> 0 | G112: ='13'!F30 -> 0 | H112: ='13'!G30 -> 0 | I112: ='13'!H30 -> 0 | J112: ='13'!I30 -> 0 | K112: ='13'!J30 -> 0 | L112: ='13'!K30 -> 0
A113: 13 | B113: ='13'!A31 -> 0 | C113: ='13'!B31 -> 0 | D113: ='13'!C31 -> 0 | E113: ='13'!D31 -> 0 | F113: ='13'!E31 -> 0 | G113: ='13'!F31 -> 0 | H113: ='13'!G31 -> 0 | I113: ='13'!H31 -> 0 | J113: ='13'!I31 -> 0 | K113: ='13'!J31 -> 0 | L113: ='13'!K31 -> 0
A114: 13 | B114: ='13'!A32 -> 0 | C114: ='13'!B32 -> 0 | D114: ='13'!C32 -> 0 | E114: ='13'!D32 -> 0 | F114: ='13'!E32 -> 0 | G114: ='13'!F32 -> 0 | H114: ='13'!G32 -> 0 | I114: ='13'!H32 -> 0 | J114: ='13'!I32 -> 0 | K114: ='13'!J32 -> 0 | L114: ='13'!K32 -> 0
A115: 13 | B115: ='13'!A33 -> 0 | C115: ='13'!B33 -> 0 | D115: ='13'!C33 -> 0 | E115: ='13'!D33 -> 0 | F115: ='13'!E33 -> 0 | G115: ='13'!F33 -> 0 | H115: ='13'!G33 -> 0 | I115: ='13'!H33 -> 0 | J115: ='13'!I33 -> 0 | K115: ='13'!J33 -> 0 | L115: ='13'!K33 -> 0
A116: 13 | B116: ='13'!A36 -> Minipelle SV17 - oss - D1002929 | G116: ='13'!F36 -> 0 | H116: ='13'!G36 -> 0 | I116: ='13'!E36 -> 0 | J116: ='13'!D36 -> 0 | K116: ='13'!B36 -> 2291 | L116: ='13'!C36 -> 2291
A117: 13 | B117: ='13'!A37 -> Manitou M30 - C8100689 | G117: ='13'!F37 -> 0 | H117: ='13'!G37 -> 0 | I117: ='13'!E37 -> 5 | J117: ='13'!D37 -> 0 | K117: ='13'!B37 -> 7141 | L117: ='13'!C37 -> 7146
A118: 13 | B118: ='13'!A38 -> 0 | G118: ='13'!F38 -> 0 | H118: ='13'!G38 -> 0 | I118: ='13'!E38 -> 0 | J118: ='13'!D38 -> 0 | K118: ='13'!B38 -> 0 | L118: ='13'!C38 -> 0
A119: 14 | B119: ='14'!A28 -> Chargeur L566 - D3101014 | C119: ='14'!B28 -> 0 | D119: ='14'!C28 -> 0 | E119: ='14'!D28 -> 0 | F119: ='14'!E28 -> 0 | G119: ='14'!F28 -> 0 | H119: ='14'!G28 -> 0 | I119: ='14'!H28 -> 0 | J119: ='14'!I28 -> 0 | K119: ='14'!J28 -> 16763 | L119: ='14'!K28 -> 16763 | M119: =SUM(J119:J127) -> 0
A120: =A119 -> 14 | B120: ='14'!A29 -> Chargeur 966G - D3102742 | C120: ='14'!B29 -> CHARGEMENT CLIENT /200200 | D120: ='14'!C29 -> 2 | E120: ='14'!D29 -> 0 | F120: ='14'!E29 -> 0 | G120: ='14'!F29 -> 0 | H120: ='14'!G29 -> 0 | I120: ='14'!H29 -> 2 | J120: ='14'!I29 -> 0 | K120: ='14'!J29 -> 2422 | L120: ='14'!K29 -> 2424
A121: =A120 -> 14 | B121: ='14'!A30 -> CAMION MERCEDES OSSELLE-P2100552 | C121: ='14'!B30 -> 0 | D121: ='14'!C30 -> 0 | E121: ='14'!D30 -> 0 | F121: ='14'!E30 -> 0 | G121: ='14'!F30 -> 0 | H121: ='14'!G30 -> 0 | I121: ='14'!H30 -> 0 | J121: ='14'!I30 -> 0 | K121: ='14'!J30 -> 0 | L121: ='14'!K30 -> 0
A122: 14 | B122: ='14'!A31 -> 0 | C122: ='14'!B31 -> 0 | D122: ='14'!C31 -> 0 | E122: ='14'!D31 -> 0 | F122: ='14'!E31 -> 0 | G122: ='14'!F31 -> 0 | H122: ='14'!G31 -> 0 | I122: ='14'!H31 -> 0 | J122: ='14'!I31 -> 0 | K122: ='14'!J31 -> 0 | L122: ='14'!K31 -> 0
A123: 14 | B123: ='14'!A32 -> 0 | C123: ='14'!B32 -> 0 | D123: ='14'!C32 -> 0 | E123: ='14'!D32 -> 0 | F123: ='14'!E32 -> 0 | G123: ='14'!F32 -> 0 | H123: ='14'!G32 -> 0 | I123: ='14'!H32 -> 0 | J123: ='14'!I32 -> 0 | K123: ='14'!J32 -> 0 | L123: ='14'!K32 -> 0
A124: 14 | B124: ='14'!A33 -> 0 | C124: ='14'!B33 -> 0 | D124: ='14'!C33 -> 0 | E124: ='14'!D33 -> 0 | F124: ='14'!E33 -> 0 | G124: ='14'!F33 -> 0 | H124: ='14'!G33 -> 0 | I124: ='14'!H33 -> 0 | J124: ='14'!I33 -> 0 | K124: ='14'!J33 -> 0 | L124: ='14'!K33 -> 0
A125: 14 | B125: ='14'!A36 -> Minipelle SV17 - oss - D1002929 | G125: ='14'!F36 -> 0 | H125: ='14'!G36 -> 0 | I125: ='14'!E36 -> 0 | J125: ='14'!D36 -> 0 | K125: ='14'!B36 -> 2291 | L125: ='14'!C36 -> 2291
A126: 14 | B126: ='14'!A37 -> Manitou M30 - C8100689 | G126: ='14'!F37 -> 0 | H126: ='14'!G37 -> 0 | I126: ='14'!E37 -> 5 | J126: ='14'!D37 -> 0 | K126: ='14'!B37 -> 7141 | L126: ='14'!C37 -> 7146
A127: 14 | B127: ='14'!A38 -> 0 | G127: ='14'!F38 -> 0 | H127: ='14'!G38 -> 0 | I127: ='14'!E38 -> 0 | J127: ='14'!D38 -> 0 | K127: ='14'!B38 -> 0 | L127: ='14'!C38 -> 0
A128: 15 | B128: ='15'!A28 -> Chargeur L566 - D3101014 | C128: ='15'!B28 -> TRAVAUX DIVERS SUR PISTE 200950 | D128: ='15'!C28 -> 1 | E128: ='15'!D28 -> 0 | F128: ='15'!E28 -> 0 | G128: ='15'!F28 -> 0 | H128: ='15'!G28 -> 0 | I128: ='15'!H28 -> 1 | J128: ='15'!I28 -> 0 | K128: ='15'!J28 -> 16763 | L128: ='15'!K28 -> 16764 | M128: =SUM(J128:J136) -> 100
A129: =A128 -> 15 | B129: ='15'!A29 -> Chargeur 966G - D3102742 | C129: ='15'!B29 -> CHARGEMENT CLIENT /200200 | D129: ='15'!C29 -> 1 | E129: ='15'!D29 -> 0 | F129: ='15'!E29 -> 0 | G129: ='15'!F29 -> 0 | H129: ='15'!G29 -> 0 | I129: ='15'!H29 -> 1 | J129: ='15'!I29 -> 100 | K129: ='15'!J29 -> 2424 | L129: ='15'!K29 -> 2425
A130: =A129 -> 15 | B130: ='15'!A30 -> CAMION MERCEDES OSSELLE-P2100552 | C130: ='15'!B30 -> 0 | D130: ='15'!C30 -> 0 | E130: ='15'!D30 -> 0 | F130: ='15'!E30 -> 0 | G130: ='15'!F30 -> 0 | H130: ='15'!G30 -> 0 | I130: ='15'!H30 -> 0 | J130: ='15'!I30 -> 0 | K130: ='15'!J30 -> 0 | L130: ='15'!K30 -> 0
A131: 15 | B131: ='15'!A31 -> 0 | C131: ='15'!B31 -> 0 | D131: ='15'!C31 -> 0 | E131: ='15'!D31 -> 0 | F131: ='15'!E31 -> 0 | G131: ='15'!F31 -> 0 | H131: ='15'!G31 -> 0 | I131: ='15'!H31 -> 0 | J131: ='15'!I31 -> 0 | K131: ='15'!J31 -> 0 | L131: ='15'!K31 -> 0
A132: 15 | B132: ='15'!A32 -> 0 | C132: ='15'!B32 -> 0 | D132: ='15'!C32 -> 0 | E132: ='15'!D32 -> 0 | F132: ='15'!E32 -> 0 | G132: ='15'!F32 -> 0 | H132: ='15'!G32 -> 0 | I132: ='15'!H32 -> 0 | J132: ='15'!I32 -> 0 | K132: ='15'!J32 -> 0 | L132: ='15'!K32 -> 0
A133: 15 | B133: ='15'!A33 -> 0 | C133: ='15'!B33 -> 0 | D133: ='15'!C33 -> 0 | E133: ='15'!D33 -> 0 | F133: ='15'!E33 -> 0 | G133: ='15'!F33 -> 0 | H133: ='15'!G33 -> 0 | I133: ='15'!H33 -> 0 | J133: ='15'!I33 -> 0 | K133: ='15'!J33 -> 0 | L133: ='15'!K33 -> 0
A134: 15 | B134: ='15'!A36 -> Minipelle SV17 - oss - D1002929 | G134: ='15'!F36 -> 0 | H134: ='15'!G36 -> 0 | I134: ='15'!E36 -> 0 | J134: ='15'!D36 -> 0 | K134: ='15'!B36 -> 2291 | L134: ='15'!C36 -> 2291
A135: 15 | B135: ='15'!A37 -> Manitou M30 - C8100689 | G135: ='15'!F37 -> 0 | H135: ='15'!G37 -> 0 | I135: ='15'!E37 -> 5 | J135: ='15'!D37 -> 0 | K135: ='15'!B37 -> 7141 | L135: ='15'!C37 -> 7146
A136: 15 | B136: ='15'!A38 -> 0 | G136: ='15'!F38 -> 0 | H136: ='15'!G38 -> 0 | I136: ='15'!E38 -> 0 | J136: ='15'!D38 -> 0 | K136: ='15'!B38 -> 0 | L136: ='15'!C38 -> 0
A137: 16 | B137: ='16'!A28 -> Chargeur L566 - D3101014 | C137: ='16'!B28 -> 0 | D137: ='16'!C28 -> 0 | E137: ='16'!D28 -> 0 | F137: ='16'!E28 -> 0 | G137: ='16'!F28 -> 0 | H137: ='16'!G28 -> 0 | I137: ='16'!H28 -> 0 | J137: ='16'!I28 -> 0 | K137: ='16'!J28 -> 16764 | L137: ='16'!K28 -> 16764 | M137: =SUM(J137:J145) -> 100
A138: =A137 -> 16 | B138: ='16'!A29 -> Chargeur 966G - D3102742 | C138: ='16'!B29 -> CHARGEMENT CLIENT /200200 | D138: ='16'!C29 -> 2 | E138: ='16'!D29 -> 0 | F138: ='16'!E29 -> 0 | G138: ='16'!F29 -> 0 | H138: ='16'!G29 -> 0 | I138: ='16'!H29 -> 2 | J138: ='16'!I29 -> 0 | K138: ='16'!J29 -> 2425 | L138: ='16'!K29 -> 2427
A139: =A138 -> 16 | B139: ='16'!A30 -> CAMION MERCEDES OSSELLE-P2100552 | C139: ='16'!B30 -> 0 | D139: ='16'!C30 -> 0 | E139: ='16'!D30 -> 0 | F139: ='16'!E30 -> 0 | G139: ='16'!F30 -> 0 | H139: ='16'!G30 -> 0 | I139: ='16'!H30 -> 0 | J139: ='16'!I30 -> 0 | K139: ='16'!J30 -> 0 | L139: ='16'!K30 -> 0
A140: 16 | B140: ='16'!A31 -> 0 | C140: ='16'!B31 -> 0 | D140: ='16'!C31 -> 0 | E140: ='16'!D31 -> 0 | F140: ='16'!E31 -> 0 | G140: ='16'!F31 -> 0 | H140: ='16'!G31 -> 0 | I140: ='16'!H31 -> 0 | J140: ='16'!I31 -> 0 | K140: ='16'!J31 -> 0 | L140: ='16'!K31 -> 0
A141: 16 | B141: ='16'!A32 -> 0 | C141: ='16'!B32 -> 0 | D141: ='16'!C32 -> 0 | E141: ='16'!D32 -> 0 | F141: ='16'!E32 -> 0 | G141: ='16'!F32 -> 0 | H141: ='16'!G32 -> 0 | I141: ='16'!H32 -> 0 | J141: ='16'!I32 -> 0 | K141: ='16'!J32 -> 0 | L141: ='16'!K32 -> 0
A142: 16 | B142: ='16'!A33 -> 0 | C142: ='16'!B33 -> 0 | D142: ='16'!C33 -> 0 | E142: ='16'!D33 -> 0 | F142: ='16'!E33 -> 0 | G142: ='16'!F33 -> 0 | H142: ='16'!G33 -> 0 | I142: ='16'!H33 -> 0 | J142: ='16'!I33 -> 0 | K142: ='16'!J33 -> 0 | L142: ='16'!K33 -> 0
A143: 16 | B143: ='16'!A36 -> Minipelle SV17 - oss - D1002929 | G143: ='16'!F36 -> 0 | H143: ='16'!G36 -> 0 | I143: ='16'!E36 -> 0 | J143: ='16'!D36 -> 0 | K143: ='16'!B36 -> 2291 | L143: ='16'!C36 -> 2291
A144: 16 | B144: ='16'!A37 -> Manitou M30 - C8100689 | G144: ='16'!F37 -> 0 | H144: ='16'!G37 -> 0 | I144: ='16'!E37 -> 5 | J144: ='16'!D37 -> 0 | K144: ='16'!B37 -> 7141 | L144: ='16'!C37 -> 7146
A145: 16 | B145: ='16'!A38 -> PELLE TP JOLY | G145: ='16'!F38 -> 0 | H145: ='16'!G38 -> 0 | I145: ='16'!E38 -> 0 | J145: ='16'!D38 -> 100 | K145: ='16'!B38 -> 0 | L145: ='16'!C38 -> 0
A146: 17 | B146: ='17'!A28 -> 0 | C146: ='17'!B28 -> 0 | D146: ='17'!C28 -> 0 | E146: ='17'!D28 -> 0 | F146: ='17'!E28 -> 0 | G146: ='17'!F28 -> 0 | H146: ='17'!G28 -> 0 | I146: ='17'!H28 -> 0 | J146: ='17'!I28 -> 0 | K146: ='17'!J28 -> 0 | L146: ='17'!K28 -> 0 | M146: =SUM(J146:J154) -> 0
A147: =A146 -> 17 | B147: ='17'!A29 -> 0 | C147: ='17'!B29 -> 0 | D147: ='17'!C29 -> 0 | E147: ='17'!D29 -> 0 | F147: ='17'!E29 -> 0 | G147: ='17'!F29 -> 0 | H147: ='17'!G29 -> 0 | I147: ='17'!H29 -> 0 | J147: ='17'!I29 -> 0 | K147: ='17'!J29 -> 0 | L147: ='17'!K29 -> 0
A148: =A147 -> 17 | B148: ='17'!A30 -> 0 | C148: ='17'!B30 -> 0 | D148: ='17'!C30 -> 0 | E148: ='17'!D30 -> 0 | F148: ='17'!E30 -> 0 | G148: ='17'!F30 -> 0 | H148: ='17'!G30 -> 0 | I148: ='17'!H30 -> 0 | J148: ='17'!I30 -> 0 | K148: ='17'!J30 -> 0 | L148: ='17'!K30 -> 0
A149: 17 | B149: ='17'!A31 -> 0 | C149: ='17'!B31 -> 0 | D149: ='17'!C31 -> 0 | E149: ='17'!D31 -> 0 | F149: ='17'!E31 -> 0 | G149: ='17'!F31 -> 0 | H149: ='17'!G31 -> 0 | I149: ='17'!H31 -> 0 | J149: ='17'!I31 -> 0 | K149: ='17'!J31 -> 0 | L149: ='17'!K31 -> 0
A150: 17 | B150: ='17'!A32 -> 0 | C150: ='17'!B32 -> 0 | D150: ='17'!C32 -> 0 | E150: ='17'!D32 -> 0 | F150: ='17'!E32 -> 0 | G150: ='17'!F32 -> 0 | H150: ='17'!G32 -> 0 | I150: ='17'!H32 -> 0 | J150: ='17'!I32 -> 0 | K150: ='17'!J32 -> 0 | L150: ='17'!K32 -> 0
A151: 17 | B151: ='17'!A33 -> 0 | C151: ='17'!B33 -> 0 | D151: ='17'!C33 -> 0 | E151: ='17'!D33 -> 0 | F151: ='17'!E33 -> 0 | G151: ='17'!F33 -> 0 | H151: ='17'!G33 -> 0 | I151: ='17'!H33 -> 0 | J151: ='17'!I33 -> 0 | K151: ='17'!J33 -> 0 | L151: ='17'!K33 -> 0
A152: 17 | B152: ='17'!A36 -> 0 | G152: ='17'!F36 -> 0 | H152: ='17'!G36 -> 0 | I152: ='17'!E36 -> 0 | J152: ='17'!D36 -> 0 | K152: ='17'!B36 -> 0 | L152: ='17'!C36 -> 0
A153: 17 | B153: ='17'!A37 -> 0 | G153: ='17'!F37 -> 0 | H153: ='17'!G37 -> 0 | I153: ='17'!E37 -> 0 | J153: ='17'!D37 -> 0 | K153: ='17'!B37 -> 0 | L153: ='17'!C37 -> 0
A154: 17 | B154: ='17'!A38 -> 0 | G154: ='17'!F38 -> 0 | H154: ='17'!G38 -> 0 | I154: ='17'!E38 -> 0 | J154: ='17'!D38 -> 0 | K154: ='17'!B38 -> 0 | L154: ='17'!C38 -> 0
A155: 18 | B155: ='18'!A28 -> 0 | C155: ='18'!B28 -> 0 | D155: ='18'!C28 -> 0 | E155: ='18'!D28 -> 0 | F155: ='18'!E28 -> 0 | G155: ='18'!F28 -> 0 | H155: ='18'!G28 -> 0 | I155: ='18'!H28 -> 0 | J155: ='18'!I28 -> 0 | K155: ='18'!J28 -> 0 | L155: ='18'!K28 -> 0 | M155: =SUM(J155:J163) -> 0
A156: =A155 -> 18 | B156: ='18'!A29 -> 0 | C156: ='18'!B29 -> 0 | D156: ='18'!C29 -> 0 | E156: ='18'!D29 -> 0 | F156: ='18'!E29 -> 0 | G156: ='18'!F29 -> 0 | H156: ='18'!G29 -> 0 | I156: ='18'!H29 -> 0 | J156: ='18'!I29 -> 0 | K156: ='18'!J29 -> 0 | L156: ='18'!K29 -> 0
A157: =A156 -> 18 | B157: ='18'!A30 -> 0 | C157: ='18'!B30 -> 0 | D157: ='18'!C30 -> 0 | E157: ='18'!D30 -> 0 | F157: ='18'!E30 -> 0 | G157: ='18'!F30 -> 0 | H157: ='18'!G30 -> 0 | I157: ='18'!H30 -> 0 | J157: ='18'!I30 -> 0 | K157: ='18'!J30 -> 0 | L157: ='18'!K30 -> 0
A158: 18 | B158: ='18'!A31 -> 0 | C158: ='18'!B31 -> 0 | D158: ='18'!C31 -> 0 | E158: ='18'!D31 -> 0 | F158: ='18'!E31 -> 0 | G158: ='18'!F31 -> 0 | H158: ='18'!G31 -> 0 | I158: ='18'!H31 -> 0 | J158: ='18'!I31 -> 0 | K158: ='18'!J31 -> 0 | L158: ='18'!K31 -> 0
A159: 18 | B159: ='18'!A32 -> 0 | C159: ='18'!B32 -> 0 | D159: ='18'!C32 -> 0 | E159: ='18'!D32 -> 0 | F159: ='18'!E32 -> 0 | G159: ='18'!F32 -> 0 | H159: ='18'!G32 -> 0 | I159: ='18'!H32 -> 0 | J159: ='18'!I32 -> 0 | K159: ='18'!J32 -> 0 | L159: ='18'!K32 -> 0
A160: 18 | B160: ='18'!A33 -> 0 | C160: ='18'!B33 -> 0 | D160: ='18'!C33 -> 0 | E160: ='18'!D33 -> 0 | F160: ='18'!E33 -> 0 | G160: ='18'!F33 -> 0 | H160: ='18'!G33 -> 0 | I160: ='18'!H33 -> 0 | J160: ='18'!I33 -> 0 | K160: ='18'!J33 -> 0 | L160: ='18'!K33 -> 0
A161: 18 | B161: ='18'!A36 -> 0 | G161: ='18'!F36 -> 0 | H161: ='18'!G36 -> 0 | I161: ='18'!E36 -> 0 | J161: ='18'!D36 -> 0 | K161: ='18'!B36 -> 0 | L161: ='18'!C36 -> 0
A162: 18 | B162: ='18'!A37 -> 0 | G162: ='18'!F37 -> 0 | H162: ='18'!G37 -> 0 | I162: ='18'!E37 -> 0 | J162: ='18'!D37 -> 0 | K162: ='18'!B37 -> 0 | L162: ='18'!C37 -> 0
A163: 18 | B163: ='18'!A38 -> 0 | G163: ='18'!F38 -> 0 | H163: ='18'!G38 -> 0 | I163: ='18'!E38 -> 0 | J163: ='18'!D38 -> 0 | K163: ='18'!B38 -> 0 | L163: ='18'!C38 -> 0
A164: 19 | B164: ='19'!A28 -> 0 | C164: ='19'!B28 -> 0 | D164: ='19'!C28 -> 0 | E164: ='19'!D28 -> 0 | F164: ='19'!E28 -> 0 | G164: ='19'!F28 -> 0 | H164: ='19'!G28 -> 0 | I164: ='19'!H28 -> 0 | J164: ='19'!I28 -> 0 | K164: ='19'!J28 -> 0 | L164: ='19'!K28 -> 0 | M164: =SUM(J164:J172) -> 0
A165: =A164 -> 19 | B165: ='19'!A29 -> 0 | C165: ='19'!B29 -> 0 | D165: ='19'!C29 -> 0 | E165: ='19'!D29 -> 0 | F165: ='19'!E29 -> 0 | G165: ='19'!F29 -> 0 | H165: ='19'!G29 -> 0 | I165: ='19'!H29 -> 0 | J165: ='19'!I29 -> 0 | K165: ='19'!J29 -> 0 | L165: ='19'!K29 -> 0
A166: =A165 -> 19 | B166: ='19'!A30 -> 0 | C166: ='19'!B30 -> 0 | D166: ='19'!C30 -> 0 | E166: ='19'!D30 -> 0 | F166: ='19'!E30 -> 0 | G166: ='19'!F30 -> 0 | H166: ='19'!G30 -> 0 | I166: ='19'!H30 -> 0 | J166: ='19'!I30 -> 0 | K166: ='19'!J30 -> 0 | L166: ='19'!K30 -> 0
A167: 19 | B167: ='19'!A31 -> 0 | C167: ='19'!B31 -> 0 | D167: ='19'!C31 -> 0 | E167: ='19'!D31 -> 0 | F167: ='19'!E31 -> 0 | G167: ='19'!F31 -> 0 | H167: ='19'!G31 -> 0 | I167: ='19'!H31 -> 0 | J167: ='19'!I31 -> 0 | K167: ='19'!J31 -> 0 | L167: ='19'!K31 -> 0
A168: 19 | B168: ='19'!A32 -> 0 | C168: ='19'!B32 -> 0 | D168: ='19'!C32 -> 0 | E168: ='19'!D32 -> 0 | F168: ='19'!E32 -> 0 | G168: ='19'!F32 -> 0 | H168: ='19'!G32 -> 0 | I168: ='19'!H32 -> 0 | J168: ='19'!I32 -> 0 | K168: ='19'!J32 -> 0 | L168: ='19'!K32 -> 0
A169: 19 | B169: ='19'!A33 -> 0 | C169: ='19'!B33 -> 0 | D169: ='19'!C33 -> 0 | E169: ='19'!D33 -> 0 | F169: ='19'!E33 -> 0 | G169: ='19'!F33 -> 0 | H169: ='19'!G33 -> 0 | I169: ='19'!H33 -> 0 | J169: ='19'!I33 -> 0 | K169: ='19'!J33 -> 0 | L169: ='19'!K33 -> 0
A170: 19 | B170: ='19'!A36 -> 0 | G170: ='19'!F36 -> 0 | H170: ='19'!G36 -> 0 | I170: ='19'!E36 -> 0 | J170: ='19'!D36 -> 0 | K170: ='19'!B36 -> 0 | L170: ='19'!C36 -> 0
A171: 19 | B171: ='19'!A37 -> 0 | G171: ='19'!F37 -> 0 | H171: ='19'!G37 -> 0 | I171: ='19'!E37 -> 0 | J171: ='19'!D37 -> 0 | K171: ='19'!B37 -> 0 | L171: ='19'!C37 -> 0
A172: 19 | B172: ='19'!A38 -> 0 | G172: ='19'!F38 -> 0 | H172: ='19'!G38 -> 0 | I172: ='19'!E38 -> 0 | J172: ='19'!D38 -> 0 | K172: ='19'!B38 -> 0 | L172: ='19'!C38 -> 0
A173: 20 | B173: ='20'!A28 -> 0 | C173: ='20'!B28 -> 0 | D173: ='20'!C28 -> 0 | E173: ='20'!D28 -> 0 | F173: ='20'!E28 -> 0 | G173: ='20'!F28 -> 0 | H173: ='20'!G28 -> 0 | I173: ='20'!H28 -> 0 | J173: ='20'!I28 -> 0 | K173: ='20'!J28 -> 0 | L173: ='20'!K28 -> 0 | M173: =SUM(J173:J181) -> 0
A174: =A173 -> 20 | B174: ='20'!A29 -> 0 | C174: ='20'!B29 -> 0 | D174: ='20'!C29 -> 0 | E174: ='20'!D29 -> 0 | F174: ='20'!E29 -> 0 | G174: ='20'!F29 -> 0 | H174: ='20'!G29 -> 0 | I174: ='20'!H29 -> 0 | J174: ='20'!I29 -> 0 | K174: ='20'!J29 -> 0 | L174: ='20'!K29 -> 0
A175: =A174 -> 20 | B175: ='20'!A30 -> 0 | C175: ='20'!B30 -> 0 | D175: ='20'!C30 -> 0 | E175: ='20'!D30 -> 0 | F175: ='20'!E30 -> 0 | G175: ='20'!F30 -> 0 | H175: ='20'!G30 -> 0 | I175: ='20'!H30 -> 0 | J175: ='20'!I30 -> 0 | K175: ='20'!J30 -> 0 | L175: ='20'!K30 -> 0
A176: 20 | B176: ='20'!A31 -> 0 | C176: ='20'!B31 -> 0 | D176: ='20'!C31 -> 0 | E176: ='20'!D31 -> 0 | F176: ='20'!E31 -> 0 | G176: ='20'!F31 -> 0 | H176: ='20'!G31 -> 0 | I176: ='20'!H31 -> 0 | J176: ='20'!I31 -> 0 | K176: ='20'!J31 -> 0 | L176: ='20'!K31 -> 0
A177: 20 | B177: ='20'!A32 -> 0 | C177: ='20'!B32 -> 0 | D177: ='20'!C32 -> 0 | E177: ='20'!D32 -> 0 | F177: ='20'!E32 -> 0 | G177: ='20'!F32 -> 0 | H177: ='20'!G32 -> 0 | I177: ='20'!H32 -> 0 | J177: ='20'!I32 -> 0 | K177: ='20'!J32 -> 0 | L177: ='20'!K32 -> 0
A178: 20 | B178: ='20'!A33 -> 0 | C178: ='20'!B33 -> 0 | D178: ='20'!C33 -> 0 | E178: ='20'!D33 -> 0 | F178: ='20'!E33 -> 0 | G178: ='20'!F33 -> 0 | H178: ='20'!G33 -> 0 | I178: ='20'!H33 -> 0 | J178: ='20'!I33 -> 0 | K178: ='20'!J33 -> 0 | L178: ='20'!K33 -> 0
A179: 20 | B179: ='20'!A36 -> 0 | G179: ='20'!F36 -> 0 | H179: ='20'!G36 -> 0 | I179: ='20'!E36 -> 0 | J179: ='20'!D36 -> 0 | K179: ='20'!B36 -> 0 | L179: ='20'!C36 -> 0
A180: 20 | B180: ='20'!A37 -> 0 | G180: ='20'!F37 -> 0 | H180: ='20'!G37 -> 0 | I180: ='20'!E37 -> 0 | J180: ='20'!D37 -> 0 | K180: ='20'!B37 -> 0 | L180: ='20'!C37 -> 0
A181: 20 | B181: ='20'!A38 -> 0 | G181: ='20'!F38 -> 0 | H181: ='20'!G38 -> 0 | I181: ='20'!E38 -> 0 | J181: ='20'!D38 -> 0 | K181: ='20'!B38 -> 0 | L181: ='20'!C38 -> 0
A182: 21 | B182: ='21'!A28 -> 0 | C182: ='21'!B28 -> 0 | D182: ='21'!C28 -> 0 | E182: ='21'!D28 -> 0 | F182: ='21'!E28 -> 0 | G182: ='21'!F28 -> 0 | H182: ='21'!G28 -> 0 | I182: ='21'!H28 -> 0 | J182: ='21'!I28 -> 0 | K182: ='21'!J28 -> 0 | L182: ='21'!K28 -> 0 | M182: =SUM(J182:J190) -> 0
A183: =A182 -> 21 | B183: ='21'!A29 -> 0 | C183: ='21'!B29 -> 0 | D183: ='21'!C29 -> 0 | E183: ='21'!D29 -> 0 | F183: ='21'!E29 -> 0 | G183: ='21'!F29 -> 0 | H183: ='21'!G29 -> 0 | I183: ='21'!H29 -> 0 | J183: ='21'!I29 -> 0 | K183: ='21'!J29 -> 0 | L183: ='21'!K29 -> 0
A184: =A183 -> 21 | B184: ='21'!A30 -> 0 | C184: ='21'!B30 -> 0 | D184: ='21'!C30 -> 0 | E184: ='21'!D30 -> 0 | F184: ='21'!E30 -> 0 | G184: ='21'!F30 -> 0 | H184: ='21'!G30 -> 0 | I184: ='21'!H30 -> 0 | J184: ='21'!I30 -> 0 | K184: ='21'!J30 -> 0 | L184: ='21'!K30 -> 0
A185: 21 | B185: ='21'!A31 -> 0 | C185: ='21'!B31 -> 0 | D185: ='21'!C31 -> 0 | E185: ='21'!D31 -> 0 | F185: ='21'!E31 -> 0 | G185: ='21'!F31 -> 0 | H185: ='21'!G31 -> 0 | I185: ='21'!H31 -> 0 | J185: ='21'!I31 -> 0 | K185: ='21'!J31 -> 0 | L185: ='21'!K31 -> 0
A186: 21 | B186: ='21'!A32 -> 0 | C186: ='21'!B32 -> 0 | D186: ='21'!C32 -> 0 | E186: ='21'!D32 -> 0 | F186: ='21'!E32 -> 0 | G186: ='21'!F32 -> 0 | H186: ='21'!G32 -> 0 | I186: ='21'!H32 -> 0 | J186: ='21'!I32 -> 0 | K186: ='21'!J32 -> 0 | L186: ='21'!K32 -> 0
A187: 21 | B187: ='21'!A33 -> 0 | C187: ='21'!B33 -> 0 | D187: ='21'!C33 -> 0 | E187: ='21'!D33 -> 0 | F187: ='21'!E33 -> 0 | G187: ='21'!F33 -> 0 | H187: ='21'!G33 -> 0 | I187: ='21'!H33 -> 0 | J187: ='21'!I33 -> 0 | K187: ='21'!J33 -> 0 | L187: ='21'!K33 -> 0
A188: 21 | B188: ='21'!A36 -> 0 | G188: ='21'!F36 -> 0 | H188: ='21'!G36 -> 0 | I188: ='21'!E36 -> 0 | J188: ='21'!D36 -> 0 | K188: ='21'!B36 -> 0 | L188: ='21'!C36 -> 0
A189: 21 | B189: ='21'!A37 -> 0 | G189: ='21'!F37 -> 0 | H189: ='21'!G37 -> 0 | I189: ='21'!E37 -> 0 | J189: ='21'!D37 -> 0 | K189: ='21'!B37 -> 0 | L189: ='21'!C37 -> 0
A190: 21 | B190: ='21'!A38 -> 0 | G190: ='21'!F38 -> 0 | H190: ='21'!G38 -> 0 | I190: ='21'!E38 -> 0 | J190: ='21'!D38 -> 0 | K190: ='21'!B38 -> 0 | L190: ='21'!C38 -> 0
A191: 22 | B191: ='22'!A28 -> 0 | C191: ='22'!B28 -> 0 | D191: ='22'!C28 -> 0 | E191: ='22'!D28 -> 0 | F191: ='22'!E28 -> 0 | G191: ='22'!F28 -> 0 | H191: ='22'!G28 -> 0 | I191: ='22'!H28 -> 0 | J191: ='22'!I28 -> 0 | K191: ='22'!J28 -> 0 | L191: ='22'!K28 -> 0 | M191: =SUM(J191:J199) -> 0
A192: =A191 -> 22 | B192: ='22'!A29 -> 0 | C192: ='22'!B29 -> 0 | D192: ='22'!C29 -> 0 | E192: ='22'!D29 -> 0 | F192: ='22'!E29 -> 0 | G192: ='22'!F29 -> 0 | H192: ='22'!G29 -> 0 | I192: ='22'!H29 -> 0 | J192: ='22'!I29 -> 0 | K192: ='22'!J29 -> 0 | L192: ='22'!K29 -> 0
A193: =A192 -> 22 | B193: ='22'!A30 -> 0 | C193: ='22'!B30 -> 0 | D193: ='22'!C30 -> 0 | E193: ='22'!D30 -> 0 | F193: ='22'!E30 -> 0 | G193: ='22'!F30 -> 0 | H193: ='22'!G30 -> 0 | I193: ='22'!H30 -> 0 | J193: ='22'!I30 -> 0 | K193: ='22'!J30 -> 0 | L193: ='22'!K30 -> 0
A194: 22 | B194: ='22'!A31 -> 0 | C194: ='22'!B31 -> 0 | D194: ='22'!C31 -> 0 | E194: ='22'!D31 -> 0 | F194: ='22'!E31 -> 0 | G194: ='22'!F31 -> 0 | H194: ='22'!G31 -> 0 | I194: ='22'!H31 -> 0 | J194: ='22'!I31 -> 0 | K194: ='22'!J31 -> 0 | L194: ='22'!K31 -> 0
A195: 22 | B195: ='22'!A32 -> 0 | C195: ='22'!B32 -> 0 | D195: ='22'!C32 -> 0 | E195: ='22'!D32 -> 0 | F195: ='22'!E32 -> 0 | G195: ='22'!F32 -> 0 | H195: ='22'!G32 -> 0 | I195: ='22'!H32 -> 0 | J195: ='22'!I32 -> 0 | K195: ='22'!J32 -> 0 | L195: ='22'!K32 -> 0
A196: 22 | B196: ='22'!A33 -> 0 | C196: ='22'!B33 -> 0 | D196: ='22'!C33 -> 0 | E196: ='22'!D33 -> 0 | F196: ='22'!E33 -> 0 | G196: ='22'!F33 -> 0 | H196: ='22'!G33 -> 0 | I196: ='22'!H33 -> 0 | J196: ='22'!I33 -> 0 | K196: ='22'!J33 -> 0 | L196: ='22'!K33 -> 0
A197: 22 | B197: ='22'!A36 -> 0 | G197: ='22'!F36 -> 0 | H197: ='22'!G36 -> 0 | I197: ='22'!E36 -> 0 | J197: ='22'!D36 -> 0 | K197: ='22'!B36 -> 0 | L197: ='22'!C36 -> 0
A198: 22 | B198: ='22'!A37 -> 0 | G198: ='22'!F37 -> 0 | H198: ='22'!G37 -> 0 | I198: ='22'!E37 -> 0 | J198: ='22'!D37 -> 0 | K198: ='22'!B37 -> 0 | L198: ='22'!C37 -> 0
A199: 22 | B199: ='22'!A38 -> 0 | G199: ='22'!F38 -> 0 | H199: ='22'!G38 -> 0 | I199: ='22'!E38 -> 0 | J199: ='22'!D38 -> 0 | K199: ='22'!B38 -> 0 | L199: ='22'!C38 -> 0
A200: 23 | B200: ='23'!A28 -> 0 | C200: ='23'!B28 -> 0 | D200: ='23'!C28 -> 0 | E200: ='23'!D28 -> 0 | F200: ='23'!E28 -> 0 | G200: ='23'!F28 -> 0 | H200: ='23'!G28 -> 0 | I200: ='23'!H28 -> 0 | J200: ='23'!I28 -> 0 | K200: ='23'!J28 -> 0 | L200: ='23'!K28 -> 0 | M200: =SUM(J200:J208) -> 0
... 72 more rows

Sheet RECAP MOIS PRODUCTION
C1: debit théorique t/h | E1: 250 | I1: 230 | M1: 150
B2: 0 | C2: a | D2: b | E2: c=b/a | H2: f | I2: g=b/f | J2: h=f*g/(i1*0) | K2: i | L2: j | M2: k=j/i | N2: l | O2: m | P2: n | Q2: o | R2: p 0/4 N | S2: q | T2: r | U2: s | V2: t | W2: u | X2: v | Y2: w | Z2: x | AA2: y | AB2: z
A3: RECAPITULATIF PRODUCTION DU MOIS
A6: JOUR | B6: heures de prod prévues | C6: Primaire Plaine heure de fonction | D6: Primaire Plaine tonnes | E6: DEBIT | F6: trs | G6: Bascule Tunnel heures de fonction. | H6: Tunnel Bascule tonnes | I6: DEBIT | J6: trs | K6: concassés heures de fonct | L6: concassés tonnes produites | M6: debit | N6: trs | O6: Roulés fab 0/4SCL | P6: Roulés fab M 0/16 | Q6: Roulés fab M 0/8 | R6: PROD 0/4 N | S6: PROD 4/8R | T6: PROD 8/16R | U6: PROD 11/22R | V6: PROD 22/80 | W6: PROD 2/4CL | X6: PROD 4/6CL | Y6: PROD 4/10CL | Z6: PROD 6/10C | AA6: TOTAL
A7: 1 | B7: ='1'!$E7 -> 8 | C7: ='1'!C44 -> 0 | D7: ='1'!C54 -> 0 | E7: =IFERROR(D7/C7,0) -> 0 | F7: =IFERROR(E7*C7/(B7*E1),"") -> 0 | G7: ='1'!C45 -> 6 | H7: ='1'!C53 -> 509 | I7: =IFERROR(H7/G7,"") -> 84.83333333 | J7: =IFERROR(G7*I7/(B7*I1),"") -> 0.2766304348 | K7: ='1'!C46 -> 0 | L7: ='1'!I62 -> 0 | M7: =IFERROR(L7/K7,"") ->  | N7: =IFERROR(M7*K7/(M1*B7),"") ->  | O7: ='1'!F53 -> 0 | P7: ='1'!F54 -> 0 | Q7: ='1'!F55 -> 0 | R7: ='1'!F57 -> 111.98 | S7: ='1'!F58 -> 81.44 | T7: ='1'!F59 -> 91.62 | U7: ='1'!F60 -> 71.26 | V7: ='1'!F61 -> 0 | W7: ='1'!I53 -> 0 | X7: ='1'!I55 -> 0 | Y7: ='1'!I56 -> 0 | Z7: ='1'!I57 -> 0 | AA7: =SUM(O7:Z7) -> 356.3
A8: 2 | B8: ='2'!$E7 -> 7 | C8: ='2'!$C44 -> 0 | D8: ='2'!C54 -> 0 | E8: =IFERROR(D8/C8,0) -> 0 | F8: =IFERROR(E8*C8/(B8*E1),"") -> 0 | G8: ='2'!C45 -> 0 | H8: ='2'!C53 -> 0 | J8: =IFERROR(G8*I8/(B8*I1),"") ->  | K8: ='2'!C46 -> 0 | L8: ='2'!I62 -> 0 | M8: =IFERROR(L8/K8,"") ->  | N8: =IFERROR(M8*K8/(M1*B8),"") ->  | O8: ='2'!F53 -> 0 | P8: ='2'!F54 -> 0 | Q8: ='2'!F55 -> 0 | R8: ='2'!F57 -> 0 | S8: ='2'!F58 -> 0 | T8: ='2'!F59 -> 0 | U8: ='2'!F60 -> 0 | V8: ='2'!F61 -> 0 | W8: ='2'!I53 -> 0 | X8: ='2'!I55 -> 0 | Y8: ='2'!I56 -> 0 | Z8: ='2'!I57 -> 0 | AA8: =SUM(O8:Z8) -> 0
A9: 3 | B9: ='3'!$E7 -> 7 | C9: ='3'!$C44 -> 0 | D9: ='3'!C54 -> 0 | E9: 0 | F9: =IFERROR(E9*C9/(B9*E1),"") -> 0 | G9: ='3'!C45 -> 0 | H9: ='3'!C53 -> 0 | J9: =IFERROR(G9*I9/(B9*I1),"") ->  | K9: ='3'!C46 -> 0 | L9: ='3'!I62 -> 0 | N9: =IFERROR(M9*K9/(M1*B9),"") ->  | O9: ='3'!F53 -> 0 | P9: ='3'!F54 -> 0 | Q9: ='3'!F55 -> 0 | R9: ='3'!F57 -> 0 | S9: ='3'!F58 -> 0 | T9: ='3'!F59 -> 0 | U9: ='3'!F60 -> 0 | V9: ='3'!F61 -> 0 | W9: ='3'!I53 -> 0 | X9: ='3'!I55 -> 0 | Y9: ='3'!I56 -> 0 | Z9: ='3'!I57 -> 0 | AA9: 0
A10: 4 | B10: ='4'!$E7 -> 7 | C10: ='4'!$C44 -> 0 | D10: ='4'!C54 -> 0 | E10: 0 | F10: =IFERROR(E10*C10/(B10*E1),"") -> 0 | G10: ='4'!C45 -> 0 | H10: ='4'!C53 -> 0 | J10: =IFERROR(G10*I10/(B10*I1),"") ->  | K10: ='4'!C46 -> 0 | L10: ='4'!I62 -> 0 | N10: =IFERROR(M10*K10/(M1*B10),"") ->  | O10: ='4'!F53 -> 0 | P10: ='4'!F54 -> 0 | Q10: ='4'!F55 -> 0 | R10: ='4'!F57 -> 0 | S10: ='4'!F58 -> 0 | T10: ='4'!F59 -> 0 | U10: ='4'!F60 -> 0 | V10: ='4'!F61 -> 0 | W10: ='4'!I53 -> 0 | X10: ='4'!I55 -> 0 | Y10: ='4'!I56 -> 0 | Z10: ='4'!I57 -> 0 | AA10: 0
A11: 5 | B11: ='5'!$E7 -> 8 | C11: ='5'!$C44 -> 0 | D11: ='5'!C54 -> 0 | E11: 0 | F11: =IFERROR(E11*C11/(B11*E1),"") -> 0 | G11: ='5'!C45 -> 4 | H11: ='5'!C53 -> 283 | I11: 70.75 | J11: =IFERROR(G11*I11/(B11*I1),"") -> 0.1538043478 | K11: ='5'!C46 -> 0 | L11: ='5'!I62 -> 0 | N11: =IFERROR(M11*K11/(M1*B11),"") ->  | O11: ='5'!F53 -> 0 | P11: ='5'!F54 -> 0 | Q11: ='5'!F55 -> 0 | R11: ='5'!F57 -> 62.26 | S11: ='5'!F58 -> 45.28 | T11: ='5'!F59 -> 50.94 | U11: ='5'!F60 -> 39.62 | V11: ='5'!F61 -> 0 | W11: ='5'!I53 -> 0 | X11: ='5'!I55 -> 0 | Y11: ='5'!I56 -> 0 | Z11: ='5'!I57 -> 0 | AA11: 198.1
A12: 6 | B12: ='6'!$E7 -> 8 | C12: ='6'!$C44 -> 0 | D12: ='6'!C54 -> 0 | E12: 0 | F12: =IFERROR(E12*C12/(B12*E1),"") -> 0 | G12: ='6'!C45 -> 2 | H12: ='6'!C53 -> 135 | I12: 67.5 | J12: =IFERROR(G12*I12/(B12*I1),"") -> 0.07336956522 | K12: ='6'!C46 -> 0 | L12: ='6'!I62 -> 0 | N12: =IFERROR(M12*K12/(M1*B12),"") ->  | O12: ='6'!F53 -> 0 | P12: ='6'!F54 -> 0 | Q12: ='6'!F55 -> 0 | R12: ='6'!F57 -> 29.7 | S12: ='6'!F58 -> 21.6 | T12: ='6'!F59 -> 24.3 | U12: ='6'!F60 -> 18.9 | V12: ='6'!F61 -> 0 | W12: ='6'!I53 -> 0 | X12: ='6'!I55 -> 0 | Y12: ='6'!I56 -> 0 | Z12: ='6'!I57 -> 0 | AA12: 94.5
A13: 7 | B13: ='7'!$E7 -> 8 | C13: ='7'!$C44 -> 0 | D13: ='7'!C54 -> 0 | E13: 0 | F13: =IFERROR(E13*C13/(B13*E1),"") -> 0 | G13: ='7'!C45 -> 0 | H13: ='7'!C53 -> 0 | J13: =IFERROR(G13*I13/(B13*I1),"") ->  | K13: ='7'!C46 -> 0 | L13: ='7'!I62 -> 87.44 | N13: =IFERROR(M13*K13/(M1*B13),"") ->  | O13: ='7'!F53 -> 0 | P13: ='7'!F54 -> 0 | Q13: ='7'!F55 -> 0 | R13: ='7'!F57 -> 0 | S13: ='7'!F58 -> 0 | T13: ='7'!F59 -> 0 | U13: ='7'!F60 -> 0 | V13: ='7'!F61 -> 0 | W13: ='7'!I53 -> 0 | X13: ='7'!I55 -> 0 | Y13: ='7'!I56 -> 0 | Z13: ='7'!I57 -> 0 | AA13: 0
A14: 8 | B14: ='8'!$E7 -> 8 | C14: ='8'!$C44 -> 0 | D14: ='8'!C54 -> 0 | E14: 0 | F14: =IFERROR(E14*C14/(B14*E1),"") -> 0 | G14: ='8'!C45 -> 0 | H14: ='8'!C53 -> 0 | J14: =IFERROR(G14*I14/(B14*I1),"") ->  | K14: ='8'!C46 -> 0 | L14: ='8'!I62 -> 803.9 | N14: =IFERROR(M14*K14/(M1*B14),"") ->  | O14: ='8'!F53 -> 0 | P14: ='8'!F54 -> 0 | Q14: ='8'!F55 -> 0 | R14: ='8'!F57 -> 0 | S14: ='8'!F58 -> 0 | T14: ='8'!F59 -> 0 | U14: ='8'!F60 -> 0 | V14: ='8'!F61 -> 0 | W14: ='8'!I53 -> 0 | X14: ='8'!I55 -> 0 | Y14: ='8'!I56 -> 266.24 | Z14: ='8'!I57 -> 0 | AA14: 266.24
A15: 9 | B15: ='9'!$E7 -> 7 | C15: ='9'!$C44 -> 0 | D15: ='9'!C54 -> 0 | E15: 0 | F15: =IFERROR(E15*C15/(B15*E1),"") -> 0 | G15: ='9'!C45 -> 7 | H15: ='9'!C53 -> 381 | I15: 54.42857143 | J15: =IFERROR(G15*I15/(B15*I1),"") -> 0.2366459627 | K15: ='9'!C46 -> 0 | L15: ='9'!I62 -> 798.24 | N15: =IFERROR(M15*K15/(M1*B15),"") ->  | O15: ='9'!F53 -> 0 | P15: ='9'!F54 -> 0 | Q15: ='9'!F55 -> 0 | R15: ='9'!F57 -> 83.82 | S15: ='9'!F58 -> 60.96 | T15: ='9'!F59 -> 68.58 | U15: ='9'!F60 -> 53.34 | V15: ='9'!F61 -> 0 | W15: ='9'!I53 -> 0 | X15: ='9'!I55 -> 0 | Y15: ='9'!I56 -> 181.86 | Z15: ='9'!I57 -> 0 | AA15: 448.56
A16: 10 | B16: ='10'!$E7 -> 0 | C16: ='10'!$C44 -> 0 | D16: ='10'!C54 -> 0 | E16: 0 | F16: =IFERROR(E16*C16/(B16*E1),"") ->  | G16: ='10'!C45 -> 0 | H16: ='10'!C53 -> 0 | J16: =IFERROR(G16*I16/(B16*I1),"") ->  | K16: ='10'!C46 -> 0 | L16: ='10'!I62 -> 0 | N16: =IFERROR(M16*K16/(M1*B16),"") ->  | O16: ='10'!F53 -> 0 | P16: ='10'!F54 -> 0 | Q16: ='10'!F55 -> 0 | R16: ='10'!F57 -> 0 | S16: ='10'!F58 -> 0 | T16: ='10'!F59 -> 0 | U16: ='10'!F60 -> 0 | V16: ='10'!F61 -> 0 | W16: ='10'!I53 -> 0 | X16: ='10'!I55 -> 0 | Y16: ='10'!I56 -> 0 | Z16: ='10'!I57 -> 0 | AA16: 0
A17: 11 | B17: ='11'!$E7 -> 0 | C17: ='11'!$C44 -> 0 | D17: ='11'!C54 -> 0 | E17: 0 | F17: =IFERROR(E17*C17/(B17*E1),"") ->  | G17: ='11'!C45 -> 0 | H17: ='11'!C53 -> 0 | J17: =IFERROR(G17*I17/(B17*I1),"") ->  | K17: ='11'!C46 -> 0 | L17: ='11'!I62 -> 0 | N17: =IFERROR(M17*K17/(M1*B17),"") ->  | O17: ='11'!F53 -> 0 | P17: ='11'!F54 -> 0 | Q17: ='11'!F55 -> 0 | R17: ='11'!F57 -> 0 | S17: ='11'!F58 -> 0 | T17: ='11'!F59 -> 0 | U17: ='11'!F60 -> 0 | V17: ='11'!F61 -> 0 | W17: ='11'!I53 -> 0 | X17: ='11'!I55 -> 0 | Y17: ='11'!I56 -> 0 | Z17: ='11'!I57 -> 0 | AA17: 0
A18: 12 | B18: ='12'!$E7 -> 8 | C18: ='12'!$C44 -> 0 | D18: ='12'!C54 -> 0 | E18: 0 | F18: =IFERROR(E18*C18/(B18*E1),"") -> 0 | G18: ='12'!C45 -> 0 | H18: ='12'!C53 -> 0 | J18: =IFERROR(G18*I18/(B18*I1),"") ->  | K18: ='12'!C46 -> 0 | L18: ='12'!I62 -> 443.56 | N18: =IFERROR(M18*K18/(M1*B18),"") ->  | O18: ='12'!F53 -> 0 | P18: ='12'!F54 -> 0 | Q18: ='12'!F55 -> 0 | R18: ='12'!F57 -> 0 | S18: ='12'!F58 -> 0 | T18: ='12'!F59 -> 0 | U18: ='12'!F60 -> 0 | V18: ='12'!F61 -> 0 | W18: ='12'!I53 -> 0 | X18: ='12'!I55 -> 0 | Y18: ='12'!I56 -> 0 | Z18: ='12'!I57 -> 0 | AA18: 0
A19: 13 | B19: ='13'!$E7 -> 8 | C19: ='13'!$C44 -> 0 | D19: ='13'!C54 -> 0 | E19: 0 | F19: =IFERROR(E19*C19/(B19*E1),"") -> 0 | G19: ='13'!C45 -> 0 | H19: ='13'!C53 -> 0 | J19: =IFERROR(G19*I19/(B19*I1),"") ->  | K19: ='13'!C46 -> 0 | L19: ='13'!I62 -> 239.08 | N19: =IFERROR(M19*K19/(M1*B19),"") ->  | O19: ='13'!F53 -> 0 | P19: ='13'!F54 -> 0 | Q19: ='13'!F55 -> 0 | R19: ='13'!F57 -> 0 | S19: ='13'!F58 -> 0 | T19: ='13'!F59 -> 0 | U19: ='13'!F60 -> 0 | V19: ='13'!F61 -> 0 | W19: ='13'!I53 -> 0 | X19: ='13'!I55 -> 0 | Y19: ='13'!I56 -> 0 | Z19: ='13'!I57 -> 0 | AA19: 0
A20: 14 | B20: ='14'!$E7 -> 8 | C20: ='14'!$C44 -> 0 | D20: ='14'!C54 -> 0 | E20: 0 | F20: =IFERROR(E20*C20/(B20*E1),"") -> 0 | G20: ='14'!C45 -> 0 | H20: ='14'!C53 -> 0 | J20: =IFERROR(G20*I20/(B20*I1),"") ->  | K20: ='14'!C46 -> 0 | L20: ='14'!I62 -> 0 | N20: =IFERROR(M20*K20/(M1*B20),"") ->  | O20: ='14'!F53 -> 0 | P20: ='14'!F54 -> 0 | Q20: ='14'!F55 -> 0 | R20: ='14'!F57 -> 0 | S20: ='14'!F58 -> 0 | T20: ='14'!F59 -> 0 | U20: ='14'!F60 -> 0 | V20: ='14'!F61 -> 0 | W20: ='14'!I53 -> 0 | X20: ='14'!I55 -> 0 | Y20: ='14'!I56 -> 0 | Z20: ='14'!I57 -> 0 | AA20: 0
A21: 15 | B21: ='15'!$E7 -> 8 | C21: ='15'!$C44 -> 0 | D21: ='15'!C54 -> 0 | E21: 0 | F21: =IFERROR(E21*C21/(B21*E1),"") -> 0 | G21: ='15'!C45 -> 0 | H21: ='15'!C53 -> 0 | J21: =IFERROR(G21*I21/(B21*I1),"") ->  | K21: ='15'!C46 -> 0 | L21: ='15'!I62 -> 0 | N21: =IFERROR(M21*K21/(M1*B21),"") ->  | O21: ='15'!F53 -> 0 | P21: ='15'!F54 -> 0 | Q21: ='15'!F55 -> 0 | R21: ='15'!F57 -> 0 | S21: ='15'!F58 -> 0 | T21: ='15'!F59 -> 0 | U21: ='15'!F60 -> 0 | V21: ='15'!F61 -> 0 | W21: ='15'!I53 -> 0 | X21: ='15'!I55 -> 0 | Y21: ='15'!I56 -> 0 | Z21: ='15'!I57 -> 0 | AA21: 0
A22: 16 | B22: ='16'!$E7 -> 7 | C22: ='16'!$C44 -> 0 | D22: ='16'!C54 -> 0 | E22: 0 | F22: =IFERROR(E22*C22/(B22*E1),"") -> 0 | G22: ='16'!C45 -> 0 | H22: ='16'!C53 -> 0 | J22: =IFERROR(G22*I22/(B22*I1),"") ->  | K22: ='16'!C46 -> 0 | L22: ='16'!I62 -> 0 | N22: =IFERROR(M22*K22/(M1*B22),"") ->  | O22: ='16'!F53 -> 0 | P22: ='16'!F54 -> 0 | Q22: ='16'!F55 -> 0 | R22: ='16'!F57 -> 0 | S22: ='16'!F58 -> 0 | T22: ='16'!F59 -> 0 | U22: ='16'!F60 -> 0 | V22: ='16'!F61 -> 0 | W22: ='16'!I53 -> 0 | X22: ='16'!I55 -> 0 | Y22: ='16'!I56 -> 0 | Z22: ='16'!I57 -> 0 | AA22: 0
A23: 17 | B23: ='17'!$E7 -> 0 | C23: ='17'!$C44 -> 0 | D23: ='17'!C54 -> 0 | E23: 0 | F23: =IFERROR(E23*C23/(B23*E1),"") ->  | G23: ='17'!C45 -> 0 | H23: ='17'!C53 -> 0 | J23: =IFERROR(G23*I23/(B23*I1),"") ->  | K23: ='17'!C46 -> 0 | L23: ='17'!I62 -> 0 | N23: =IFERROR(M23*K23/(M1*B23),"") ->  | O23: ='17'!F53 -> 0 | P23: ='17'!F54 -> 0 | Q23: ='17'!F55 -> 0 | R23: ='17'!F57 -> 0 | S23: ='17'!F58 -> 0 | T23: ='17'!F59 -> 0 | U23: ='17'!F60 -> 0 | V23: ='17'!F61 -> 0 | W23: ='17'!I53 -> 0 | X23: ='17'!I55 -> 0 | Y23: ='17'!I56 -> 0 | Z23: ='17'!I57 -> 0 | AA23: 0
A24: 18 | B24: ='18'!$E7 -> 0 | C24: ='18'!$C44 -> 0 | D24: ='18'!C54 -> 0 | E24: 0 | F24: =IFERROR(E24*C24/(B24*E1),"") ->  | G24: ='18'!C45 -> 0 | H24: ='18'!C53 -> 0 | J24: =IFERROR(G24*I24/(B24*I1),"") ->  | K24: ='18'!C46 -> 0 | L24: ='18'!I62 -> 0 | N24: =IFERROR(M24*K24/(M1*B24),"") ->  | O24: ='18'!F53 -> 0 | P24: ='18'!F54 -> 0 | Q24: ='18'!F55 -> 0 | R24: ='18'!F57 -> 0 | S24: ='18'!F58 -> 0 | T24: ='18'!F59 -> 0 | U24: ='18'!F60 -> 0 | V24: ='18'!F61 -> 0 | W24: ='18'!I53 -> 0 | X24: ='18'!I55 -> 0 | Y24: ='18'!I56 -> 0 | Z24: ='18'!I57 -> 0 | AA24: 0
A25: 19 | B25: ='19'!$E7 -> 0 | C25: ='19'!$C44 -> 0 | D25: ='19'!C54 -> 0 | E25: 0 | F25: =IFERROR(E25*C25/(B25*E1),"") ->  | G25: ='19'!C45 -> 0 | H25: ='19'!C53 -> 0 | J25: =IFERROR(G25*I25/(B25*I1),"") ->  | K25: ='19'!C46 -> 0 | L25: ='19'!I62 -> 0 | N25: =IFERROR(M25*K25/(M1*B25),"") ->  | O25: ='19'!F53 -> 0 | P25: ='19'!F54 -> 0 | Q25: ='19'!F55 -> 0 | R25: ='19'!F57 -> 0 | S25: ='19'!F58 -> 0 | T25: ='19'!F59 -> 0 | U25: ='19'!F60 -> 0 | V25: ='19'!F61 -> 0 | W25: ='19'!I53 -> 0 | X25: ='19'!I55 -> 0 | Y25: ='19'!I56 -> 0 | Z25: ='19'!I57 -> 0 | AA25: 0
A26: 20 | B26: ='20'!$E7 -> 0 | C26: ='20'!$C44 -> 0 | D26: ='20'!C54 -> 0 | E26: 0 | F26: =IFERROR(E26*C26/(B26*E1),"") ->  | G26: ='20'!C45 -> 0 | H26: ='20'!C53 -> 0 | J26: =IFERROR(G26*I26/(B26*I1),"") ->  | K26: ='20'!C46 -> 0 | L26: ='20'!I62 -> 0 | N26: =IFERROR(M26*K26/(M1*B26),"") ->  | O26: ='20'!F53 -> 0 | P26: ='20'!F54 -> 0 | Q26: ='20'!F55 -> 0 | R26: ='20'!F57 -> 0 | S26: ='20'!F58 -> 0 | T26: ='20'!F59 -> 0 | U26: ='20'!F60 -> 0 | V26: ='20'!F61 -> 0 | W26: ='20'!I53 -> 0 | X26: ='20'!I55 -> 0 | Y26: ='20'!I56 -> 0 | Z26: ='20'!I57 -> 0 | AA26: 0
A27: 21 | B27: ='21'!$E7 -> 0 | C27: ='21'!$C44 -> 0 | D27: ='21'!C54 -> 0 | E27: 0 | F27: =IFERROR(E27*C27/(B27*E1),"") ->  | G27: ='21'!C45 -> 0 | H27: ='21'!C53 -> 0 | J27: =IFERROR(G27*I27/(B27*I1),"") ->  | K27: ='21'!C46 -> 0 | L27: ='21'!I62 -> 0 | N27: =IFERROR(M27*K27/(M1*B27),"") ->  | O27: ='21'!F53 -> 0 | P27: ='21'!F54 -> 0 | Q27: ='21'!F55 -> 0 | R27: ='21'!F57 -> 0 | S27: ='21'!F58 -> 0 | T27: ='21'!F59 -> 0 | U27: ='21'!F60 -> 0 | V27: ='21'!F61 -> 0 | W27: ='21'!I53 -> 0 | X27: ='21'!I55 -> 0 | Y27: ='21'!I56 -> 0 | Z27: ='21'!I57 -> 0 | AA27: 0
A28: 22 | B28: ='22'!$E7 -> 0 | C28: ='22'!$C44 -> 0 | D28: ='22'!C54 -> 0 | E28: 0 | F28: =IFERROR(E28*C28/(B28*E1),"") ->  | G28: ='22'!C45 -> 0 | H28: ='22'!C53 -> 0 | J28: =IFERROR(G28*I28/(B28*I1),"") ->  | K28: ='22'!C46 -> 0 | L28: ='22'!I62 -> 0 | N28: =IFERROR(M28*K28/(M1*B28),"") ->  | O28: ='22'!F53 -> 0 | P28: ='22'!F54 -> 0 | Q28: ='22'!F55 -> 0 | R28: ='22'!F57 -> 0 | S28: ='22'!F58 -> 0 | T28: ='22'!F59 -> 0 | U28: ='22'!F60 -> 0 | V28: ='22'!F61 -> 0 | W28: ='22'!I53 -> 0 | X28: ='22'!I55 -> 0 | Y28: ='22'!I56 -> 0 | Z28: ='22'!I57 -> 0 | AA28: 0
A29: 23 | B29: ='23'!$E7 -> 0 | C29: ='23'!$C44 -> 0 | D29: ='23'!C54 -> 0 | E29: 0 | F29: =IFERROR(E29*C29/(B29*E1),"") ->  | G29: ='23'!C45 -> 0 | H29: ='23'!C53 -> 0 | J29: =IFERROR(G29*I29/(B29*I1),"") ->  | K29: ='23'!C46 -> 0 | L29: ='23'!I62 -> 0 | N29: =IFERROR(M29*K29/(M1*B29),"") ->  | O29: ='23'!F53 -> 0 | P29: ='23'!F54 -> 0 | Q29: ='23'!F55 -> 0 | R29: ='23'!F57 -> 0 | S29: ='23'!F58 -> 0 | T29: ='23'!F59 -> 0 | U29: ='23'!F60 -> 0 | V29: ='23'!F61 -> 0 | W29: ='23'!I53 -> 0 | X29: ='23'!I55 -> 0 | Y29: ='23'!I56 -> 0 | Z29: ='23'!I57 -> 0 | AA29: 0
A30: 24 | B30: ='24'!$E7 -> 0 | C30: ='24'!$C44 -> 0 | D30: ='24'!C54 -> 0 | E30: 0 | F30: =IFERROR(E30*C30/(B30*E1),"") ->  | G30: ='24'!C45 -> 0 | H30: ='24'!C53 -> 0 | J30: =IFERROR(G30*I30/(B30*I1),"") ->  | K30: ='24'!C46 -> 0 | L30: ='24'!I62 -> 0 | N30: =IFERROR(M30*K30/(M1*B30),"") ->  | O30: ='24'!F53 -> 0 | P30: ='24'!F54 -> 0 | Q30: ='24'!F55 -> 0 | R30: ='24'!F57 -> 0 | S30: ='24'!F58 -> 0 | T30: ='24'!F59 -> 0 | U30: ='24'!F60 -> 0 | V30: ='24'!F61 -> 0 | W30: ='24'!I53 -> 0 | X30: ='24'!I55 -> 0 | Y30: ='24'!I56 -> 0 | Z30: ='24'!I57 -> 0 | AA30: 0
A31: 25 | B31: ='25'!$E7 -> 0 | C31: ='25'!$C44 -> 0 | D31: ='25'!C54 -> 0 | E31: 0 | F31: =IFERROR(E31*C31/(B31*E1),"") ->  | G31: ='25'!C45 -> 0 | H31: ='25'!C53 -> 0 | J31: =IFERROR(G31*I31/(B31*I1),"") ->  | K31: ='25'!C46 -> 0 | L31: ='25'!I62 -> 0 | N31: =IFERROR(M31*K31/(M1*B31),"") ->  | O31: ='25'!F53 -> 0 | P31: ='25'!F54 -> 0 | Q31: ='25'!F55 -> 0 | R31: ='25'!F57 -> 0 | S31: ='25'!F58 -> 0 | T31: ='25'!F59 -> 0 | U31: ='25'!F60 -> 0 | V31: ='25'!F61 -> 0 | W31: ='25'!I53 -> 0 | X31: ='25'!I55 -> 0 | Y31: ='25'!I56 -> 0 | Z31: ='25'!I57 -> 0 | AA31: 0
A32: 26 | B32: ='26'!$E7 -> 0 | C32: ='26'!$C44 -> 0 | D32: ='26'!C54 -> 0 | E32: 0 | F32: =IFERROR(E32*C32/(B32*E1),"") ->  | G32: ='26'!C45 -> 0 | H32: ='26'!C53 -> 0 | J32: =IFERROR(G32*I32/(B32*I1),"") ->  | K32: ='26'!C46 -> 0 | L32: ='26'!I62 -> 0 | N32: =IFERROR(M32*K32/(M1*B32),"") ->  | O32: ='26'!F53 -> 0 | P32: ='26'!F54 -> 0 | Q32: ='26'!F55 -> 0 | R32: ='26'!F57 -> 0 | S32: ='26'!F58 -> 0 | T32: ='26'!F59 -> 0 | U32: ='26'!F60 -> 0 | V32: ='26'!F61 -> 0 | W32: ='26'!I53 -> 0 | X32: ='26'!I55 -> 0 | Y32: ='26'!I56 -> 0 | Z32: ='26'!I57 -> 0 | AA32: 0
A33: 27 | B33: ='27'!$E7 -> 0 | C33: ='27'!$C44 -> 0 | D33: ='27'!C54 -> 0 | E33: 0 | F33: =IFERROR(E33*C33/(B33*E1),"") ->  | G33: ='27'!C45 -> 0 | H33: ='27'!C53 -> 0 | J33: =IFERROR(G33*I33/(B33*I1),"") ->  | K33: ='27'!C46 -> 0 | L33: ='27'!I62 -> 0 | N33: =IFERROR(M33*K33/(M1*B33),"") ->  | O33: ='27'!F53 -> 0 | P33: ='27'!F54 -> 0 | Q33: ='27'!F55 -> 0 | R33: ='26'!F57 -> 0 | S33: ='27'!F58 -> 0 | T33: ='27'!F59 -> 0 | U33: ='27'!F60 -> 0 | V33: ='27'!F61 -> 0 | W33: ='27'!I53 -> 0 | X33: ='27'!I55 -> 0 | Y33: ='27'!I56 -> 0 | Z33: ='27'!I57 -> 0 | AA33: 0
A34: 28 | B34: ='28'!$E7 -> 0 | C34: ='28'!$C44 -> 0 | D34: ='28'!C54 -> 0 | E34: 0 | F34: =IFERROR(E34*C34/(B34*E1),"") ->  | G34: ='28'!C45 -> 0 | H34: ='28'!C53 -> 0 | J34: =IFERROR(G34*I34/(B34*I1),"") ->  | K34: ='28'!C46 -> 0 | L34: ='28'!I62 -> 0 | N34: =IFERROR(M34*K34/(M1*B34),"") ->  | O34: ='28'!F53 -> 0 | P34: ='28'!F54 -> 0 | Q34: ='28'!F55 -> 0 | R34: ='27'!F57 -> 0 | S34: ='28'!F58 -> 0 | T34: ='28'!F59 -> 0 | U34: ='28'!F60 -> 0 | V34: ='28'!F61 -> 0 | W34: ='28'!I53 -> 0 | X34: ='28'!I55 -> 0 | Y34: ='28'!I56 -> 0 | Z34: ='28'!I57 -> 0 | AA34: 0
A35: 29 | B35: ='29'!$E7 -> 0 | C35: ='29'!$C44 -> 0 | D35: ='29'!C54 -> 0 | E35: 0 | F35: =IFERROR(E35*C35/(B35*E1),"") ->  | G35: ='29'!C45 -> 0 | H35: ='29'!C53 -> 0 | J35: =IFERROR(G35*I35/(B35*I1),"") ->  | K35: ='29'!C46 -> 0 | L35: ='29'!I62 -> 0 | N35: =IFERROR(M35*K35/(M1*B35),"") ->  | O35: ='29'!F53 -> 0 | P35: ='29'!F54 -> 0 | Q35: ='29'!F55 -> 0 | R35: ='28'!F57 -> 0 | S35: ='29'!F58 -> 0 | T35: ='29'!F59 -> 0 | U35: ='29'!F60 -> 0 | V35: ='29'!F61 -> 0 | W35: ='29'!I53 -> 0 | X35: ='29'!I55 -> 0 | Y35: ='29'!I56 -> 0 | Z35: ='29'!I57 -> 0 | AA35: 0
A36: 30 | B36: ='30'!$E7 -> 0 | C36: ='30'!$C44 -> 0 | D36: ='30'!C54 -> 0 | E36: 0 | F36: =IFERROR(E36*C36/(B36*E1),"") ->  | G36: ='30'!C45 -> 0 | H36: ='30'!C53 -> 0 | J36: =IFERROR(G36*I36/(B36*I1),"") ->  | K36: ='30'!C46 -> 0 | L36: ='30'!I62 -> 0 | N36: =IFERROR(M36*K36/(M1*B36),"") ->  | O36: ='30'!F53 -> 0 | P36: ='30'!F54 -> 0 | Q36: ='30'!F55 -> 0 | R36: ='30'!F57 -> 0 | S36: ='30'!F58 -> 0 | T36: ='30'!F59 -> 0 | U36: ='30'!F60 -> 0 | V36: ='30'!F61 -> 0 | W36: ='30'!I53 -> 0 | X36: ='30'!I55 -> 0 | Y36: ='30'!I56 -> 0 | Z36: ='30'!I57 -> 0 | AA36: 0
A37: 31 | B37: ='31'!$E7 -> 0 | C37: ='4'!$C44 -> 0 | D37: ='31'!C54 -> 0 | E37: 0 | F37: =IFERROR(E37*C37/(B37*E1),"") ->  | G37: ='31'!C45 -> 0 | H37: ='31'!C53 -> 0 | J37: =IFERROR(G37*I37/(B37*I1),"") ->  | K37: ='31'!C46 -> 0 | L37: ='31'!I62 -> 0 | N37: =IFERROR(M37*K37/(M1*B37),"") ->  | O37: ='31'!F53 -> 0 | P37: ='31'!F54 -> 0 | Q37: ='31'!F55 -> 0 | R37: ='31'!F57 -> 0 | S37: ='31'!F58 -> 0 | T37: ='31'!F59 -> 0 | U37: ='31'!F60 -> 0 | V37: ='31'!F61 -> 0 | W37: ='31'!I53 -> 0 | X37: ='31'!I55 -> 0 | Y37: ='31'!I56 -> 0 | Z37: ='31'!I57 -> 0 | AA37: 0
A40: TOTAUX | B40: =SUM(B7:B38) -> 107 | C40: =SUM(C7:C38) -> 0 | D40: =SUM(D7:D37) -> 0 | E40: 0 | F40: =IFERROR(E40*C40/(B40*E1),"") -> 0 | G40: =SUM(G7:G39) -> 19 | H40: =SUM(H7:H39) -> 1308 | I40: =IFERROR(H40/G40,"") -> 68.84210526 | J40: =IFERROR(G40*I40/(B40*I1),"") -> 0.05314912637 | K40: =SUM(K7:K38) -> 0 | L40: =SUM(L7:L38) -> 2372.22 | M40: =IFERROR(L40/K40,"") ->  | N40: =IFERROR(M40*K40/(M1*B40),"") ->  | O40: =SUM(O7:O38) -> 0 | P40: 0 | Q40: 0 | R40: 287.76 | S40: 209.28 | T40: 235.44 | U40: 183.12 | V40: 0 | W40: 0 | X40: 0 | Y40: 448.1 | Z40: 0 | AA40: =SUM(O40:Z40) -> 1363.7

Sheet GNR ET ELEMENTS DE PROD
A2: GNR
A3: CITERNE PLEINE | C3: 12820 | J3: COMPOSITION DE FAB
A4: RESTE | C4: =C3-'RECAP MOIS MATERIEL'!J275 -> 11572
K5: 0/4c | L5: 0/4n | M5: 6/10c | N5: 8/16r | O5: m0/16
K6: 4.5 | L6: 8.25 | M6: 4 | N6: 8.25 | O6: 25
K7: 0.18 | L7: 0.33 | M7: 0.16 | N7: 0.33 | O7: 1
O9: 0/4SCL
K10: 0.33 | L10: 0.66 | O10: 0.99

Sheet ACHATS
A1: RECAPITULATIF ACHATS DU MOIS
A4: JOUR | B4: PRODUIT | C4: TONNAGE | D4: PRODUIT | E4: TONNAGE | F4: PRODUIT | G4: TONNAGE
A5: 1 | B5: ='1'!A$66 -> 0 | C5: ='1'!B$66 -> 0 | D5: ='1'!D$66 -> 0 | E5: ='1'!E$66 -> 0 | F5: ='1'!H$66 -> 0 | G5: ='1'!I$66 -> 0
A6: 2 | B6: ='2'!A$66 -> 0 | C6: ='2'!B$66 -> 0 | D6: ='2'!D$66 -> 0 | E6: ='2'!E$66 -> 0 | F6: ='2'!H$66 -> 0 | G6: ='2'!I$66 -> 0
A7: 3 | B7: ='3'!A$66 -> 0 | C7: ='3'!B$66 -> 0 | D7: ='3'!D$66 -> 0 | E7: ='3'!E$66 -> 0 | F7: ='3'!H$66 -> 0 | G7: ='3'!I$66 -> 0
A8: 4 | B8: ='4'!A$66 -> 0 | C8: ='4'!B$66 -> 0 | D8: ='4'!D$66 -> 0 | E8: ='4'!E$66 -> 0 | F8: ='4'!H$66 -> 0 | G8: ='4'!I$66 -> 0
A9: 5 | B9: ='5'!A$66 -> 0 | C9: ='5'!B$66 -> 0 | D9: ='5'!D$66 -> 0 | E9: ='5'!E$66 -> 0 | F9: ='5'!H$66 -> 0 | G9: ='5'!I$66 -> 0
A10: 6 | B10: ='6'!A$66 -> 0 | C10: ='6'!B$66 -> 0 | D10: ='6'!D$66 -> 0 | E10: ='6'!E$66 -> 0 | F10: ='6'!H$66 -> 0 | G10: ='6'!I$66 -> 0
A11: 7 | B11: ='7'!A$66 -> 0 | C11: ='7'!B$66 -> 0 | D11: ='7'!D$66 -> 0 | E11: ='7'!E$66 -> 0 | F11: ='7'!H$66 -> 0 | G11: ='7'!I$66 -> 0
A12: 8 | B12: ='8'!A$66 -> 0 | C12: ='8'!B$66 -> 0 | D12: ='8'!D$66 -> 0 | E12: ='8'!E$66 -> 0 | F12: ='8'!H$66 -> 0 | G12: ='8'!I$66 -> 0
A13: 9 | B13: ='9'!A$66 -> 0 | C13: ='9'!B$66 -> 0 | D13: ='9'!D$66 -> 0 | E13: ='9'!E$66 -> 0 | F13: ='9'!H$66 -> 0 | G13: ='9'!I$66 -> 0
A14: 10 | B14: ='10'!A$66 -> 0 | C14: ='10'!B$66 -> 0 | D14: ='10'!D$66 -> 0 | E14: ='10'!E$66 -> 0 | F14: ='10'!H$66 -> 0 | G14: ='10'!I$66 -> 0
A15: 11 | B15: ='11'!A$66 -> 0 | C15: ='11'!B$66 -> 0 | D15: ='11'!D$66 -> 0 | E15: ='11'!E$66 -> 0 | F15: ='11'!H$66 -> 0 | G15: ='11'!I$66 -> 0
A16: 12 | B16: ='12'!A$66 -> 0 | C16: ='12'!B$66 -> 0 | D16: ='12'!D$66 -> 0 | E16: ='12'!E$66 -> 0 | F16: ='12'!H$66 -> 0 | G16: ='12'!I$66 -> 0
A17: 13 | B17: ='13'!A$66 -> 0 | C17: ='13'!B$66 -> 0 | D17: ='13'!D$66 -> 0 | E17: ='13'!E$66 -> 0 | F17: ='13'!H$66 -> 0 | G17: ='13'!I$66 -> 0
A18: 14 | B18: ='14'!A$66 -> 0 | C18: ='14'!B$66 -> 0 | D18: ='14'!D$66 -> 0 | E18: ='14'!E$66 -> 0 | F18: ='14'!H$66 -> 0 | G18: ='14'!I$66 -> 0
A19: 15 | B19: ='15'!A$66 -> 0 | C19: ='15'!B$66 -> 0 | D19: ='15'!D$66 -> 0 | E19: ='15'!E$66 -> 0 | F19: ='15'!H$66 -> 0 | G19: ='15'!I$66 -> 0
A20: 16 | B20: ='16'!A$66 -> 0 | C20: ='16'!B$66 -> 0 | D20: ='16'!D$66 -> 0 | E20: ='16'!E$66 -> 0 | F20: ='16'!H$66 -> 0 | G20: ='16'!I$66 -> 0
A21: 17 | B21: ='17'!A$66 -> 0 | C21: ='17'!B$66 -> 0 | D21: ='17'!D$66 -> 0 | E21: ='17'!E$66 -> 0 | F21: ='17'!H$66 -> 0 | G21: ='17'!I$66 -> 0
A22: 18 | B22: ='18'!A$66 -> 0 | C22: ='18'!B$66 -> 0 | D22: ='18'!D$66 -> 0 | E22: ='18'!E$66 -> 0 | F22: ='18'!H$66 -> 0 | G22: ='18'!I$66 -> 0
A23: 19 | B23: ='19'!A$66 -> 0 | C23: ='19'!B$66 -> 0 | D23: ='19'!D$66 -> 0 | E23: ='19'!E$66 -> 0 | F23: ='19'!H$66 -> 0 | G23: ='19'!I$66 -> 0
A24: 20 | B24: ='20'!A$66 -> 0 | C24: ='20'!B$66 -> 0 | D24: ='20'!D$66 -> 0 | E24: ='20'!E$66 -> 0 | F24: ='20'!H$66 -> 0 | G24: ='20'!I$66 -> 0
A25: 21 | B25: ='21'!A$66 -> 0 | C25: ='21'!B$66 -> 0 | D25: ='21'!D$66 -> 0 | E25: ='21'!E$66 -> 0 | F25: ='21'!H$66 -> 0 | G25: ='21'!I$66 -> 0
A26: 22 | B26: ='22'!A$66 -> 0 | C26: ='22'!B$66 -> 0 | D26: ='22'!D$66 -> 0 | E26: ='22'!E$66 -> 0 | F26: ='22'!H$66 -> 0 | G26: ='22'!I$66 -> 0
A27: 23 | B27: ='23'!A$66 -> 0 | C27: ='23'!B$66 -> 0 | D27: ='23'!D$66 -> 0 | E27: ='23'!E$66 -> 0 | F27: ='23'!H$66 -> 0 | G27: ='23'!I$66 -> 0
A28: 24 | B28: ='24'!A$66 -> 0 | C28: ='24'!B$66 -> 0 | D28: ='24'!D$66 -> 0 | E28: ='24'!E$66 -> 0 | F28: ='24'!H$66 -> 0 | G28: ='24'!I$66 -> 0
A29: 25 | B29: ='25'!A$66 -> 0 | C29: ='25'!B$66 -> 0 | D29: ='25'!D$66 -> 0 | E29: ='25'!E$66 -> 0 | F29: ='25'!H$66 -> 0 | G29: ='25'!I$66 -> 0
A30: 26 | B30: ='26'!A$66 -> 0 | C30: ='26'!B$66 -> 0 | D30: ='26'!D$66 -> 0 | E30: ='26'!E$66 -> 0 | F30: ='26'!H$66 -> 0 | G30: ='26'!I$66 -> 0
A31: 27 | B31: ='27'!A$66 -> 0 | C31: ='27'!B$66 -> 0 | D31: ='27'!D$66 -> 0 | E31: ='27'!E$66 -> 0 | F31: ='27'!H$66 -> 0 | G31: ='27'!I$66 -> 0
A32: 28 | B32: ='28'!A$66 -> 0 | C32: ='28'!B$66 -> 0 | D32: ='28'!D$66 -> 0 | E32: ='28'!E$66 -> 0 | F32: ='28'!H$66 -> 0 | G32: ='28'!I$66 -> 0
A33: 29 | B33: ='29'!A$66 -> 0 | C33: ='29'!B$66 -> 0 | D33: ='29'!D$66 -> 0 | E33: ='29'!E$66 -> 0 | F33: ='29'!H$66 -> 0 | G33: ='29'!I$66 -> 0
A34: 30 | B34: ='30'!A$66 -> 0 | C34: ='30'!B$66 -> 0 | D34: ='30'!D$66 -> 0 | E34: ='30'!E$66 -> 0 | F34: ='30'!H$66 -> 0 | G34: ='30'!I$66 -> 0
A35: 31 | B35: ='31'!A$66 -> 0 | C35: ='31'!B$66 -> 0 | D35: ='31'!D$66 -> 0 | E35: ='31'!E$66 -> 0 | F35: ='31'!H$66 -> 0 | G35: ='31'!I$66 -> 0

Sheet liste
A1: Matériel | C1: Véhicules de liaison | E1: Personnel | G1: resp. production : | I1: liste des sites SCE | K1: Météo | M1: AFFECTATION | O1: AFFECTATION ENGIN | Q1: JOURS | S1: PRODUITS
A2: Chargeur 966G - D3100230 | C2: VL Clio - P0401808 | E2: AIGNELOT Sylvain | G2: Paul GARNIER | I2: Dampvalley | K2: Sec | M2: 210258 Travaux divers sans engins | O2: FORAGE /210452 | Q2: 1 | S2: GALETS 80/120
A3: Chargeur L110E - D3100655 | C3: VL Berlingo - P1001930 | E3: ANTAL Pascal | G3: Denis MARESCOT | I3: Courchaton | K3: Humide | M3: install primaire 210252 | O3: ALIM TV BRUT/210454 | Q3: 2 | S3: GALETS 22/80
A4: Chargeur L566 - D3101014 | C4: VL Kangoo - P1002588 | E4: BAGUE Alain | G4: Maxime PARIS | I4: Scey sur saône | K4: Pluie | M4: Install secondaire 210256 | O4: DESTOCKAGE/200308 | Q4: 3 | S4: PIERRE PORPHYRE 31/50
A5: Chargeur 972H - Courc - D3101054 | C5: VL Partner - P1003740 | E5: CAUTENET Sébastien | G5: Alain JAMEAUX | I5: Boult | K5: Neige | M5: Install tertiaire 210258 | O5: TRAVAUX DECH/210402 | Q5: 4 | S5: GRAVILONS 10/14 PORPHYRE
A6: Chargeur 972H - Div - D3101253 | C6: VL Kangoo - P1004191 | E6: CAUTENET Sylvain | G6: Rémy COLLIN | I6: Vergranne | K6: Orage | M6: Bascule 200200 | O6: CHARGEMENT CLIENT /200200 | Q6: 5 | S6: SABLE ROULE 0/3
A7: Chargeur L150 - D3101347 | C7: VL Kangoo - P1004262 | E7: CHAINHO Jean-Edouard | G7: Jérémy COURTOT | I7: Chemaudin | K7: Gel | M7: Sur Engin Alim TV Brut | O7: big bag | Q7: 6 | S7: 6/10 ARNAY LE DUC
A8: Chargeur L180E - Div - D3101527 | C8: VL Nemo - P1004268 | E8: COURTET Pascal | G8: Manuel DE SOUSA | I8: Sombacour | K8: soleil | M8: Sur Engin Destockage | O8: TRAVAUX DIVERS SUR PISTE 200950 | Q8: 7
A9: Chargeur ZW 220 - D3101615 | C9: VL Kangoo Arval Lucie - P1004817 | E9: COURTOT Jérémy | G9: Laurent FLAJEOLET | I9: Etalans | K9: Forte chaleur | M9: Sur Engin Chargement client | Q9: 8
A10: Chargeur L220G - Div - D3101870 | C10: VL Kangoo Arval - P1004818 | E10: CRETIN Brigitte | G10: Guy MARLE | I10: Epeugney | M10: Sur Engin Travaux divers site | Q10: 9
A11: Chargeur 980K - Monni - D3101896 | C11: VL Kangoo Arval Mickael - P1004819 | E11: DE SOUSA Manuel | G11: Richard DROUIN | I11: Mouthe | M11: confection Big Bag | Q11: 10
A12: Chargeur 972M XE - Monni - D3102156 | C12: VL Kangoo Arval - P1004820 | E12: DELAITRE Jean Claude | G12: AIGNELOT Sylvain | I12: PIN | Q12: 11
A13: Chargeur L220H - Dampv - D3102168 | C13: VL Kangoo Arval - P1004821 | E13: DORKELD Didier | I13: Osselle | Q13: 12
A14: Chargeur 972M XE - Chem - D3102273 | C14: PARTNER 1.6L - P1005454 | E14: DROUIN Richard | I14: Monnières | Q14: 13
A15: Chargeur 972 M XE - Somb - D3102366 | C15: VL Berlingo - P1006235 | E15: FACCHIN Mehdi | Q15: 14
A16: Chargeur 966G - D3102586 | C16: VL Berlingo - P1006667 | E16: FAIVRE Jean-Pierre | Q16: 15
A17: Chargeur 966G - D3102742 | C17: VL Berlingo SAGUIN - P1006687 | E17: FLAJEOLET Laurent | Q17: 16
A18: Chargeur 966G - D3102747 | C18: VL Berlingo - P1006688 | E18: GARNACHE Thierry | Q18: 17
A19: Chargeur 972 M XE - D3102775 | C19: VL Berlingo HACQUARD - P1006690 | E19: GARNERY Franck | Q19: 18
A20: Chargeur 972 M XE - D3102776 | C20: VL Berlingo HACQUARD - P1006691 | E20: GARNERY Gérard | Q20: 19
C21: VL Berlingo HACQUARD - P1006692 | E21: GATRAT Virgile | Q21: 20
C22: fourgonnette COURTOT - P1007440 | E22: GRANDGERARD Didier | Q22: 21
A23: Foreuse DX800 - K0120003 | C23: FOURGONNETTE 4X2 - P1007441 | E23: GUIVIER Claudy | Q23: 22
C24: FOURGONNETTE 4X2 - P1020035 | E24: HACQUARD Denis | Q24: 23
C25: FOURGONNETTE 4X4 - P1100064 | E25: HOLTZ Mathieu | Q25: 24
A26: Pelle 330D - D1001721 | C26: FOURGONNETTE 4X4 - P1100259 | E26: JAMEAUX Alain | Q26: 25
A27: Pelle ZX350 - Divers - D1002015 | C27: Fourgon Master - P1201721 | E27: JAMEAUX Michel | Q27: 26
A28: Pelle ZX350 - Scey - D1002023 | C28: Fourgon Master - P1201949 | E28: JUY Ghislaine | Q28: 27
A29: PELLE ZX350 - Mobile KR - D1002627 | C29: PICK UP 4X4 - P1300054 | E29: MAIRE Mickael | Q29: 28
A30: Pelle 349 E - Chem - D1002946 | C30: PICK UP 4X4 - P1300207 | E30: MARLE Guy | Q30: 29
A31: Pelle 352 FLME - D1003109 | C31: Fourgon Master - P1501682 | E31: MONNOT Nicolas | Q31: 30
A32: Pelle EC250NL - D1003544 | C32: Fourgon Trafic - P1507122 | E32: PERRETIER Pierrick | Q32: 31
A33: Pelle EC380EL - D1020059 | C33: Fourgon Master - P1508928 | E33: PERTON Florence
C34: Fourgon Trafic - P1513622 | E34: POISSENOT Pierre-Luc
A35: Tombereau 735 - D6100313 | C35: FOURGON 4X2 - P1514081 | E35: PRINT Lucie
A36: Tombereau 740 - D6100155 | C36: PEUGEOT Mathieu -P1020162 | E36: ROBAREY François
A37: Tombereau A35 - D6100270 | C37: Minipelle Dampv - D1003178 | E37: SAGUIN Claude
A38: Tombereau Rig 769 - Courc - D6000137 | C38: Minipelle E14 - Couc - D1002838 | E38: SAGUIN Yann,
A39: Tombereau Rig 769D - Scey - D6000112 | C39: Minipelle E14 - Monni - D1002840 | E39: THEVENIN Dominique
A40: Tombereau Rig 771D - Dampv - D6000133 | C40: Minipelle SV17 - oss - D1002929 | E40: TOUVREY Sébastien
A41: Tombereau Rig 772 - D6000224 | C41: Minipelle EB150 - chem - D1002168 | E41: VAUDREY Geoffrey
C42: Bobcat 463 - Dampv - D3300068 | E42: VAUDREY Sylvain
C43: Bobcat 463 - Scey - D3300067
A44: CAMION MERCEDES OSSELLE-P2100552 | C44: GE 4,8KW PIN - R0000307
C45: GE 4,8KW VERGR - R0000322
A46: GE 330Kw - R0100612 | C46: GE 330Kw - R0100612
C47: GE T17 SOMB - R0200064
C48: Manitou M30 - C8100689
A51: Crible Mobile 883 - A2000257
A52: Crible Mobile 694 - A2000266
A53: Conc Mobile 1412T - A7000066 | E53: LORIOL André
A54: Crible Mobile 984 - A7100066 | E54: LEBRUN Martial
A55: Conc Mobile MR122Z - Z0900107 | E55: GAY Corentin
A56: Conc Mobile BP1 - Z0900168 | E56: BOUZID Mickael
A57: Conc Mobile 13*15 - Z0900169
A58: Conc Mobile Gipo R131 - A7020004
A59: Location engin extérieur Trax
A60: Location engin extérieur Pelle
A61: Location engin extérieur Dumper
A62: Location engin extérieur Chargeur

Sheet Modèle vide
A1: RAPPORT JOURNALIER
A3: DATE :
A4: EXPLOITATION DE: | D4: RESPONSABLE | F4: METEO
D7: H DE PRODUCTIONS PREVUES
A8: POINTAGE PERSONNEL
A10: NOM PRENOM | B10: AFFECTATION | C10: Nombre d'heure | D10: AFFECTATION | E10: Nombre d'heure | F10: AFFECTATION | G10: Nombre d'heure | H10: TOTAL HORAIRE JOUR
H11: =C11+E11+G11 -> 0
H12: =C12+E12+G12 -> 0
H13: =C13+E13+G13 -> 0
H14: 0
H15: 0
H16: 0
H17: =C17+E17+G17 -> 0
H18: =C18+E18+G18 -> 0
H19: =C19+E19+G19 -> 0
H20: 0
H21: 0
H22: 0
A24: POINTAGE MATERIEL
A26: ENGINS DE PRODUCTION
A27: TYPE | B27: AFFECTATION HORAIRE | H27: TOTAL HORAIRE JOUR | I27: GNR | J27: HORAMETRE MATIN | K27: HORAMETRE SOIR | L27: CONTRÔLE
H28: =C28+E28+G28 -> 0 | L28: =IF(K28-J28=H28,"OK","FAUX") -> OK
H29: =C29+E29+G29 -> 0 | L29: =IF(K29-J29=H29,"OK","FAUX") -> OK
H30: 0 | L30: OK
H31: 0 | L31: OK
H32: 0 | L32: OK
H33: 0 | L33: OK
A35: VEHICULES DE LIAISON | B35: HORAMETRE MATIN | C35: SOIR | D35: GNR | E35: HEURE FONTIONNEMENT
E36: =C36-B36 -> 0
E37: =C37-B37 -> 0
E38: 0
A41: RAPPORT DE PRODUCTION
B43: COMPTEUR HORAIRE | C43: H/FONCT
A44: PRIMAIRE (Production Plaine)
A45: SECONDAIRE (Production Bascule Tunnel)
A46: TERTIAIRE (frabrication concassée)
A47: BIG BAG
A48: Compteur d'eau
E51: BIG BAG
A52: PRIMAIRE | D52: SECONDAIRE | G52: TERTIAIRE
A53: ALIMENTATION | B53: Tout venant Brut | D53: FABRICATION | E53: 0/4SCL | G53: CONCASSES | H53: 0/2C
A54: Plaine | B54: Tout venant Brut | D54: FABRICATION | E54: M0/16 | G54: CONCASSES | H54: 2/4C
A55: T120 | B55: Tout venant écreté | C55: =C54*0.95 -> 0 | D55: FABRICATION | E55: M0/8 | G55: CONCASSES | H55: 4/6C
A56: Débit mesuré en T/h | B56: GRANULOMETRIE | C56: TONNAGES | E56: GRANULOMETRIE | F56: TONNAGES | G56: CONCASSES | H56: 4/10C
A57: 50 | B57: 04 NATUREL | C57: =C53*D57 -> 0 | D57: 0.22 | E57: SABLE 0/4R | F57: 0 | G57: CONCASSES | H57: 6/10C
A58: 36 | B58: 4/8R | C58: =C53*D58 -> 0 | D58: 0.16 | E58: 4/8R | F58: =C58 -> 0 | G58: CONCASSES
A59: 42 | B59: 8/16R | C59: =C53*D59 -> 0 | D59: 0.18 | E59: 8/16R | F59: 0 | G59: CONCASSES
A60: 32 | B60: 11/22R | C60: =C53*D60 -> 0 | D60: 0.14 | E60: 11/22R | F60: =C60 -> 0 | G60: CONCASSES | H60: 0/4C | I60: 0
A61: 68 | B61: 22/80 | C61: =C53*D61 -> 0 | D61: 0.3 | E61: 22/80 | F61: =C67-I55-I5-ABS(I57) -> 0 | G61: CONCASSES | H61: 6,3/10 | I61: 0
A62: =SUM(A57:B61) -> 228 | C62: =SUM(C57:C61) -> 0 | F62: =SUM(F57:F61) -> 0 | I62: =SUM(I53:I61) -> 0
A64: ACHATS
A68: ARRETS
A69: Horamètre | B69: CIRCUIT | C69: MACHINE | D69: CAUSE | E69: DUREE (en mn) | H69: COMMENTAIRES
E70: Panne | F70: Entretien | G70: AUTRE
A78: Observations (pour garder une trace d'un fait particulier)

Sheet RAZ_Globale
